Workbook

Sheet QA chklst
A1: Quality Assurance Checklist
A2: PCA Calculation
A4: ='Summary- Cumulative'!B5:L5 -> 
B6: Changes/Updates for the Month
A7: N/A | B7: Updated Exhibit D Regulatory Amort. Recovery to GRC - Exhibit D removed from PCA as of January 1, 2017
A8: N/A | B8: Updated Exhibit A to GRC
A11: x | B11: Distribute electronically to PCA Distribution List monthly
B13: Exhibit B Fixed Section - Fixed costs removed from PCA as of January 1, 2017
B14: Return on RB Dollars ties to Exhibit A-1, Fixed Asset Recovery
B15: Other Fixed Costs ties to Exhibit A-1
B16: Subtotal Fixed costs ties to Exhibit A-1, divided by 12
B17: Check summary schedule for accuracy with G/L
B19: Exhibit B Variable Component Section
A20: x | B20: Run SAP Report under transaction GR55, Group Z006 for input.
A21: x | B21: Input variable costs into "Actual" sheet
A22: N/A | B22: Exclude true-up activity outside of current PCA Period - refer to memo for guidance.
B23: Download detail from SAP and indicated final GPI. (take kwh from SAP and verify final amt is input to PCA)
A24: N/A | B24: Update Firm Wholesale Cost adjustment for any rate changes.
A25: x | B25: PCA delivered load ties to KWh subtotal on Monthly Electric Revenue & KWh report (aka Sales of Electricity report)
A26: x | B26: Update Adjustments for Centrailia PPA ROR Equity Adj. and EIM Fixec Cost Adj.
A28: x | B28: Schedules C and C1 - Make sure amounts are correct from source schedules
B30: Exhibit D Variable Component Section - Only including amortizations that are recorded in power cost orders used for the PCA as of 1/1/17.
B31: Regulatory Assets tie to Exhibit D Regulatory Amortization Schedule for BEP, WR, Goldendale, etc (most recent Ex. D from Rates)
B32: Check for updates to Exhibit D
BG33: (Cabot amort ended 6/08)
B34: Schedule X - Prudence Adjustment - no longer used as of Jan'12
B35: Prudence from UE-921262 from Schedule X ties to Schedule B
B36: Update Invoice Power Costs and Replacement Power Costs
B39: Schedule E - Contract price adjustments Invoice Cost Dollars & Kwh's | AT39: Sched E no longer used as of January 13, 2007
B40: Sched E was discontinued with PCA 6, starting January 13, 2007.
B41: Run EA Database Firm and Purpa Summary of Power Costs
B42: Exclude true-up activity outside of current PCA Period.
B43: BC Hydro / Pt. Roberts
B44: BPA WNP-3 Exchange Power
B45: BPA Snohomish Conservation
B46: MPC Firm Contract-Demand
B47: North Wasco
B48: Spokane MSW
B49: QF Shipp Hutch. Creek
B50: QF Koma Kulshan Hydro
B51: QF Port Townsend Hydro
B52: QF Sygitowicz
B53: QF Twin Falls
B54: QF Weeks Falls
B55: Make sure prior months numbers don’t change
B56: Contract price adjustments Special Treatments
B57: QF March Point Cogen 1 Winter - Mwh generation
B58: QF March Point Cogen 1 Winter - Mwh displacement
B59: QF March Point Cogen 1 Winter - Invoice Cost + Displacement (exclude Excess Generation)
B60: QF March Point Cogen 1 Winter - Replacement Power cost per Mwh * displacement Mwh
B61: QF March Point Cogen 1 Summer - Mwh generation
B62: QF March Point Cogen 1 Summer - Mwh displacement
B63: QF March Point Cogen 1 Summer - Invoice Cost + Displacement (exclude Excess Generation)
B64: QF March Point Cogen 1 Summer - Replacement Power cost per Mwh * displacement Mwh
B65: QF March Point Cogen 2 Winter - Mwh generation
B66: QF March Point Cogen 2 Winter - Mwh displacement
B67: QF March Point Cogen 2 Winter - Invoice Cost + Displacement (exclude Excess Generation)
B68: QF March Point Cogen 2 Winter - Replacement Power cost per Mwh * displacement Mwh
B69: QF March Point Cogen 2 Summer - Mwh generation
B70: QF March Point Cogen 2 Summer - Mwh displacement
B71: QF March Point Cogen 2 Summer - Invoice Cost + Displacement (exclude Excess Generation)
B72: QF March Point Cogen 2 Summer - Replacement Power cost per Mwh * displacement Mwh
B73: QF Sumas Winter - Mwh generation
B74: QF Sumas Winter - Mwh displacement
B75: QF Sumas Winter - Invoice Cost + Displacement (exclude Excess Generation)
B76: QF Sumas Winter - Replacement Power cost per Mwh * displacement Mwh
B77: QF Sumas Summer - Mwh generation
B78: QF Sumas Summer - Mwh displacement
B79: QF Sumas Summer - Invoice Cost + Displacement (exclude Excess Generation)
B80: QF Sumas Summer - Replacement Power cost per Mwh * displacement Mwh
B81: QF Tenaska - Mwh generation
B82: QF Tenaska - Mwh displacement
B83: QF Tenaska - Invoice Cost (Fixed portion only)
B84: Contract price adjustments
B85: Schedule X matches Schedule E Contract Price Adjustments - Sched E no longer used
B86: Prior month prudence adjustments for NUG's don’t change - Sched E no longer used
B87: Schedule F - Colstrip adjustment removed from PCA as of January 1, 2017
B89: Colstrip availability adjustment - update Exhibit F for rolling 12 month Colstrip Availability data per report from PPL Montana
B90: Colstrip availability adjustment - input penalty (if any) from Exhibit F
B92: Schedule G
B93: New resource pricing adjustment
B95: Special Reports
B96: Download KWH and $ and calculated GPI
A97: x | B97: Update interest schedule and accrue interest
B99: Actual Costs
B100: Check Northwestern Energy invoice for prior year true-up's
A101: N/A | B101: Check compliance with WUTC approved methodology for cost adjustments outside of PCA period.
A102: N/A | B102: Back-out non-core gas stored at JP inventory and Colstrip inventory write-downs and reversals.
A103: x | B103: Tie actual costs per SAP to total on schedule | EC103: 2014-06-01 | EE103: 2014-07-01 | EG103: 2014-08-01 | EI103: 2014-09-01 | EK103: 2014-10-01 | EM103: 2014-11-01 | EO103: 2014-12-31 | EQ103: 2015-01-31 | ES103: 2015-02-28 | EU103: 2015-03-31 | EW103: 2015-04-30 | EY103: 2015-05-31 | FA103: 2015-06-30 | FD103: 2015-07-31 | FG103: 2015-08-31 | FI103: 2015-09-30 | FK103: 2015-10-15 | FM103: 2015-11-30 | FO103: 2015-12-31 | FQ103: 2016-01-31 | FS103: 2016-02-29 | FU103: 2016-03-31 | FW103: 2016-04-30 | FY103: 2016-05-31 | GA103: 2016-06-30 | GC103: 2016-07-31 | GE103: 2016-08-31 | GG103: 2016-09-30 | GI103: 2016-10-31 | GK103: 2016-11-01 | GM103: 2016-12-01 | GO103: 2017-01-01 | GQ103: =GR105 -> 2017-02-28 | GS103: =GT105 -> 2017-03-31 | GU103: 2017-04-01 | GW103: 2017-05-01 | GY103: 2017-06-01 | HA103: 2017-07-01 | HC103: 2017-08-31 | HE103: 2017-09-30
HG104: 2017-10-31 | HI104: 2017-11-01 | HK104: 2017-12-31 | HM104: 2018-01-31 | HO104: 2018-02-28 | HQ104: 2018-03-31 | HS104: 2018-04-30 | HU104: 2018-05-31 | HW104: 2018-06-30 | HY104: 2018-07-31 | IA104: 2018-08-31 | IC104: 2018-09-30 | IE104: 2018-10-31 | IG104: 2018-11-30 | II104: 2018-12-31 | IK104: 2019-01-31 | IM104: 2019-02-28 | IO104: 2019-03-31 | IQ104: 2019-04-30
C105: 2003-06-30 | D105: 2003-12-31 | E105: 2004-01-31 | F105: 2004-02-29 | G105: 2004-03-31 | H105: 2004-04-30 | I105: 2004-05-31 | J105: 2004-06-30 | K105: 2004-07-31 | L105: 2004-08-31 | M105: 2004-09-30 | N105: 2004-10-31 | O105: 2004-11-30 | P105: 12/31/2004 W/ PCA 2 Adjustment | Q105: 2004-12-31 | R105: 1/31/05 Revised PCA 2 Adj. | S105: 2005-01-31 | T105: 2005-02-28 | U105: 3/31/05 Revised PCA 2 Adj. | V105: 2005-03-31 | W105: 2005-04-30 | X105: 2005-05-31 | Y105: 2005-06-30 | Z105: 2005-07-31 | AA105: 2005-08-31 | AB105: 2005-09-30 | AC105: 2005-10-31 | AD105: 2005-11-30 | AE105: 2005-12-31 | AF105: 2006-01-31 | AG105: 2006-02-28 | AH105: 2006-03-31 | AI105: 2006-04-30 | AJ105: 2006-05-31 | AK105: 2006-06-30 | AL105: 2006-07-31 | AM105: 2006-08-31 | AN105: 2006-09-30 | AO105: 2006-10-31 | AP105: 2006-11-30 | AQ105: 2006-12-31 | AR105: 2007-01-31 | AS105: 2007-02-28 | AT105: 2007-03-31 | AU105: 2007-04-30 | AV105: 2007-05-31 | AW105: 2007-06-30 | AX105: 2007-07-31 | AY105: 2007-08-31 | AZ105: 2007-09-30 | BA105: 2007-10-31 | BB105: 2007-11-30 | BC105: 2007-12-31 | BD105: 2008-01-31 | BE105: 2008-02-29 | BF105: 2008-03-31 | BG105: 2008-04-30 | BH105: 2008-05-31 | BI105: 2008-06-30 | BJ105: 2008-07-31 | BK105: 2008-08-31 | BL105: 2008-09-30 | BM105: 2008-10-31 | BN105: 2008-11-30 | BO105: 2008-12-31 | BP105: 2009-01-31 | BQ105: 2009-02-28 | BR105: 2009-03-31 | BS105: 2009-04-30 | BT105: 2009-05-31 | BU105: 2009-06-30 | BV105: 2009-07-31 | BW105: 2009-08-31 | BX105: 2009-09-30 | BY105: 2009-10-31 | BZ105: 2009-11-30 | CA105: 2009-12-31 | CB105: 2010-01-31 | CC105: 2010-02-28 | CD105: 2010-03-31 | CE105: 2010-04-30 | CF105: 2010-05-31 | CG105: 2010-06-30 | CH105: 2010-07-31 | CI105: 2010-08-31 | CJ105: 2010-09-30 | CK105: 2010-10-31 | CL105: 2010-11-30 | CM105: 2010-12-31 | CN105: 2011-01-31 | CO105: 2011-02-28 | CP105: 2011-03-31 | CQ105: 2011-04-30 | CR105: 2011-05-31 | CS105: 2011-06-30 | CT105: 2011-07-31 | CU105: 2011-08-31 | CV105: 2011-09-30 | CW105: 2011-10-31 | CX105: 2011-11-30 | CY105: 2011-12-31 | CZ105: 2012-01-31 | DA105: 2012-02-29 | DB105: 2012-03-31 | DC105: 2012-04-30 | DD105: 2012-05-31 | DE105: 2012-06-30 | DF105: 2012-07-31 | DG105: 2012-08-31 | DH105: 2012-09-30 | DI105: 2012-10-31 | DJ105: 2012-11-30 | DK105: 2012-12-31 | DL105: 2013-01-31 | DM105: 2013-02-28 | DN105: 2013-03-31 | DO105: 2013-04-30 | DP105: 2013-05-31 | DQ105: 2013-06-30 | DR105: 2013-07-31 | DS105: 2013-08-31 | DT105: 9/301/3 | DU105: 2013-10-31 | DV105: 2013-11-30 | DW105: 2013-12-31 | DX105: 2014-01-31 | DY105: 2014-02-28 | DZ105: 2014-03-31 | EA105: 2014-04-30 | EB105: 2014-05-31 | EC105: Activity | ED105: 2014-06-30 | EE105: Activity | EF105: 2014-07-31 | EG105: Activity | EH105: 2014-08-31 | EI105: Activity | EJ105: 2014-09-30 | EK105: Activity | EL105: 2014-10-31 | EM105: Activity | EN105: 2014-11-30 | EO105: Activity | EP105: =EO103 -> 2014-12-31 | EQ105: Activity | ER105: =EQ103 -> 2015-01-31 | ES105: Activity | ET105: =ES103 -> 2015-02-28 | EU105: Activity | EV105: =EU103 -> 2015-03-31 | EW105: Activity | EX105: =EW103 -> 2015-04-30 | EY105: Activity | EZ105: =EY103 -> 2015-05-31 | FA105: Activity | FB105: =FA103 -> 2015-06-30 | FD105: Activity | FE105: =FD103 -> 2015-07-31 | FG105: Activity | FH105: =FG103 -> 2015-08-31 | FI105: Activity | FJ105: =FI103 -> 2015-09-30 | FK105: Activity | FL105: 2015-10-31 | FM105: Activity (b) | FN105: =FM103 -> 2015-11-30 | FO105: Activity (b) | FP105: =FO103 -> 2015-12-31 | FQ105: Activity (b) | FR105: =FQ103 -> 2016-01-31 | FS105: Activity (b) | FT105: =FS103 -> 2016-02-29 | FU105: Activity (b) | FV105: =FU103 -> 2016-03-31 | FW105: Activity (b) | FX105: =FW103 -> 2016-04-30 | FY105: Activity (b) | FZ105: =FY103 -> 2016-05-31 | GA105: Activity (b) | GB105: =GA103 -> 2016-06-30 | GC105: Activity (b) | GD105: =GC103 -> 2016-07-31 | GE105: Activity (c) | GF105: =GE103 -> 2016-08-31 | GG105: Activity (c) | GH105: =GG103 -> 2016-09-30 | GI105: Activity (c) | GJ105: =GI103 -> 2016-10-31 | GK105: Activity (c) | GL105: 2016-11-30 | GM105: Activity (c) | GN105: 2016-12-31 | GO105: Activity | GP105: 2017-01-31 | GQ105: Activity | GR105: 2017-02-28 | GS105: Activity | GT105: 2017-03-31 | GU105: Activity | GV105: 2017-04-30 | GW105: Activity | GX105: 2017-05-31 | GY105: Activity | GZ105: 2017-06-30 | HA105: Activity | HB105: 2017-07-31 | HC105: Activity | HD105: =HC103 -> 2017-08-31 | HE105: Activity | HF105: =HE103 -> 2017-09-30 | HG105: Activity | HH105: =HG104 -> 2017-10-31 | HI105: Activity | HJ105: =HI104 -> 2017-11-01 | HK105: Activity | HL105: =HK104 -> 2017-12-31 | HM105: Activity | HN105: =HM104 -> 2018-01-31 | HO105: Activity | HP105: =HO104 -> 2018-02-28 | HQ105: Activity | HR105: =HQ104 -> 2018-03-31 | HS105: Activity | HT105: =HS104 -> 2018-04-30 | HU105: Activity | HV105: =HU104 -> 2018-05-31 | HW105: Activity | HX105: =HW104 -> 2018-06-30 | HY105: Activity | HZ105: =HY104 -> 2018-07-31 | IA105: Activity | IB105: =IA104 -> 2018-08-31 | IC105: Activity | ID105: =IC104 -> 2018-09-30 | IE105: Activity | IF105: =IE104 -> 2018-10-31 | IG105: Activity | IH105: =IG104 -> 2018-11-30 | II105: Activity | IJ105: =II104 -> 2018-12-31 | IK105: Activity | IL105: =IK104 -> 2019-01-31 | IM105: Activity | IN105: =IM104 -> 2019-02-28 | IO105: Activity | IP105: =IO104 -> 2019-03-31 | IQ105: Activity | IR105: =IQ104 -> 2019-04-30
B106: 18230281 - PCA YR#1 | C106: 28170657 | D106: 25257988 | E106: 25257988 | F106: 25257988 | G106: 25257988 | H106: 25257988 | I106: 2856530 | J106: 2269066 | K106: 2269066 | L106: 2269066 | M106: =L106 -> 2269066 | N106: 2269066 | O106: 2269066 | P106: 2269066 | Q106: 2269066 | R106: 2269066 | S106: 2269066 | T106: 2269066 | U106: 2269066 | V106: 2269066 | W106: 2269066 | X106: 2269066 | Y106: 2269066 | Z106: 2269066 | AA106: 2269066 | AB106: 2269066 | AC106: 2269066 | AD106: 2269066 | AE106: 2269066 | AF106: 2269066 | AG106: 2269066 | AH106: 2269066 | AI106: 2269066 | AJ106: 2269066 | AK106: 2269066 | AL106: 2269066 | AM106: 2269066 | AN106: 2269066 | AO106: 2269066 | AP106: 2269066 | AQ106: 2269066 | AR106: 2269066 | AS106: =AR106 -> 2269066 | AT106: 2269066 | AU106: 2269066 | AV106: 2269066 | AW106: 2269066 | AX106: 2269066 | AY106: 2269066 | AZ106: 2269066 | BA106: 2269066 | BB106: 2269066 | BC106: 2269066 | BD106: 2269066 | BE106: 2269066 | BF106: 2269066 | BG106: 2269066 | BH106: 2269066 | BI106: 2269066 | BJ106: 2269066 | BK106: 2269066 | BL106: 2269066 | BM106: 2269066 | BN106: 2269066 | BO106: 2269066 | BP106: 2269066 | BQ106: 2269066 | BR106: 2269066 | BS106: 2269066 | BT106: 2269066 | BU106: 2269066 | BV106: 2269066 | BW106: 2269066 | BX106: 2269066 | BY106: =BX106 -> 2269066 | BZ106: 2269066 | CA106: 2269066 | CB106: 2269066 | CC106: 2269066 | CD106: 2269066 | CE106: 2269066 | CF106: 2269066 | CG106: 2269066 | CH106: 2269066 | CI106: 2269066 | CJ106: 2269066 | CK106: 2269066 | CL106: 1828298 | CM106: 1828298 | CN106: 1828298 | CO106: 1828298 | CP106: 1828298 | CQ106: 1828298 | CR106: 1828298 | CS106: 1828298 | CT106: 1828298 | CU106: 1828298 | CV106: 1828298 | CW106: 1828298 | CX106: 1828298 | CY106: 1828298 | CZ106: 1828298 | DA106: 1828298 | DB106: 1828298 | DC106: 1828298 | DD106: 1828298 | DE106: 1828298 | DF106: 1828298 | DG106: 1828298 | DH106: 1828298 | DI106: 1828298 | DJ106: 1828298 | DK106: 1828298 | DL106: 1828298 | DM106: 1828298 | DN106: 1828298 | DO106: 1828298 | DP106: 1828298 | DQ106: 1828298 | DR106: 1828298 | DS106: 1828298 | DT106: 1828298 | DU106: 1828298 | DV106: 1828298 | DW106: 1828298 | DX106: 1828298 | DY106: 1828298 | DZ106: 1828298 | EA106: 1828298 | EB106: 1828298 | ED106: =EB106+EC106 -> 1828298 | EF106: =ED106+EE106 -> 1828298 | EH106: =EF106+EG106 -> 1828298 | EJ106: =EH106+EI106 -> 1828298 | EL106: =EJ106+EK106 -> 1828298 | EN106: =EL106+EM106 -> 1828298 | EP106: =EN106+EO106 -> 1828298 | ER106: =EP106+EQ106 -> 1828298 | ET106: =ER106+ES106 -> 1828298 | EV106: =ET106+EU106 -> 1828298 | EX106: =EV106+EW106 -> 1828298 | EZ106: =EX106+EY106 -> 1828298 | FB106: =EZ106+FA106 -> 1828298 | FE106: =FB106+FD106 -> 1828298 | FH106: =FE106+FG106 -> 1828298 | FJ106: =FH106+FI106 -> 1828298 | FL106: =FK106+FJ106 -> 1828298 | FM106: =-FL106 -> -1828298 | FN106: =FM106+FL106 -> 0 | FO106: =-FN106 -> 0 | FP106: =FO106+FN106 -> 0 | FQ106: =-FP106 -> 0 | FR106: =FQ106+FP106 -> 0 | FS106: =-FR106 -> 0 | FT106: =FS106+FR106 -> 0 | FU106: =-FT106 -> 0 | FV106: =FU106+FT106 -> 0 | FW106: =-FV106 -> 0 | FX106: =FW106+FV106 -> 0 | FY106: =-FX106 -> 0 | FZ106: =FY106+FX106 -> 0 | GA106: =-FZ106 -> 0 | GB106: =GA106+FZ106 -> 0 | GC106: =-GB106 -> 0 | GD106: =GC106+GB106 -> 0 | GE106: =-GD106 -> 0 | GF106: =GE106+GD106 -> 0 | GG106: =-GF106 -> 0 | GH106: =GG106+GF106 -> 0 | GI106: =-GH106 -> 0 | GJ106: =GI106+GH106 -> 0 | GK106: =-GJ106 -> 0 | GL106: =GK106+GJ106 -> 0 | GM106: =-GL106 -> 0 | GN106: =GM106+GL106 -> 0 | GO106: =-GN106 -> 0 | GP106: =GO106+GN106 -> 0 | GQ106: =-GP106 -> 0 | GR106: =GQ106+GP106 -> 0 | GS106: 0 | GT106: =GS106+GR106 -> 0 | GU106: 0 | GV106: =GU106+GT106 -> 0 | GW106: 0 | GX106: =GW106+GV106 -> 0 | GY106: 0 | GZ106: =GY106+GX106 -> 0 | HA106: 0 | HB106: =HA106+GZ106 -> 0 | HC106: 0 | HD106: =HC106+HB106 -> 0 | HE106: 0 | HF106: =HE106+HD106 -> 0 | HG106: 0 | HH106: =HG106+HF106 -> 0 | HI106: 0 | HJ106: =HI106+HH106 -> 0 | HK106: 0 | HL106: =HK106+HJ106 -> 0 | HM106: 0 | HN106: =HM106+HL106 -> 0 | HO106: 0 | HP106: =HO106+HN106 -> 0 | HQ106: 0 | HR106: =HQ106+HP106 -> 0 | HS106: 0 | HT106: =HS106+HR106 -> 0 | HU106: 0 | HV106: =HU106+HT106 -> 0 | HW106: 0 | HX106: =HW106+HV106 -> 0 | HY106: 0 | HZ106: =HY106+HX106 -> 0 | IA106: 0 | IB106: =IA106+HZ106 -> 0 | IC106: 0 | ID106: =IC106+IB106 -> 0 | IE106: 0 | IF106: =IE106+ID106 -> 0 | IG106: 0 | IH106: 0 | II106: 0 | IJ106: =IH106+II106 -> 0 | IK106: 0 | IL106: =IJ106+IK106 -> 0 | IM106: 0 | IN106: =IL106+IM106 -> 0 | IO106: 0 | IP106: =IN106+IO106 -> 0
B107: 18230291 - PCA YR#1 | C107: -28170657 | D107: -25257988 | E107: -25257988 | F107: -25257988 | G107: -25257988 | H107: -25257988 | I107: -2856530 | J107: -2269066 | K107: -2269066 | L107: -2269066 | M107: =L107 -> -2269066 | N107: -2269066 | O107: -2269066 | P107: -2269066 | Q107: -2269066 | R107: -2269066 | S107: -2269066 | T107: -2269066 | U107: -2269066 | V107: -2269066 | W107: -2269066 | X107: -2269066 | Y107: -2269066 | Z107: -2269066 | AA107: -2269066 | AB107: -2269066 | AC107: -2269066 | AD107: -2269066 | AE107: -2269066 | AF107: -2269066 | AG107: -2269066 | AH107: -2269066 | AI107: -2269066 | AJ107: -2269066 | AK107: -2269066 | AL107: -2269066 | AM107: -2269066 | AN107: -2269066 | AO107: -2269066 | AP107: -2269066 | AQ107: -2269066 | AR107: -2269066 | AS107: =AR107 -> -2269066 | AT107: -2269066 | AU107: -2269066 | AV107: -2269066 | AW107: -2269066 | AX107: -2269066 | AY107: -2269066 | AZ107: -2269066 | BA107: -2269066 | BB107: -2269066 | BC107: -2269066 | BD107: -2269066 | BE107: -2269066 | BF107: -2269066 | BG107: -2269066 | BH107: -2269066 | BI107: -2269066 | BJ107: -2269066 | BK107: -2269066 | BL107: -2269066 | BM107: -2269066 | BN107: -2269066 | BO107: -2269066 | BP107: -2269066 | BQ107: -2269066 | BR107: -2269066 | BS107: -2269066 | BT107: -2269066 | BU107: -2269066 | BV107: -2269066 | BW107: -2269066 | BX107: -2269066 | BY107: =BX107 -> -2269066 | BZ107: -2269066 | CA107: -2269066 | CB107: -2269066 | CC107: -2269066 | CD107: -2269066 | CE107: -2269066 | CF107: -2269066 | CG107: -2269066 | CH107: -2269066 | CI107: -2269066 | CJ107: -2269066 | CK107: -2269066 | CL107: -1828298 | CM107: -1828298 | CN107: -1828298 | CO107: -1828298 | CP107: -1828298 | CQ107: -1828298 | CR107: -1828298 | CS107: -1828298 | CT107: -1828298 | CU107: -1828298 | CV107: -1828298 | CW107: -1828298 | CX107: -1828298 | CY107: -1828298 | CZ107: -1828298 | DA107: -1828298 | DB107: -1828298 | DC107: -1828298 | DD107: -1828298 | DE107: -1828298 | DF107: -1828298 | DG107: -1828298 | DH107: -1828298 | DI107: -1828298 | DJ107: -1828298 | DK107: -1828298 | DL107: -1828298 | DM107: -1828298 | DN107: -1828298 | DO107: -1828298 | DP107: -1828298 | DQ107: -1828298 | DR107: -1828298 | DS107: -1828298 | DT107: -1828298 | DU107: -1828298 | DV107: -1828298 | DW107: -1828298 | DX107: -1828298 | DY107: -1828298 | DZ107: -1828298 | EA107: -1828298 | EB107: -1828298 | ED107: =EB107+EC107 -> -1828298 | EF107: =ED107+EE107 -> -1828298 | EH107: -1828298 | EJ107: -1828298 | EL107: -1828298 | EN107: =EL107+EM107 -> -1828298 | EP107: =EN107+EO107 -> -1828298 | ER107: =EP107+EQ107 -> -1828298 | ET107: =ER107+ES107 -> -1828298 | EV107: =ET107+EU107 -> -1828298 | EX107: =EV107+EW107 -> -1828298 | EZ107: =EX107+EY107 -> -1828298 | FB107: =EZ107+FA107 -> -1828298 | FE107: =FB107+FD107 -> -1828298 | FH107: =FE107+FG107 -> -1828298 | FJ107: =FH107+FI107 -> -1828298 | FL107: =FK107+FJ107 -> -1828298 | FM107: =-FL107 -> 1828298 | FN107: =FM107+FL107 -> 0 | FO107: =-FN107 -> 0 | FP107: =FO107+FN107 -> 0 | FQ107: =-FP107 -> 0 | FR107: =FQ107+FP107 -> 0 | FS107: =-FR107 -> 0 | FT107: =FS107+FR107 -> 0 | FU107: =-FT107 -> 0 | FV107: =FU107+FT107 -> 0 | FW107: =-FV107 -> 0 | FX107: =FW107+FV107 -> 0 | FY107: =-FX107 -> 0 | FZ107: =FY107+FX107 -> 0 | GA107: =-FZ107 -> 0 | GB107: =GA107+FZ107 -> 0 | GC107: =-GB107 -> 0 | GD107: =GC107+GB107 -> 0 | GE107: =-GD107 -> 0 | GF107: =GE107+GD107 -> 0 | GG107: =-GF107 -> 0 | GH107: =GG107+GF107 -> 0 | GI107: =-GH107 -> 0 | GJ107: =GI107+GH107 -> 0 | GK107: 0 | GL107: 0 | GM107: 0 | GN107: 0 | GO107: 0 | GP107: 0 | GQ107: 0 | GR107: 0 | GS107: 0 | GT107: 0 | GU107: 0 | GV107: 0 | GW107: 0 | GX107: 0 | GY107: 0 | GZ107: 0 | HA107: 0 | HB107: 0 | HC107: 0 | HD107: 0 | HE107: 0 | HF107: 0 | HG107: 0 | HH107: 0 | HI107: 0 | HJ107: 0 | HK107: 0 | HL107: 0 | HM107: 0 | HN107: 0 | HO107: 0 | HP107: 0 | HQ107: 0 | HR107: 0 | HS107: 0 | HT107: 0 | HU107: 0 | HV107: 0 | HW107: 0 | HX107: 0 | HY107: 0 | HZ107: 0 | IA107: 0 | IB107: 0 | IC107: 0 | ID107: 0 | IE107: 0 | IF107: 0 | IG107: 0 | IH107: 0 | II107: 0 | IJ107: =IH107+II107 -> 0 | IK107: 0 | IL107: =IJ107+IK107 -> 0 | IM107: 0 | IN107: =IL107+IM107 -> 0 | IO107: 0 | IP107: =IN107+IO107 -> 0
B108: 18230711 - PCA YR#2 | D108: 18301054 | E108: 20230047 | F108: 27284693 | G108: 32366097 | H108: 35973453 | I108: 20878377 | J108: 24258354 | K108: 24258354 | L108: 24258354 | M108: =L108 -> 24258354 | N108: 24258354 | O108: 24258354 | P108: =O108-150694 -> 24107660 | Q108: =P108 -> 24107660 | R108: 24130983 | S108: =R108 -> 24130983 | T108: =S108 -> 24130983 | U108: =T108+6072472 -> 30203455 | V108: =U108 -> 30203455 | W108: 30203455 | X108: 30203455 | Y108: 30203455 | Z108: 30203455 | AA108: 30203455 | AB108: 30203455 | AC108: 30203455 | AD108: 30203455 | AE108: 30203455 | AF108: =AE108-1 -> 30203454 | AG108: =AF108 -> 30203454 | AH108: 30203454 | AI108: 30203454 | AJ108: 30203454 | AK108: 30203454 | AL108: 30203454 | AM108: 30203454 | AN108: 30203454 | AO108: 30203454 | AP108: 30203454 | AQ108: 30203454 | AR108: 30203454 | AS108: 30203454 | AT108: 30203454 | AU108: 30203454 | AV108: 30203454 | AW108: 30203454 | AX108: 30203454 | AY108: 30203454 | AZ108: 30203454 | BA108: 30203454 | BB108: 30203454 | BC108: 30203454 | BD108: 30203454 | BE108: 30203454 | BF108: 30203454 | BG108: 30203454 | BH108: 30203454 | BI108: 30203454 | BJ108: 30203454 | BK108: 30203454 | BL108: 30203454 | BM108: =BL108 -> 30203454 | BN108: 30203454 | BO108: 30203454 | BP108: 30203454 | BQ108: 30203454 | BR108: 30203454 | BS108: 30203454 | BT108: 30203454 | BU108: 30203454 | BV108: 30203454 | BW108: 30203454 | BX108: 30203454 | BY108: 30203454 | BZ108: 30203454 | CA108: 30203454 | CB108: 30203454 | CC108: 30203454 | CD108: 30203454 | CE108: 30203454 | CF108: 30203454 | CG108: 30203454 | CH108: 30203454 | CI108: 30203454 | CJ108: 30203454 | CK108: 30203454 | CL108: 29551324 | CM108: 29551324 | CN108: 29551324 | CO108: 29551324 | CP108: 29551324 | CQ108: 29551324 | CR108: 29551324 | CS108: 29551324 | CT108: 29551324 | CU108: 29551324 | CV108: 29551324 | CW108: 29551324 | CX108: 29551324 | CY108: 29551324 | CZ108: 29551324 | DA108: 29551324 | DB108: 29551324 | DC108: 29551324 | DD108: 29551324 | DE108: 29551324 | DF108: 29551324 | DG108: 29551324 | DH108: 29551324 | DI108: 29551324 | DJ108: 29551324 | DK108: 29551324 | DL108: 29551324 | DM108: 29551324 | DN108: 29551324 | DO108: 29551324 | DP108: 29551324 | DQ108: 29551324 | DR108: 29551324 | DS108: 29551324 | DT108: 29551324 | DU108: 29551324 | DV108: 29551324 | DW108: 29551324 | DX108: 29551324 | DY108: 29551324 | DZ108: 29551324 | EA108: 29551324 | EB108: 29551324 | ED108: 29551324 | EF108: 29551324 | EH108: 29551324 | EJ108: 29551324 | EL108: 29551324 | EN108: 29551324 | EP108: 29551324 | ER108: 29551324 | ET108: 29551324 | EV108: 29551324 | EX108: 29551324 | EZ108: 29551324 | FB108: 29551324 | FE108: 29551324 | FH108: 29551324 | FJ108: 29551324 | FL108: 29551324 | FM108: -29551324 | FN108: 0 | FO108: 0 | FP108: 0 | FQ108: 0 | FR108: 0 | FS108: 0 | FT108: 0 | FU108: 0 | FV108: 0 | FW108: 0 | FX108: 0 | FY108: 0 | FZ108: 0 | GA108: 0 | GB108: 0 | GC108: 0 | GD108: 0 | GE108: 0 | GF108: 0 | GG108: 0 | GH108: 0 | GI108: 0 | GJ108: 0 | GK108: 0 | GL108: 0 | GM108: 0 | GN108: 0 | GO108: 0 | GP108: 0 | GQ108: 0 | GR108: 0 | GS108: 0 | GT108: 0 | GU108: 0 | GV108: 0 | GW108: 0 | GX108: 0 | GY108: 0 | GZ108: 0 | HA108: 0 | HB108: 0 | HC108: 0 | HD108: 0 | HE108: 0 | HF108: 0 | HG108: 0 | HH108: 0 | HI108: 0 | HJ108: 0 | HK108: 0 | HL108: 0 | HM108: 0 | HN108: 0 | HO108: 0 | HP108: 0 | HQ108: 0 | HR108: 0 | HS108: 0 | HT108: 0 | HU108: 0 | HV108: 0 | HW108: 0 | HX108: 0 | HY108: 0 | HZ108: 0 | IA108: 0 | IB108: 0 | IC108: 0 | ID108: 0 | IE108: 0 | IF108: 0 | IG108: 0 | IH108: 0 | II108: 0 | IJ108: 0 | IK108: 0 | IL108: 0 | IM108: 0 | IN108: 0 | IO108: 0 | IP108: 0
B109: 18230721 - PCA YR#2 | D109: -18301054 | E109: -20230047 | F109: -27284693 | G109: -32366097 | H109: -35973453 | I109: -20878377 | J109: -24258354 | K109: -24258354 | L109: -24258354 | M109: -24258354 | N109: -24258354 | O109: -24258354 | P109: =O109+150694 -> -24107660 | Q109: =P109 -> -24107660 | R109: -24130983 | S109: =R109 -> -24130983 | T109: =S109 -> -24130983 | U109: =T109-6072472 -> -30203455 | V109: =U109 -> -30203455 | W109: -30203455 | X109: -30203455 | Y109: -30203455 | Z109: -30203455 | AA109: -30203455 | AB109: -30203455 | AC109: -30203455 | AD109: -30203455 | AE109: -30203455 | AF109: =AE109+1 -> -30203454 | AG109: =AF109 -> -30203454 | AH109: -30203454 | AI109: -30203454 | AJ109: -30203454 | AK109: -30203454 | AL109: -30203454 | AM109: -30203454 | AN109: -30203454 | AO109: -30203454 | AP109: -30203454 | AQ109: -30203454 | AR109: -30203454 | AS109: -30203454 | AT109: -30203454 | AU109: -30203454 | AV109: -30203454 | AW109: -30203454 | AX109: -30203454 | AY109: -30203454 | AZ109: -30203454 | BA109: -30203454 | BB109: -30203454 | BC109: -30203454 | BD109: -30203454 | BE109: -30203454 | BF109: -30203454 | BG109: -30203454 | BH109: -30203454 | BI109: -30203454 | BJ109: -30203454 | BK109: -30203454 | BL109: -30203454 | BM109: =BL109 -> -30203454 | BN109: -30203454 | BO109: -30203454 | BP109: -30203454 | BQ109: -30203454 | BR109: -30203454 | BS109: -30203454 | BT109: -30203454 | BU109: -30203454 | BV109: -30203454 | BW109: -30203454 | BX109: -30203454 | BY109: -30203454 | BZ109: -30203454 | CA109: -30203454 | CB109: -30203454 | CC109: -30203454 | CD109: -30203454 | CE109: -30203454 | CF109: -30203454 | CG109: -30203454 | CH109: -30203454 | CI109: -30203454 | CJ109: -30203454 | CK109: -30203454 | CL109: -29551324 | CM109: -29551324 | CN109: -29551324 | CO109: -29551324 | CP109: -29551324 | CQ109: -29551324 | CR109: -29551324 | CS109: -29551324 | CT109: -29551324 | CU109: -29551324 | CV109: -29551324 | CW109: -29551324 | CX109: -29551324 | CY109: -29551324 | CZ109: -29551324 | DA109: -29551324 | DB109: -29551324 | DC109: -29551324 | DD109: -29551324 | DE109: -29551324 | DF109: -29551324 | DG109: -29551324 | DH109: -29551324 | DI109: -29551324 | DJ109: -29551324 | DK109: -29551324 | DL109: -29551324 | DM109: -29551324 | DN109: -29551324 | DO109: -29551324 | DP109: -29551324 | DQ109: -29551324 | DR109: -29551324 | DS109: -29551324 | DT109: -29551324 | DU109: -29551324 | DV109: -29551324 | DW109: -29551324 | DX109: -29551324 | DY109: -29551324 | DZ109: -29551324 | EA109: -29551324 | EB109: -29551324 | ED109: -29551324 | EF109: -29551324 | EH109: -29551324 | EJ109: -29551324 | EL109: -29551324 | EN109: -29551324 | EP109: -29551324 | ER109: -29551324 | ET109: -29551324 | EV109: -29551324 | EX109: -29551324 | EZ109: -29551324 | FB109: -29551324 | FE109: -29551324 | FH109: -29551324 | FJ109: -29551324 | FL109: -29551324 | FM109: 29551324 | FN109: 0 | FO109: 0 | FP109: 0 | FQ109: 0 | FR109: 0 | FS109: 0 | FT109: 0 | FU109: 0 | FV109: 0 | FW109: 0 | FX109: 0 | FY109: 0 | FZ109: 0 | GA109: 0 | GB109: 0 | GC109: 0 | GD109: 0 | GE109: 0 | GF109: 0 | GG109: 0 | GH109: 0 | GI109: 0 | GJ109: 0 | GK109: 0 | GL109: 0 | GM109: 0 | GN109: 0 | GO109: 0 | GP109: 0 | GQ109: 0 | GR109: 0 | GS109: 0 | GT109: 0 | GU109: 0 | GV109: 0 | GW109: 0 | GX109: 0 | GY109: 0 | GZ109: 0 | HA109: 0 | HB109: 0 | HC109: 0 | HD109: 0 | HE109: 0 | HF109: 0 | HG109: 0 | HH109: 0 | HI109: 0 | HJ109: 0 | HK109: 0 | HL109: 0 | HM109: 0 | HN109: 0 | HO109: 0 | HP109: 0 | HQ109: 0 | HR109: 0 | HS109: 0 | HT109: 0 | HU109: 0 | HV109: 0 | HW109: 0 | HX109: 0 | HY109: 0 | HZ109: 0 | IA109: 0 | IB109: 0 | IC109: 0 | ID109: 0 | IE109: 0 | IF109: 0 | IG109: 0 | IH109: 0 | II109: 0 | IJ109: 0 | IK109: 0 | IL109: 0 | IM109: 0 | IN109: 0 | IO109: 0 | IP109: 0
B110: 18230731 - PCA YR#3 | D110: 0 | K110: 2999706 | L110: =K110-914142 -> 2085564 | M110: =L110+347469 -> 2433033 | N110: =M110+4561163 -> 6994196 | O110: =N110+1759559 -> 8753755 | P110: =O110 -> 8753755 | Q110: =P110+1945879 -> 10699634 | R110: 10527981 | S110: 13783872 | T110: =S110+5233209 -> 19017081 | U110: =T110 -> 19017081 | V110: =U110+3357313 -> 22374394 | W110: =V110+873933 -> 23248327 | X110: =W110-13278468 -> 9969859 | Y110: =X110+971683 -> 10941542 | Z110: =Y110 -> 10941542 | AA110: 10941542 | AB110: 10941542 | AC110: 10301692 | AD110: =AC110 -> 10301692 | AE110: =AD110 -> 10301692 | AF110: 10302245 | AG110: 10302245 | AH110: 10302245 | AI110: 10302245 | AJ110: 10302187 | AK110: 10302187 | AL110: 10302187 | AM110: 10302187 | AN110: 10302187 | AO110: 10302187 | AP110: 10302187 | AQ110: 10302187 | AR110: 10302187 | AS110: 10302187 | AT110: 10302187 | AU110: 10302187 | AV110: 10302187 | AW110: 10302187 | AX110: 10302187 | AY110: 10302187 | AZ110: 10302187 | BA110: 10302187 | BB110: 10302187 | BC110: 10302187 | BD110: 10302187 | BE110: 10302187 | BF110: 10302187 | BG110: 10302187 | BH110: 10302187 | BI110: 10302187 | BJ110: 10302187 | BK110: 10302187 | BL110: 10302187 | BM110: 10302187 | BN110: 10302187 | BO110: 10302187 | BP110: 10302187 | BQ110: 10302187 | BR110: 10302187 | BS110: 10302187 | BT110: 10302187 | BU110: 10302187 | BV110: 10302187 | BW110: 10302187 | BX110: 10302187 | BY110: 10302187 | BZ110: 10302187 | CA110: 10302187 | CB110: 10302187 | CC110: 10302187 | CD110: 10302187 | CE110: 10302187 | CF110: 10302187 | CG110: 10302187 | CH110: 10302187 | CI110: 10302187 | CJ110: 10302187 | CK110: 10302187 | CL110: 9957561 | CM110: 9957561 | CN110: 9957561 | CO110: 9957561 | CP110: 9957561 | CQ110: 9957561 | CR110: 9957561 | CS110: 9957561 | CT110: 9957561 | CU110: 9957561 | CV110: 9957561 | CW110: 9957561 | CX110: 9957561 | CY110: 9957561 | CZ110: 9957561 | DA110: 9957561 | DB110: 9957561 | DC110: 9957561 | DD110: 9957561 | DE110: 9957561 | DF110: 9957561 | DG110: 9957561 | DH110: 9957561 | DI110: 9957561 | DJ110: 9957561 | DK110: 9957561 | DL110: 9957561 | DM110: 9957561 | DN110: 9957561 | DO110: 9957561 | DP110: 9957561 | DQ110: 9957561 | DR110: 9957561 | DS110: 9957561 | DT110: 9957561 | DU110: 9957561 | DV110: 9957561 | DW110: 9957561 | DX110: 9957561 | DY110: 9957561 | DZ110: 9957561 | EA110: 9957561 | EB110: 9957561 | ED110: 9957561 | EF110: 9957561 | EH110: 9957561 | EJ110: 9957561 | EL110: 9957561 | EN110: 9957561 | EP110: 9957561 | ER110: 9957561 | ET110: 9957561 | EV110: 9957561 | EX110: 9957561 | EZ110: 9957561 | FB110: 9957561 | FE110: 9957561 | FH110: 9957561 | FJ110: 9957561 | FL110: 9957561 | FM110: -9957561 | FN110: 0 | FO110: 0 | FP110: 0 | FQ110: 0 | FR110: 0 | FS110: 0 | FT110: 0 | FU110: 0 | FV110: 0 | FW110: 0 | FX110: 0 | FY110: 0 | FZ110: 0 | GA110: 0 | GB110: 0 | GC110: 0 | GD110: 0 | GE110: 0 | GF110: 0 | GG110: 0 | GH110: 0 | GI110: 0 | GJ110: 0 | GK110: 0 | GL110: 0 | GM110: 0 | GN110: 0 | GO110: 0 | GP110: 0 | GQ110: 0 | GR110: 0 | GS110: 0 | GT110: 0 | GU110: 0 | GV110: 0 | GW110: 0 | GX110: 0 | GY110: 0 | GZ110: 0 | HA110: 0 | HB110: 0 | HC110: 0 | HD110: 0 | HE110: 0 | HF110: 0 | HG110: 0 | HH110: 0 | HI110: 0 | HJ110: 0 | HK110: 0 | HL110: 0 | HM110: 0 | HN110: 0 | HO110: 0 | HP110: 0 | HQ110: 0 | HR110: 0 | HS110: 0 | HT110: 0 | HU110: 0 | HV110: 0 | HW110: 0 | HX110: 0 | HY110: 0 | HZ110: 0 | IA110: 0 | IB110: 0 | IC110: 0 | ID110: 0 | IE110: 0 | IF110: 0 | IG110: 0 | IH110: 0 | II110: 0 | IJ110: 0 | IK110: 0 | IL110: 0 | IM110: 0 | IN110: 0 | IO110: 0 | IP110: 0
B111: 18230741 - PCA YR#3 | D111: 0 | K111: -2999706 | L111: =K111+914142 -> -2085564 | M111: =L111-347469 -> -2433033 | N111: =M111-4561163 -> -6994196 | O111: =N111-1759559 -> -8753755 | P111: =O111 -> -8753755 | Q111: =P111-1945879 -> -10699634 | R111: -10527981 | S111: -13783872 | T111: =S111-5233209 -> -19017081 | U111: =T111 -> -19017081 | V111: =U111-3357313 -> -22374394 | W111: =V111-873933 -> -23248327 | X111: =W111+13278468 -> -9969859 | Y111: =X111-971683 -> -10941542 | Z111: -10941542 | AA111: -10941542 | AB111: -10941542 | AC111: -10301692 | AD111: =AC111 -> -10301692 | AE111: =AD111 -> -10301692 | AF111: -10302245 | AG111: -10302245 | AH111: -10302245 | AI111: -10302245 | AJ111: -10302187 | AK111: -10302187 | AL111: -10302187 | AM111: -10302187 | AN111: -10302187 | AO111: -10302187 | AP111: -10302187 | AQ111: -10302187 | AR111: -10302187 | AS111: -10302187 | AT111: -10302187 | AU111: -10302187 | AV111: -10302187 | AW111: -10302187 | AX111: -10302187 | AY111: -10302187 | AZ111: -10302187 | BA111: -10302187 | BB111: -10302187 | BC111: -10302187 | BD111: -10302187 | BE111: -10302187 | BF111: -10302187 | BG111: -10302187 | BH111: -10302187 | BI111: -10302187 | BJ111: -10302187 | BK111: -10302187 | BL111: -10302187 | BM111: -10302187 | BN111: -10302187 | BO111: -10302187 | BP111: -10302187 | BQ111: -10302187 | BR111: -10302187 | BS111: -10302187 | BT111: -10302187 | BU111: -10302187 | BV111: -10302187 | BW111: -10302187 | BX111: -10302187 | BY111: -10302187 | BZ111: -10302187 | CA111: -10302187 | CB111: -10302187 | CC111: -10302187 | CD111: -10302187 | CE111: -10302187 | CF111: -10302187 | CG111: -10302187 | CH111: -10302187 | CI111: -10302187 | CJ111: -10302187 | CK111: -10302187 | CL111: -9957561 | CM111: -9957561 | CN111: -9957561 | CO111: -9957561 | CP111: -9957561 | CQ111: -9957561 | CR111: -9957561 | CS111: -9957561 | CT111: -9957561 | CU111: -9957561 | CV111: -9957561 | CW111: -9957561 | CX111: -9957561 | CY111: -9957561 | CZ111: -9957561 | DA111: -9957561 | DB111: -9957561 | DC111: -9957561 | DD111: -9957561 | DE111: -9957561 | DF111: -9957561 | DG111: -9957561 | DH111: -9957561 | DI111: -9957561 | DJ111: -9957561 | DK111: -9957561 | DL111: -9957561 | DM111: -9957561 | DN111: -9957561 | DO111: -9957561 | DP111: -9957561 | DQ111: -9957561 | DR111: -9957561 | DS111: -9957561 | DT111: -9957561 | DU111: -9957561 | DV111: -9957561 | DW111: -9957561 | DX111: -9957561 | DY111: -9957561 | DZ111: -9957561 | EA111: -9957561 | EB111: -9957561 | ED111: -9957561 | EF111: -9957561 | EH111: -9957561 | EJ111: -9957561 | EL111: -9957561 | EN111: -9957561 | EP111: -9957561 | ER111: -9957561 | ET111: -9957561 | EV111: -9957561 | EX111: -9957561 | EZ111: -9957561 | FB111: -9957561 | FE111: -9957561 | FH111: -9957561 | FJ111: -9957561 | FL111: -9957561 | FM111: 9957561 | FN111: 0 | FO111: 0 | FP111: 0 | FQ111: 0 | FR111: 0 | FS111: 0 | FT111: 0 | FU111: 0 | FV111: 0 | FW111: 0 | FX111: 0 | FY111: 0 | FZ111: 0 | GA111: 0 | GB111: 0 | GC111: 0 | GD111: 0 | GE111: 0 | GF111: 0 | GG111: 0 | GH111: 0 | GI111: 0 | GJ111: 0 | GK111: 0 | GL111: 0 | GM111: 0 | GN111: 0 | GO111: 0 | GP111: 0 | GQ111: 0 | GR111: 0 | GS111: 0 | GT111: 0 | GU111: 0 | GV111: 0 | GW111: 0 | GX111: 0 | GY111: 0 | GZ111: 0 | HA111: 0 | HB111: 0 | HC111: 0 | HD111: 0 | HE111: 0 | HF111: 0 | HG111: 0 | HH111: 0 | HI111: 0 | HJ111: 0 | HK111: 0 | HL111: 0 | HM111: 0 | HN111: 0 | HO111: 0 | HP111: 0 | HQ111: 0 | HR111: 0 | HS111: 0 | HT111: 0 | HU111: 0 | HV111: 0 | HW111: 0 | HX111: 0 | HY111: 0 | HZ111: 0 | IA111: 0 | IB111: 0 | IC111: 0 | ID111: 0 | IE111: 0 | IF111: 0 | IG111: 0 | IH111: 0 | II111: 0 | IJ111: 0 | IK111: 0 | IL111: 0 | IM111: 0 | IN111: 0 | IO111: 0 | IP111: 0
B112: 18230751 - PCA YR#4 | D112: 0 | Z112: -5682358 | AA112: =+Z112-684785 -> -6367143 | AB112: -1618465 | AC112: 4714321 | AD112: 4543777 | AE112: 15146143 | AF112: 12725118 | AG112: 15145424 | AH112: 22419346 | AI112: 13137483 | AJ112: -5626789 | AK112: -10522768 | AL112: -10522768 | AM112: -10522768 | AN112: -10522768 | AO112: -10522768 | AP112: -10522768 | AQ112: -10522768 | AR112: -10522768 | AS112: -10522768 | AT112: -10522768 | AU112: -10522768 | AV112: -10522768 | AW112: -10522768 | AX112: -10522768 | AY112: -10522768 | AZ112: -10522768 | BA112: -10522768 | BB112: -10522768 | BC112: -10522768 | BD112: -10522768 | BE112: -10522768 | BF112: -10522768 | BG112: -10522768 | BH112: -10522768 | BI112: -10522768 | BJ112: -10522768 | BK112: -10522768 | BL112: -10522768 | BM112: -10522768 | BN112: -10522768 | BO112: -10522768 | BP112: -10522768 | BQ112: -10522768 | BR112: -10522768 | BS112: -10522768 | BT112: -10522768 | BU112: -10522768 | BV112: -10522768 | BW112: -10522768 | BX112: -10522768 | BY112: -11444089 | BZ112: -11444089 | CA112: -11444089 | CB112: -11444089 | CC112: -11444089 | CD112: -11444089 | CE112: -11444089 | CF112: -11444089 | CG112: -11444089 | CH112: -11444089 | CI112: -11444089 | CJ112: -11444089 | CK112: -11444089 | CL112: -12375488 | CM112: -12375488 | CN112: -12375488 | CO112: -12375488 | CP112: -12375488 | CQ112: -12375488 | CR112: -12375488 | CS112: -12375488 | CT112: -12375488 | CU112: -12375488 | CV112: -12375488 | CW112: -12375488 | CX112: -12375488 | CY112: -12375488 | CZ112: -12375488 | DA112: -12375488 | DB112: -12375488 | DC112: -12375488 | DD112: -12375488 | DE112: -12375488 | DF112: -12375488 | DG112: -12375488 | DH112: -12375488 | DI112: -12375488 | DJ112: -12375488 | DK112: -12375488 | DL112: -12375488 | DM112: -12375488 | DN112: -12375488 | DO112: -12375488 | DP112: -12375488 | DQ112: -12375488 | DR112: -12375488 | DS112: -12375488 | DT112: -12375488 | DU112: -12375488 | DV112: -12375488 | DW112: -12375488 | DX112: -12375488 | DY112: -12375488 | DZ112: -12375488 | EA112: -12375488 | EB112: -12375488 | ED112: -12375488 | EF112: -12375488 | EH112: -12375488 | EJ112: -12375488 | EL112: -12375488 | EN112: -12375488 | EP112: -12375488 | ER112: -12375488 | ET112: -12375488 | EV112: -12375488 | EX112: -12375488 | EZ112: -12375488 | FB112: -12375488 | FE112: -12375488 | FH112: -12375488 | FJ112: -12375488 | FL112: -12375488 | FM112: 12375488 | FN112: 0 | FO112: 0 | FP112: 0 | FQ112: 0 | FR112: 0 | FS112: 0 | FT112: 0 | FU112: 0 | FV112: 0 | FW112: 0 | FX112: 0 | FY112: 0 | FZ112: 0 | GA112: 0 | GB112: 0 | GC112: 0 | GD112: 0 | GE112: 0 | GF112: 0 | GG112: 0 | GH112: 0 | GI112: 0 | GJ112: 0 | GK112: 0 | GL112: 0 | GM112: 0 | GN112: 0 | GO112: 0 | GP112: 0 | GQ112: 0 | GR112: 0 | GS112: 0 | GT112: 0 | GU112: 0 | GV112: 0 | GW112: 0 | GX112: 0 | GY112: 0 | GZ112: 0 | HA112: 0 | HB112: 0 | HC112: 0 | HD112: 0 | HE112: 0 | HF112: 0 | HG112: 0 | HH112: 0 | HI112: 0 | HJ112: 0 | HK112: 0 | HL112: 0 | HM112: 0 | HN112: 0 | HO112: 0 | HP112: 0 | HQ112: 0 | HR112: 0 | HS112: 0 | HT112: 0 | HU112: 0 | HV112: 0 | HW112: 0 | HX112: 0 | HY112: 0 | HZ112: 0 | IA112: 0 | IB112: 0 | IC112: 0 | ID112: 0 | IE112: 0 | IF112: 0 | IG112: 0 | IH112: 0 | II112: 0 | IJ112: 0 | IK112: 0 | IL112: 0 | IM112: 0 | IN112: 0 | IO112: 0 | IP112: 0
B113: 18230761 - PCA YR#4 | D113: 0 | Z113: 5682358 | AA113: =+Z113+684785 -> 6367143 | AB113: 1618465 | AC113: -4714321 | AD113: -4543777 | AE113: -15146143 | AF113: -12725118 | AG113: -15145424 | AH113: -22419346 | AI113: -13137483 | AJ113: 5626789 | AK113: 10522768 | AL113: 10522768 | AM113: 10522768 | AN113: 10522768 | AO113: 10522768 | AP113: 10522768 | AQ113: 10522768 | AR113: 10522768 | AS113: 10522768 | AT113: 10522768 | AU113: 10522768 | AV113: 10522768 | AW113: 10522768 | AX113: 10522768 | AY113: 10522768 | AZ113: 10522768 | BA113: 10522768 | BB113: 10522768 | BC113: 10522768 | BD113: 10522768 | BE113: 10522768 | BF113: 10522768 | BG113: 10522768 | BH113: 10522768 | BI113: 10522768 | BJ113: 10522768 | BK113: 10522768 | BL113: 10522768 | BM113: 10522768 | BN113: 10522768 | BO113: 10522768 | BP113: 10522768 | BQ113: 10522768 | BR113: 10522768 | BS113: 10522768 | BT113: 10522768 | BU113: 10522768 | BV113: 10522768 | BW113: 10522768 | BX113: 10522768 | BY113: 11444089 | BZ113: 11444089 | CA113: 11444089 | CB113: 11444089 | CC113: 11444089 | CD113: 11444089 | CE113: 11444089 | CF113: 11444089 | CG113: 11444089 | CH113: 11444089 | CI113: 11444089 | CJ113: 11444089 | CK113: 11444089 | CL113: 12375488 | CM113: 12375488 | CN113: 12375488 | CO113: 12375488 | CP113: 12375488 | CQ113: 12375488 | CR113: 12375488 | CS113: 12375488 | CT113: 12375488 | CU113: 12375488 | CV113: 12375488 | CW113: 12375488 | CX113: 12375488 | CY113: 12375488 | CZ113: 12375488 | DA113: 12375488 | DB113: 12375488 | DC113: 12375488 | DD113: 12375488 | DE113: 12375488 | DF113: 12375488 | DG113: 12375488 | DH113: 12375488 | DI113: 12375488 | DJ113: 12375488 | DK113: 12375488 | DL113: 12375488 | DM113: 12375488 | DN113: 12375488 | DO113: 12375488 | DP113: 12375488 | DQ113: 12375488 | DR113: 12375488 | DS113: 12375488 | DT113: 12375488 | DU113: 12375488 | DV113: 12375488 | DW113: 12375488 | DX113: 12375488 | DY113: 12375488 | DZ113: 12375488 | EA113: 12375488 | EB113: 12375488 | ED113: 12375488 | EF113: 12375488 | EH113: 12375488 | EJ113: 12375488 | EL113: 12375488 | EN113: 12375488 | EP113: 12375488 | ER113: 12375488 | ET113: 12375488 | EV113: 12375488 | EX113: 12375488 | EZ113: 12375488 | FB113: 12375488 | FE113: 12375488 | FH113: 12375488 | FJ113: 12375488 | FL113: 12375488 | FM113: -12375488 | FN113: 0 | FO113: 0 | FP113: 0 | FQ113: 0 | FR113: 0 | FS113: 0 | FT113: 0 | FU113: 0 | FV113: 0 | FW113: 0 | FX113: 0 | FY113: 0 | FZ113: 0 | GA113: 0 | GB113: 0 | GC113: 0 | GD113: 0 | GE113: 0 | GF113: 0 | GG113: 0 | GH113: 0 | GI113: 0 | GJ113: 0 | GK113: 0 | GL113: 0 | GM113: 0 | GN113: 0 | GO113: 0 | GP113: 0 | GQ113: 0 | GR113: 0 | GS113: 0 | GT113: 0 | GU113: 0 | GV113: 0 | GW113: 0 | GX113: 0 | GY113: 0 | GZ113: 0 | HA113: 0 | HB113: 0 | HC113: 0 | HD113: 0 | HE113: 0 | HF113: 0 | HG113: 0 | HH113: 0 | HI113: 0 | HJ113: 0 | HK113: 0 | HL113: 0 | HM113: 0 | HN113: 0 | HO113: 0 | HP113: 0 | HQ113: 0 | HR113: 0 | HS113: 0 | HT113: 0 | HU113: 0 | HV113: 0 | HW113: 0 | HX113: 0 | HY113: 0 | HZ113: 0 | IA113: 0 | IB113: 0 | IC113: 0 | ID113: 0 | IE113: 0 | IF113: 0 | IG113: 0 | IH113: 0 | II113: 0 | IJ113: 0 | IK113: 0 | IL113: 0 | IM113: 0 | IN113: 0 | IO113: 0 | IP113: 0
B114: 18230811 - PCA YR#5 | AL114: -15724481 | AM114: -22789520 | AN114: -17734169 | AO114: -6386740 | AP114: -7264905 | AQ114: -57848 | AR114: -57848 | AS114: -57848 | AT114: -57848 | AU114: -57848 | AV114: -57848 | AW114: -57848 | AX114: -57848 | AY114: -57848 | AZ114: -57848 | BA114: -57848 | BB114: -57848 | BC114: -57848 | BD114: -57848 | BE114: -57848 | BF114: -57848 | BG114: -57848 | BH114: -57848 | BI114: -57848 | BJ114: -57848 | BK114: -57848 | BL114: -57848 | BM114: -57848 | BN114: -57848 | BO114: -57848 | BP114: -57848 | BQ114: -57848 | BR114: -57848 | BS114: -57848 | BT114: -57848 | BU114: -57848 | BV114: -57848 | BW114: -57848 | BX114: -57848 | BY114: -419133 | BZ114: -419133 | CA114: -419133 | CB114: -419133 | CC114: -419133 | CD114: -419133 | CE114: -419133 | CF114: -419133 | CG114: -419133 | CH114: -419133 | CI114: -419133 | CJ114: -419133 | CK114: -419133 | CL114: -671033 | CM114: -671033 | CN114: -671033 | CO114: -671033 | CP114: -671033 | CQ114: -671033 | CR114: -671033 | CS114: -671033 | CT114: -671033 | CU114: -671033 | CV114: -671033 | CW114: -671033 | CX114: -671033 | CY114: -671033 | CZ114: -671033 | DA114: -671033 | DB114: -671033 | DC114: -671033 | DD114: -671033 | DE114: -671033 | DF114: -671033 | DG114: -671033 | DH114: -671033 | DI114: -671033 | DJ114: -671033 | DK114: -671033 | DL114: -671033 | DM114: -671033 | DN114: -671033 | DO114: -671033 | DP114: -671033 | DQ114: -671033 | DR114: -671033 | DS114: -671033 | DT114: -671033 | DU114: -671033 | DV114: -671033 | DW114: -671033 | DX114: -671033 | DY114: -671033 | DZ114: -671033 | EA114: -671033 | EB114: -671033 | ED114: -671033 | EF114: -671033 | EH114: -671033 | EJ114: -671033 | EL114: -671033 | EN114: -671033 | EP114: -671033 | ER114: -671033 | ET114: -671033 | EV114: -671033 | EX114: -671033 | EZ114: -671033 | FA114: 2500 | FB114: -668533 | FC114: (a) | FD114: -2500 | FE114: -671033 | FF114: (a) | FH114: -671033 | FJ114: -671033 | FL114: -671033 | FM114: 671033 | FN114: 0 | FO114: 0 | FP114: 0 | FQ114: 0 | FR114: 0 | FS114: 0 | FT114: 0 | FU114: 0 | FV114: 0 | FW114: 0 | FX114: 0 | FY114: 0 | FZ114: 0 | GA114: 0 | GB114: 0 | GC114: 0 | GD114: 0 | GE114: 0 | GF114: 0 | GG114: 0 | GH114: 0 | GI114: 0 | GJ114: 0 | GK114: 0 | GL114: 0 | GM114: 0 | GN114: 0 | GO114: 0 | GP114: 0 | GQ114: 0 | GR114: 0 | GS114: 0 | GT114: 0 | GU114: 0 | GV114: 0 | GW114: 0 | GX114: 0 | GY114: 0 | GZ114: 0 | HA114: 0 | HB114: 0 | HC114: 0 | HD114: 0 | HE114: 0 | HF114: 0 | HG114: 0 | HH114: 0 | HI114: 0 | HJ114: 0 | HK114: 0 | HL114: 0 | HM114: 0 | HN114: 0 | HO114: 0 | HP114: 0 | HQ114: 0 | HR114: 0 | HS114: 0 | HT114: 0 | HU114: 0 | HV114: 0 | HW114: 0 | HX114: 0 | HY114: 0 | HZ114: 0 | IA114: 0 | IB114: 0 | IC114: 0 | ID114: 0 | IE114: 0 | IF114: 0 | IG114: 0 | IH114: 0 | II114: 0 | IJ114: 0 | IK114: 0 | IL114: 0 | IM114: 0 | IN114: 0 | IO114: 0 | IP114: 0
B115: 18230821 - PCA YR#5 | AL115: 15724481 | AM115: 22789520 | AN115: 17734169 | AO115: 6386740 | AP115: 7264905 | AQ115: 57848 | AR115: 57848 | AS115: 57848 | AT115: 57848 | AU115: 57848 | AV115: 57848 | AW115: 57848 | AX115: 57848 | AY115: 57848 | AZ115: 57848 | BA115: 57848 | BB115: 57848 | BC115: 57848 | BD115: 57848 | BE115: 57848 | BF115: 57848 | BG115: 57848 | BH115: 57848 | BI115: 57848 | BJ115: 57848 | BK115: 57848 | BL115: 57848 | BM115: 57848 | BN115: 57848 | BO115: 57848 | BP115: 57848 | BQ115: 57848 | BR115: 57848 | BS115: 57848 | BT115: 57848 | BU115: 57848 | BV115: 57848 | BW115: 57848 | BX115: 57848 | BY115: 419133 | BZ115: 419133 | CA115: 419133 | CB115: 419133 | CC115: 419133 | CD115: 419133 | CE115: 419133 | CF115: 419133 | CG115: 419133 | CH115: 419133 | CI115: 419133 | CJ115: 419133 | CK115: 419133 | CL115: 671033 | CM115: 671033 | CN115: 671033 | CO115: 671033 | CP115: 671033 | CQ115: 671033 | CR115: 671033 | CS115: 671033 | CT115: 671033 | CU115: 671033 | CV115: 671033 | CW115: 671033 | CX115: 671033 | CY115: 671033 | CZ115: 671033 | DA115: 671033 | DB115: 671033 | DC115: 671033 | DD115: 671033 | DE115: 671033 | DF115: 671033 | DG115: 671033 | DH115: 671033 | DI115: 671033 | DJ115: 671033 | DK115: 671033 | DL115: 671033 | DM115: 671033 | DN115: 671033 | DO115: 671033 | DP115: 671033 | DQ115: 671033 | DR115: 671033 | DS115: 671033 | DT115: 671033 | DU115: 671033 | DV115: 671033 | DW115: 671033 | DX115: 671033 | DY115: 671033 | DZ115: 671033 | EA115: 671033 | EB115: 671033 | ED115: 671033 | EF115: 671033 | EH115: 671033 | EJ115: 671033 | EL115: 671033 | EN115: 671033 | EP115: 671033 | ER115: 671033 | ET115: 671033 | EV115: 671033 | EX115: 671033 | EZ115: 671033 | FB115: 671033 | FE115: 671033 | FH115: 671033 | FJ115: 671033 | FL115: 671033 | FM115: -671033 | FN115: 0 | FO115: 0 | FP115: 0 | FQ115: 0 | FR115: 0 | FS115: 0 | FT115: 0 | FU115: 0 | FV115: 0 | FW115: 0 | FX115: 0 | FY115: 0 | FZ115: 0 | GA115: 0 | GB115: 0 | GC115: 0 | GD115: 0 | GE115: 0 | GF115: 0 | GG115: 0 | GH115: 0 | GI115: 0 | GJ115: 0 | GK115: 0 | GL115: 0 | GM115: 0 | GN115: 0 | GO115: 0 | GP115: 0 | GQ115: 0 | GR115: 0 | GS115: 0 | GT115: 0 | GU115: 0 | GV115: 0 | GW115: 0 | GX115: 0 | GY115: 0 | GZ115: 0 | HA115: 0 | HB115: 0 | HC115: 0 | HD115: 0 | HE115: 0 | HF115: 0 | HG115: 0 | HH115: 0 | HI115: 0 | HJ115: 0 | HK115: 0 | HL115: 0 | HM115: 0 | HN115: 0 | HO115: 0 | HP115: 0 | HQ115: 0 | HR115: 0 | HS115: 0 | HT115: 0 | HU115: 0 | HV115: 0 | HW115: 0 | HX115: 0 | HY115: 0 | HZ115: 0 | IA115: 0 | IB115: 0 | IC115: 0 | ID115: 0 | IE115: 0 | IF115: 0 | IG115: 0 | IH115: 0 | II115: 0 | IJ115: 0 | IK115: 0 | IL115: 0 | IM115: 0 | IN115: 0 | IO115: 0 | IP115: 0
B116: 18230831 - PCA YR#6 - 2007 | AR116: 375740 | AS116: 12498214 | AT116: 13543872 | AU116: -1654690 | AV116: -19309351 | AW116: -25991752 | AX116: -40399280 | AY116: -43621799 | AZ116: -41473752 | BA116: -36998177 | BB116: -32933826 | BC116: -26594047 | BD116: -26594047 | BE116: -26594047 | BF116: -26594047 | BG116: -26594047 | BH116: -26594047 | BI116: -26594047 | BJ116: -26594047 | BK116: -26594047 | BL116: -26594047 | BM116: -26594047 | BN116: -26594047 | BO116: -26594047 | BP116: -26594047 | BQ116: -26594047 | BR116: -26594047 | BS116: -26594047 | BT116: -26594047 | BU116: -26594047 | BV116: -26594047 | BW116: -26594047 | BX116: -26594047 | BY116: -27863275 | BZ116: -27863275 | CA116: -27863275 | CB116: -27863275 | CC116: -27863275 | CD116: -29487684 | CE116: -29487684 | CF116: -29487684 | CG116: -29487684 | CH116: -29487684 | CI116: -29487684 | CJ116: -29487684 | CK116: -29487684 | CL116: -30212669 | CM116: -30212669 | CN116: -30212669 | CO116: -30212669 | CP116: -30212669 | CQ116: -30212669 | CR116: -30212669 | CS116: -30212669 | CT116: -30212669 | CU116: -30212669 | CV116: -30212669 | CW116: -30212669 | CX116: -30212669 | CY116: -30212669 | CZ116: -30212669 | DA116: -30212669 | DB116: -30212669 | DC116: -30212669 | DD116: -30212669 | DE116: -30212669 | DF116: -30212669 | DG116: -30212669 | DH116: -30212669 | DI116: -30212669 | DJ116: -30212669 | DK116: -30212669 | DL116: -30212669 | DM116: -30212669 | DN116: -30212669 | DO116: -30212669 | DP116: -30212669 | DQ116: -30212669 | DR116: -30212669 | DS116: -30212669 | DT116: -30212669 | DU116: -30212669 | DV116: -30212669 | DW116: -30212669 | DX116: -30212669 | DY116: -30212669 | DZ116: -30212669 | EA116: -30212669 | EB116: -30212669 | ED116: -30212669 | EF116: -30212669 | EH116: -30212669 | EJ116: -30212669 | EL116: -30212669 | EN116: -30212669 | EP116: -30212669 | ER116: -30212669 | ET116: -30212669 | EV116: -30212669 | EX116: -30212669 | EZ116: -30212669 | FB116: -30212669 | FE116: -30212669 | FH116: -30212669 | FJ116: -30212669 | FL116: -30212669 | FM116: 30212669 | FN116: 0 | FO116: 0 | FP116: 0 | FQ116: 0 | FR116: 0 | FS116: 0 | FT116: 0 | FU116: 0 | FV116: 0 | FW116: 0 | FX116: 0 | FY116: 0 | FZ116: 0 | GA116: 0 | GB116: 0 | GC116: 0 | GD116: 0 | GE116: 0 | GF116: 0 | GG116: 0 | GH116: 0 | GI116: 0 | GJ116: 0 | GK116: 0 | GL116: 0 | GM116: 0 | GN116: 0 | GO116: 0 | GP116: 0 | GQ116: 0 | GR116: 0 | GS116: 0 | GT116: 0 | GU116: 0 | GV116: 0 | GW116: 0 | GX116: 0 | GY116: 0 | GZ116: 0 | HA116: 0 | HB116: 0 | HC116: 0 | HD116: 0 | HE116: 0 | HF116: 0 | HG116: 0 | HH116: 0 | HI116: 0 | HJ116: 0 | HK116: 0 | HL116: 0 | HM116: 0 | HN116: 0 | HO116: 0 | HP116: 0 | HQ116: 0 | HR116: 0 | HS116: 0 | HT116: 0 | HU116: 0 | HV116: 0 | HW116: 0 | HX116: 0 | HY116: 0 | HZ116: 0 | IA116: 0 | IB116: 0 | IC116: 0 | ID116: 0 | IE116: 0 | IF116: 0 | IG116: 0 | IH116: 0 | II116: 0 | IJ116: 0 | IK116: 0 | IL116: 0 | IM116: 0 | IN116: 0 | IO116: 0 | IP116: 0
B117: 18230841 - PCA YR#6 - 2007 | AR117: -375740 | AS117: -12498214 | AT117: -13543872 | AU117: 1654690 | AV117: 19309351 | AW117: 25991752 | AX117: 40399280 | AY117: 43621799 | AZ117: 41473752 | BA117: 36998177 | BB117: 32933826 | BC117: 26594047 | BD117: 26594047 | BE117: 26594047 | BF117: 26594047 | BG117: 26594047 | BH117: 26594047 | BI117: 26594047 | BJ117: 26594047 | BK117: 26594047 | BL117: 26594047 | BM117: 26594047 | BN117: 26594047 | BO117: 26594047 | BP117: 26594047 | BQ117: 26594047 | BR117: 26594047 | BS117: 26594047 | BT117: 26594047 | BU117: 26594047 | BV117: 26594047 | BW117: 26594047 | BX117: 26594047 | BY117: 27863275 | BZ117: 27863275 | CA117: 27863275 | CB117: 27863275 | CC117: 27863275 | CD117: 29487684 | CE117: 29487684 | CF117: 29487684 | CG117: 29487684 | CH117: 29487684 | CI117: 29487684 | CJ117: 29487684 | CK117: 29487684 | CL117: 30212669 | CM117: 30212669 | CN117: 30212669 | CO117: 30212669 | CP117: 30212669 | CQ117: 30212669 | CR117: 30212669 | CS117: 30212669 | CT117: 30212669 | CU117: 30212669 | CV117: 30212669 | CW117: 30212669 | CX117: 30212669 | CY117: 30212669 | CZ117: 30212669 | DA117: 30212669 | DB117: 30212669 | DC117: 30212669 | DD117: 30212669 | DE117: 30212669 | DF117: 30212669 | DG117: 30212669 | DH117: 30212669 | DI117: 30212669 | DJ117: 30212669 | DK117: 30212669 | DL117: 30212669 | DM117: 30212669 | DN117: 30212669 | DO117: 30212669 | DP117: 30212669 | DQ117: 30212669 | DR117: 30212669 | DS117: 30212669 | DT117: 30212669 | DU117: 30212669 | DV117: 30212669 | DW117: 30212669 | DX117: 30212669 | DY117: 30212669 | DZ117: 30212669 | EA117: 30212669 | EB117: 30212669 | ED117: 30212669 | EF117: 30212669 | EH117: 30212669 | EJ117: 30212669 | EL117: 30212669 | EN117: 30212669 | EP117: 30212669 | ER117: 30212669 | ET117: 30212669 | EV117: 30212669 | EX117: 30212669 | EZ117: 30212669 | FB117: 30212669 | FE117: 30212669 | FH117: 30212669 | FJ117: 30212669 | FL117: 30212669 | FM117: -30212669 | FN117: 0 | FO117: 0 | FP117: 0 | FQ117: 0 | FR117: 0 | FS117: 0 | FT117: 0 | FU117: 0 | FV117: 0 | FW117: 0 | FX117: 0 | FY117: 0 | FZ117: 0 | GA117: 0 | GB117: 0 | GC117: 0 | GD117: 0 | GE117: 0 | GF117: 0 | GG117: 0 | GH117: 0 | GI117: 0 | GJ117: 0 | GK117: 0 | GL117: 0 | GM117: 0 | GN117: 0 | GO117: 0 | GP117: 0 | GQ117: 0 | GR117: 0 | GS117: 0 | GT117: 0 | GU117: 0 | GV117: 0 | GW117: 0 | GX117: 0 | GY117: 0 | GZ117: 0 | HA117: 0 | HB117: 0 | HC117: 0 | HD117: 0 | HE117: 0 | HF117: 0 | HG117: 0 | HH117: 0 | HI117: 0 | HJ117: 0 | HK117: 0 | HL117: 0 | HM117: 0 | HN117: 0 | HO117: 0 | HP117: 0 | HQ117: 0 | HR117: 0 | HS117: 0 | HT117: 0 | HU117: 0 | HV117: 0 | HW117: 0 | HX117: 0 | HY117: 0 | HZ117: 0 | IA117: 0 | IB117: 0 | IC117: 0 | ID117: 0 | IE117: 0 | IF117: 0 | IG117: 0 | IH117: 0 | II117: 0 | IJ117: 0 | IK117: 0 | IL117: 0 | IM117: 0 | IN117: 0 | IO117: 0 | IP117: 0
B118: 18230851 - PCA YR#7 - 2008 | BD118: -2058547 | BE118: 725059 | BF118: 2464320 | BG118: 25353 | BH118: -20830649 | BI118: -28856771 | BJ118: -37888021 | BK118: -34983534 | BL118: -22179979 | BM118: -14707554 | BN118: -11445120 | BO118: 1194774 | BP118: 1194774 | BQ118: 1194774 | BR118: 1194774 | BS118: 1194774 | BT118: 1194774 | BU118: 1194774 | BV118: 1194774 | BW118: 1194774 | BX118: 1194774 | BY118: -502152 | BZ118: -502152 | CA118: -502152 | CB118: -502152 | CC118: -502152 | CD118: -502152 | CE118: -502152 | CF118: -502152 | CG118: -502152 | CH118: -502152 | CI118: -502152 | CJ118: -502152 | CK118: -502152 | CL118: -1644369 | CM118: -1644369 | CN118: -1644369 | CO118: -1644369 | CP118: -1644369 | CQ118: -1644369 | CR118: -1644369 | CS118: -1644369 | CT118: -1644369 | CU118: -1644369 | CV118: -1764924 | CW118: -1764924 | CX118: -1764924 | CY118: -1764924 | CZ118: -1764924 | DA118: -1764924 | DB118: -1764924 | DC118: -1764924 | DD118: -1764924 | DE118: -1764924 | DF118: -1764924 | DG118: -1764924 | DH118: -1764924 | DI118: -1764924 | DJ118: -1764924 | DK118: -1764924 | DL118: -1764924 | DM118: -1764924 | DN118: -1764924 | DO118: -1764924 | DP118: -1764924 | DQ118: -1764924 | DR118: -1764924 | DS118: -1764924 | DT118: -1764924 | DU118: -1764924 | DV118: -1764924 | DW118: -1764924 | DX118: -1764924 | DY118: -1764924 | DZ118: -1764924 | EA118: -1764924 | EB118: -1764924 | ED118: -1764924 | EF118: -1764924 | EH118: -1764924 | EJ118: -1764924 | EL118: -1764924 | EN118: -1764924 | EP118: -1764924 | ER118: -1764924 | ET118: -1764924 | EV118: -1764924 | EX118: -1764924 | EZ118: -1764924 | FB118: -1764924 | FE118: -1764924 | FH118: -1764924 | FJ118: -1764924 | FL118: -1764924 | FM118: 1764924 | FN118: 0 | FO118: 0 | FP118: 0 | FQ118: 0 | FR118: 0 | FS118: 0 | FT118: 0 | FU118: 0 | FV118: 0 | FW118: 0 | FX118: 0 | FY118: 0 | FZ118: 0 | GA118: 0 | GB118: 0 | GC118: 0 | GD118: 0 | GE118: 0 | GF118: 0 | GG118: 0 | GH118: 0 | GI118: 0 | GJ118: 0 | GK118: 0 | GL118: 0 | GM118: 0 | GN118: 0 | GO118: 0 | GP118: 0 | GQ118: 0 | GR118: 0 | GS118: 0 | GT118: 0 | GU118: 0 | GV118: 0 | GW118: 0 | GX118: 0 | GY118: 0 | GZ118: 0 | HA118: 0 | HB118: 0 | HC118: 0 | HD118: 0 | HE118: 0 | HF118: 0 | HG118: 0 | HH118: 0 | HI118: 0 | HJ118: 0 | HK118: 0 | HL118: 0 | HM118: 0 | HN118: 0 | HO118: 0 | HP118: 0 | HQ118: 0 | HR118: 0 | HS118: 0 | HT118: 0 | HU118: 0 | HV118: 0 | HW118: 0 | HX118: 0 | HY118: 0 | HZ118: 0 | IA118: 0 | IB118: 0 | IC118: 0 | ID118: 0 | IE118: 0 | IF118: 0 | IG118: 0 | IH118: 0 | II118: 0 | IJ118: 0 | IK118: 0 | IL118: 0 | IM118: 0 | IN118: 0 | IO118: 0 | IP118: 0
B119: 18230861 - PCA YR#7 - 2008 | BD119: 2058547 | BE119: -725059 | BF119: -2464320 | BG119: -25353 | BH119: 20830649 | BI119: 28856771 | BJ119: 37888021 | BK119: 34983534 | BL119: 22179979 | BM119: 14707554 | BN119: 11445120 | BO119: -1194774 | BP119: -1194774 | BQ119: -1194774 | BR119: -1194774 | BS119: -1194774 | BT119: -1194774 | BU119: -1194774 | BV119: -1194774 | BW119: -1194774 | BX119: -1194774 | BY119: 502152 | BZ119: 502152 | CA119: 502152 | CB119: 502152 | CC119: 502152 | CD119: 502152 | CE119: 502152 | CF119: 502152 | CG119: 502152 | CH119: 502152 | CI119: 502152 | CJ119: 502152 | CK119: 502152 | CL119: 1644369 | CM119: 1644369 | CN119: 1644369 | CO119: 1644369 | CP119: 1644369 | CQ119: 1644369 | CR119: 1644369 | CS119: 1644369 | CT119: 1644369 | CU119: 1644369 | CV119: 1764924 | CW119: 1764924 | CX119: 1764924 | CY119: 1764924 | CZ119: 1764924 | DA119: 1764924 | DB119: 1764924 | DC119: 1764924 | DD119: 1764924 | DE119: 1764924 | DF119: 1764924 | DG119: 1764924 | DH119: 1764924 | DI119: 1764924 | DJ119: 1764924 | DK119: 1764924 | DL119: 1764924 | DM119: 1764924 | DN119: 1764924 | DO119: 1764924 | DP119: 1764924 | DQ119: 1764924 | DR119: 1764924 | DS119: 1764924 | DT119: 1764924 | DU119: 1764924 | DV119: 1764924 | DW119: 1764924 | DX119: 1764924 | DY119: 1764924 | DZ119: 1764924 | EA119: 1764924 | EB119: 1764924 | ED119: 1764924 | EF119: 1764924 | EH119: 1764924 | EJ119: 1764924 | EL119: 1764924 | EN119: 1764924 | EP119: 1764924 | ER119: 1764924 | ET119: 1764924 | EV119: 1764924 | EX119: 1764924 | EZ119: 1764924 | FB119: 1764924 | FE119: 1764924 | FH119: 1764924 | FJ119: 1764924 | FL119: 1764924 | FM119: -1764924 | FN119: 0 | FO119: 0 | FP119: 0 | FQ119: 0 | FR119: 0 | FS119: 0 | FT119: 0 | FU119: 0 | FV119: 0 | FW119: 0 | FX119: 0 | FY119: 0 | FZ119: 0 | GA119: 0 | GB119: 0 | GC119: 0 | GD119: 0 | GE119: 0 | GF119: 0 | GG119: 0 | GH119: 0 | GI119: 0 | GJ119: 0 | GK119: 0 | GL119: 0 | GM119: 0 | GN119: 0 | GO119: 0 | GP119: 0 | GQ119: 0 | GR119: 0 | GS119: 0 | GT119: 0 | GU119: 0 | GV119: 0 | GW119: 0 | GX119: 0 | GY119: 0 | GZ119: 0 | HA119: 0 | HB119: 0 | HC119: 0 | HD119: 0 | HE119: 0 | HF119: 0 | HG119: 0 | HH119: 0 | HI119: 0 | HJ119: 0 | HK119: 0 | HL119: 0 | HM119: 0 | HN119: 0 | HO119: 0 | HP119: 0 | HQ119: 0 | HR119: 0 | HS119: 0 | HT119: 0 | HU119: 0 | HV119: 0 | HW119: 0 | HX119: 0 | HY119: 0 | HZ119: 0 | IA119: 0 | IB119: 0 | IC119: 0 | ID119: 0 | IE119: 0 | IF119: 0 | IG119: 0 | IH119: 0 | II119: 0 | IJ119: 0 | IK119: 0 | IL119: 0 | IM119: 0 | IN119: 0 | IO119: 0 | IP119: 0
B120: 18230871 - PCA YR#8 - 2009 | BP120: -9987655 | BQ120: -4567886 | BR120: -4236659 | BS120: -7522648 | BT120: -20133402 | BU120: -20856556 | BV120: -23400263 | BW120: -21941616 | BX120: -9572640 | BY120: 8683457 | BZ120: 17146936 | CA120: 32198327 | CB120: 32198327 | CC120: 32198327 | CD120: 32198327 | CE120: 32198327 | CF120: 32198327 | CG120: 32198327 | CH120: 32198327 | CI120: 32198327 | CJ120: 32198327 | CK120: 32198327 | CL120: 31306606 | CM120: 31306606 | CN120: 31306606 | CO120: 31306606 | CP120: 30464157 | CQ120: 30464157 | CR120: 30464157 | CS120: 30464157 | CT120: 30464157 | CU120: 30464157 | CV120: 30270096 | CW120: 30270096 | CX120: 30270096 | CY120: 30270096 | CZ120: 30270096 | DA120: 30270096 | DB120: 30270096 | DC120: 30270096 | DD120: 30270096 | DE120: 30270096 | DF120: 30270096 | DG120: 30270096 | DH120: 30270096 | DI120: 30270096 | DJ120: 30270096 | DK120: 30270096 | DL120: 30270096 | DM120: 30270096 | DN120: 30270096 | DO120: 30270096 | DP120: 30270096 | DQ120: 30270096 | DR120: 30270096 | DS120: 30270096 | DT120: 30270096 | DU120: 30270096 | DV120: 30270096 | DW120: 30270096 | DX120: 30270096 | DY120: 30270096 | DZ120: 30270096 | EA120: 30270096 | EB120: 30270096 | ED120: 30270096 | EF120: 30270096 | EH120: 30270096 | EJ120: 30270096 | EL120: 30270096 | EN120: 30270096 | EP120: 30270096 | ER120: 30270096 | ET120: 30270096 | EV120: 30270096 | EX120: 30270096 | EZ120: 30270096 | FB120: 30270096 | FE120: 30270096 | FH120: 30270096 | FJ120: 30270096 | FL120: 30270096 | FM120: -30270096 | FN120: 0 | FO120: 0 | FP120: 0 | FQ120: 0 | FR120: 0 | FS120: 0 | FT120: 0 | FU120: 0 | FV120: 0 | FW120: 0 | FX120: 0 | FY120: 0 | FZ120: 0 | GA120: 0 | GB120: 0 | GC120: 0 | GD120: 0 | GE120: 0 | GF120: 0 | GG120: 0 | GH120: 0 | GI120: 0 | GJ120: 0 | GK120: 0 | GL120: 0 | GM120: 0 | GN120: 0 | GO120: 0 | GP120: 0 | GQ120: 0 | GR120: 0 | GS120: 0 | GT120: 0 | GU120: 0 | GV120: 0 | GW120: 0 | GX120: 0 | GY120: 0 | GZ120: 0 | HA120: 0 | HB120: 0 | HC120: 0 | HD120: 0 | HE120: 0 | HF120: 0 | HG120: 0 | HH120: 0 | HI120: 0 | HJ120: 0 | HK120: 0 | HL120: 0 | HM120: 0 | HN120: 0 | HO120: 0 | HP120: 0 | HQ120: 0 | HR120: 0 | HS120: 0 | HT120: 0 | HU120: 0 | HV120: 0 | HW120: 0 | HX120: 0 | HY120: 0 | HZ120: 0 | IA120: 0 | IB120: 0 | IC120: 0 | ID120: 0 | IE120: 0 | IF120: 0 | IG120: 0 | IH120: 0 | II120: 0 | IJ120: 0 | IK120: 0 | IL120: 0 | IM120: 0 | IN120: 0 | IO120: 0 | IP120: 0
B121: 18230881 - PCA YR#8 - 2009 | BP121: 9987655 | BQ121: 4567886 | BR121: 4236659 | BS121: 7522648 | BT121: 20133402 | BU121: 20856556 | BV121: 23400263 | BW121: 21941616 | BX121: 9572640 | BY121: -8683457 | BZ121: -17146936 | CA121: -32198327 | CB121: -32198327 | CC121: -32198327 | CD121: -32198327 | CE121: -32198327 | CF121: -32198327 | CG121: -32198327 | CH121: -32198327 | CI121: -32198327 | CJ121: -32198327 | CK121: -32198327 | CL121: -31306606 | CM121: -31306606 | CN121: -31306606 | CO121: -31306606 | CP121: -30464157 | CQ121: -30464157 | CR121: -30464157 | CS121: -30464157 | CT121: -30464157 | CU121: -30464157 | CV121: -30270096 | CW121: -30270096 | CX121: -30270096 | CY121: -30270096 | CZ121: -30270096 | DA121: -30270096 | DB121: -30270096 | DC121: -30270096 | DD121: -30270096 | DE121: -30270096 | DF121: -30270096 | DG121: -30270096 | DH121: -30270096 | DI121: -30270096 | DJ121: -30270096 | DK121: -30270096 | DL121: -30270096 | DM121: -30270096 | DN121: -30270096 | DO121: -30270096 | DP121: -30270096 | DQ121: -30270096 | DR121: -30270096 | DS121: -30270096 | DT121: -30270096 | DU121: -30270096 | DV121: -30270096 | DW121: -30270096 | DX121: -30270096 | DY121: -30270096 | DZ121: -30270096 | EA121: -30270096 | EB121: -30270096 | ED121: -30270096 | EF121: -30270096 | EH121: -30270096 | EJ121: -30270096 | EL121: -30270096 | EN121: -30270096 | EP121: -30270096 | ER121: -30270096 | ET121: -30270096 | EV121: -30270096 | EX121: -30270096 | EZ121: -30270096 | FB121: -30270096 | FE121: -30270096 | FH121: -30270096 | FJ121: -30270096 | FL121: -30270096 | FM121: 30270096 | FN121: 0 | FO121: 0 | FP121: 0 | FQ121: 0 | FR121: 0 | FS121: 0 | FT121: 0 | FU121: 0 | FV121: 0 | FW121: 0 | FX121: 0 | FY121: 0 | FZ121: 0 | GA121: 0 | GB121: 0 | GC121: 0 | GD121: 0 | GE121: 0 | GF121: 0 | GG121: 0 | GH121: 0 | GI121: 0 | GJ121: 0 | GK121: 0 | GL121: 0 | GM121: 0 | GN121: 0 | GO121: 0 | GP121: 0 | GQ121: 0 | GR121: 0 | GS121: 0 | GT121: 0 | GU121: 0 | GV121: 0 | GW121: 0 | GX121: 0 | GY121: 0 | GZ121: 0 | HA121: 0 | HB121: 0 | HC121: 0 | HD121: 0 | HE121: 0 | HF121: 0 | HG121: 0 | HH121: 0 | HI121: 0 | HJ121: 0 | HK121: 0 | HL121: 0 | HM121: 0 | HN121: 0 | HO121: 0 | HP121: 0 | HQ121: 0 | HR121: 0 | HS121: 0 | HT121: 0 | HU121: 0 | HV121: 0 | HW121: 0 | HX121: 0 | HY121: 0 | HZ121: 0 | IA121: 0 | IB121: 0 | IC121: 0 | ID121: 0 | IE121: 0 | IF121: 0 | IG121: 0 | IH121: 0 | II121: 0 | IJ121: 0 | IK121: 0 | IL121: 0 | IM121: 0 | IN121: 0 | IO121: 0 | IP121: 0
B122: 18230891 - PCA YR#9 - 2010 | CB122: 8796895 | CC122: 25175319 | CD122: 36337550 | CE122: 30706546 | CF122: 17208124 | CG122: 26599274 | CH122: 19034567 | CI122: 15034995 | CJ122: 23366713 | CK122: 28545242 | CL122: 29274857 | CM122: 38312461 | CN122: 38312461 | CO122: 38312461 | CP122: 37095681 | CQ122: 37095681 | CR122: 37095681 | CS122: 37095681 | CT122: 37095681 | CU122: 37095681 | CV122: 36163528 | CW122: 36163528 | CX122: 36163528 | CY122: 36163528 | CZ122: 36163528 | DA122: 36163528 | DB122: 36163528 | DC122: 36163528 | DD122: 36163528 | DE122: 36163528 | DF122: 36163528 | DG122: 36163528 | DH122: 36163528 | DI122: 36163528 | DJ122: 36163528 | DK122: 36163528 | DL122: 36163528 | DM122: 36163528 | DN122: 36163528 | DO122: 36163528 | DP122: 36163528 | DQ122: 36163528 | DR122: 36163528 | DS122: 36163528 | DT122: 36163528 | DU122: 36163528 | DV122: 36163528 | DW122: 36163528 | DX122: 36163528 | DY122: 36163528 | DZ122: 36163528 | EA122: 36163528 | EB122: 36163528 | ED122: 36163528 | EF122: 36163528 | EH122: 36163528 | EJ122: 36163528 | EL122: 36163528 | EN122: 36163528 | EP122: 36163528 | ER122: 36163528 | ET122: 36163528 | EV122: 36163528 | EX122: 36163528 | EZ122: 36163528 | FB122: 36163528 | FE122: 36163528 | FH122: 36163528 | FJ122: 36163528 | FL122: 36163528 | FM122: -36163528 | FN122: 0 | FO122: 0 | FP122: 0 | FQ122: 0 | FR122: 0 | FS122: 0 | FT122: 0 | FU122: 0 | FV122: 0 | FW122: 0 | FX122: 0 | FY122: 0 | FZ122: 0 | GA122: 0 | GB122: 0 | GC122: 0 | GD122: 0 | GE122: 0 | GF122: 0 | GG122: 0 | GH122: 0 | GI122: 0 | GJ122: 0 | GK122: 0 | GL122: 0 | GM122: 0 | GN122: 0 | GO122: 0 | GP122: 0 | GQ122: 0 | GR122: 0 | GS122: 0 | GT122: 0 | GU122: 0 | GV122: 0 | GW122: 0 | GX122: 0 | GY122: 0 | GZ122: 0 | HA122: 0 | HB122: 0 | HC122: 0 | HD122: 0 | HE122: 0 | HF122: 0 | HG122: 0 | HH122: 0 | HI122: 0 | HJ122: 0 | HK122: 0 | HL122: 0 | HM122: 0 | HN122: 0 | HO122: 0 | HP122: 0 | HQ122: 0 | HR122: 0 | HS122: 0 | HT122: 0 | HU122: 0 | HV122: 0 | HW122: 0 | HX122: 0 | HY122: 0 | HZ122: 0 | IA122: 0 | IB122: 0 | IC122: 0 | ID122: 0 | IE122: 0 | IF122: 0 | IG122: 0 | IH122: 0 | II122: 0 | IJ122: 0 | IK122: 0 | IL122: 0 | IM122: 0 | IN122: 0 | IO122: 0 | IP122: 0
B123: 18230981 - PCA YR#9 - 2010 | CB123: -8796895 | CC123: -25175319 | CD123: -36337550 | CE123: -30706546 | CF123: -17208124 | CG123: -26599274 | CH123: -19034567 | CI123: -15034995 | CJ123: -23366713 | CK123: -28545242 | CL123: -29274857 | CM123: -38312461 | CN123: -38312461 | CO123: -38312461 | CP123: -37095681 | CQ123: -37095681 | CR123: -37095681 | CS123: -37095681 | CT123: -37095681 | CU123: -37095681 | CV123: -36163528 | CW123: -36163528 | CX123: -36163528 | CY123: -36163528 | CZ123: -36163528 | DA123: -36163528 | DB123: -36163528 | DC123: -36163528 | DD123: -36163528 | DE123: -36163528 | DF123: -36163528 | DG123: -36163528 | DH123: -36163528 | DI123: -36163528 | DJ123: -36163528 | DK123: -36163528 | DL123: -36163528 | DM123: -36163528 | DN123: -36163528 | DO123: -36163528 | DP123: -36163528 | DQ123: -36163528 | DR123: -36163528 | DS123: -36163528 | DT123: -36163528 | DU123: -36163528 | DV123: -36163528 | DW123: -36163528 | DX123: -36163528 | DY123: -36163528 | DZ123: -36163528 | EA123: -36163528 | EB123: -36163528 | ED123: -36163528 | EF123: -36163528 | EH123: -36163528 | EJ123: -36163528 | EL123: -36163528 | EN123: -36163528 | EP123: -36163528 | ER123: -36163528 | ET123: -36163528 | EV123: -36163528 | EX123: -36163528 | EZ123: -36163528 | FB123: -36163528 | FE123: -36163528 | FH123: -36163528 | FJ123: -36163528 | FL123: -36163528 | FM123: 36163528 | FN123: 0 | FO123: 0 | FP123: 0 | FQ123: 0 | FR123: 0 | FS123: 0 | FT123: 0 | FU123: 0 | FV123: 0 | FW123: 0 | FX123: 0 | FY123: 0 | FZ123: 0 | GA123: 0 | GB123: 0 | GC123: 0 | GD123: 0 | GE123: 0 | GF123: 0 | GG123: 0 | GH123: 0 | GI123: 0 | GJ123: 0 | GK123: 0 | GL123: 0 | GM123: 0 | GN123: 0 | GO123: 0 | GP123: 0 | GQ123: 0 | GR123: 0 | GS123: 0 | GT123: 0 | GU123: 0 | GV123: 0 | GW123: 0 | GX123: 0 | GY123: 0 | GZ123: 0 | HA123: 0 | HB123: 0 | HC123: 0 | HD123: 0 | HE123: 0 | HF123: 0 | HG123: 0 | HH123: 0 | HI123: 0 | HJ123: 0 | HK123: 0 | HL123: 0 | HM123: 0 | HN123: 0 | HO123: 0 | HP123: 0 | HQ123: 0 | HR123: 0 | HS123: 0 | HT123: 0 | HU123: 0 | HV123: 0 | HW123: 0 | HX123: 0 | HY123: 0 | HZ123: 0 | IA123: 0 | IB123: 0 | IC123: 0 | ID123: 0 | IE123: 0 | IF123: 0 | IG123: 0 | IH123: 0 | II123: 0 | IJ123: 0 | IK123: 0 | IL123: 0 | IM123: 0 | IN123: 0 | IO123: 0 | IP123: 0
B124: 18231051 - PCA YR#10 - 2011 | CN124: -3514335 | CO124: -252094 | CP124: -4382550 | CQ124: -15710111 | CR124: -31713808 | CS124: -28334742 | CT124: -38268817 | CU124: -45993305 | CV124: -43451297 | CW124: -39613210 | CX124: -37286355 | CY124: -34827817 | CZ124: -34827817 | DA124: -34827817 | DB124: -34827817 | DC124: -34827817 | DD124: -34827817 | DE124: -34827817 | DF124: -34827817 | DG124: -34827817 | DH124: -34827817 | DI124: -34827817 | DJ124: -34827817 | DK124: -34827817 | DL124: -34827817 | DM124: -34827817 | DN124: -34827817 | DO124: -34827817 | DP124: -34827817 | DQ124: -34827817 | DR124: -34827817 | DS124: -34827817 | DT124: -34827817 | DU124: -34827817 | DV124: -34827817 | DW124: -34827817 | DX124: -34827817 | DY124: -34827817 | DZ124: -34827817 | EA124: -34827817 | EB124: -34827817 | ED124: -34827817 | EF124: -34827817 | EH124: -34827817 | EJ124: -34827817 | EL124: -34827817 | EN124: -34827817 | EP124: -34827817 | ER124: -34827817 | ET124: -34827817 | EV124: -34827817 | EX124: -34827817 | EZ124: -34827817 | FB124: -34827817 | FE124: -34827817 | FH124: -34827817 | FJ124: -34827817 | FL124: -34827817 | FN124: -34827817 | FP124: -34827817 | FQ124: 0 | FR124: -34827817 | FS124: 0 | FT124: -34827817 | FU124: 0 | FV124: -34827817 | FW124: 0 | FX124: =FW124+FV124 -> -34827817 | FY124: 0 | FZ124: =FY124+FX124 -> -34827817 | GA124: 0 | GB124: =GA124+FZ124 -> -34827817 | GC124: 0 | GD124: =GC124+GB124 -> -34827817 | GE124: 0 | GF124: =GE124+GD124 -> -34827817 | GG124: 0 | GH124: =GG124+GF124 -> -34827817 | GI124: 0 | GJ124: =GI124+GH124 -> -34827817 | GK124: 0 | GL124: -34827817 | GM124: 0 | GN124: -34827817 | GO124: 0 | GP124: -34827817 | GQ124: 0 | GR124: -34827817 | GS124: 0 | GT124: -34827817 | GU124: 0 | GV124: -34827817 | GW124: 0 | GX124: -34827817 | GY124: 0 | GZ124: -34827817 | HA124: 0 | HB124: -34827817 | HC124: 0 | HD124: -34827817 | HE124: 0 | HF124: -34827817 | HG124: 0 | HH124: -34827817 | HI124: 0 | HJ124: -34827817 | HK124: 0 | HL124: -34827817 | HM124: 0 | HN124: -34827817 | HO124: 0 | HP124: -34827817 | HQ124: 0 | HR124: -34827817 | HS124: 0 | HT124: -34827817 | HU124: 0 | HV124: -34827817 | HW124: 0 | HX124: -34827817 | HY124: 0 | HZ124: -34827817 | IA124: 0 | IB124: -34827817 | IC124: 0 | ID124: -34827817 | IE124: 0 | IF124: -34827817 | IG124: 0 | IH124: -34827817 | II124: 0 | IJ124: -34827817 | IK124: 0 | IL124: -34827817 | IM124: 0 | IN124: -34827817 | IO124: 0 | IP124: -34827817
B125: 18231061 - PCA YR#10 - 2011 | CN125: 3514335 | CO125: 252094 | CP125: 4382550 | CQ125: 15710111 | CR125: 31713808 | CS125: 28334742 | CT125: 38268817 | CU125: 45993305 | CV125: 43451297 | CW125: 39613210 | CX125: 37286355 | CY125: 34827817 | CZ125: 34827817 | DA125: 34827817 | DB125: 34827817 | DC125: 34827817 | DD125: 34827817 | DE125: 34827817 | DF125: 34827817 | DG125: 34827817 | DH125: 34827817 | DI125: 34827817 | DJ125: 34827817 | DK125: 34827817 | DL125: 34827817 | DM125: 34827817 | DN125: 34827817 | DO125: 34827817 | DP125: 34827817 | DQ125: 34827817 | DR125: 34827817 | DS125: 34827817 | DT125: 34827817 | DU125: 34827817 | DV125: 34827817 | DW125: 34827817 | DX125: 34827817 | DY125: 34827817 | DZ125: 34827817 | EA125: 34827817 | EB125: 34827817 | ED125: 34827817 | EF125: 34827817 | EH125: 34827817 | EJ125: 34827817 | EL125: 34827817 | EN125: 34827817 | EP125: 34827817 | ER125: 34827817 | ET125: 34827817 | EV125: 34827817 | EX125: 34827817 | EZ125: 34827817 | FB125: 34827817 | FE125: 34827817 | FH125: 34827817 | FJ125: 34827817 | FL125: 34827817 | FN125: 34827817 | FP125: 34827817 | FQ125: 0 | FR125: 34827817 | FS125: 0 | FT125: 34827817 | FU125: 0 | FV125: 34827817 | FW125: 0 | FX125: 34827817 | FY125: 0 | FZ125: =FY125+FX125 -> 34827817 | GA125: 0 | GB125: =GA125+FZ125 -> 34827817 | GC125: 0 | GD125: =GC125+GB125 -> 34827817 | GE125: 0 | GF125: =GE125+GD125 -> 34827817 | GG125: 0 | GH125: =GG125+GF125 -> 34827817 | GI125: 0 | GJ125: =GI125+GH125 -> 34827817 | GK125: 0 | GL125: 34827817 | GM125: 0 | GN125: 34827817 | GO125: 0 | GP125: 34827817 | GQ125: 0 | GR125: 34827817 | GS125: 0 | GT125: 34827817 | GU125: 0 | GV125: 34827817 | GW125: 0 | GX125: 34827817 | GY125: 0 | GZ125: 34827817 | HA125: 0 | HB125: 34827817 | HC125: 0 | HD125: 34827817 | HE125: 0 | HF125: 34827817 | HG125: 0 | HH125: 34827817 | HI125: 0 | HJ125: 34827817 | HK125: 0 | HL125: 34827817 | HM125: 0 | HN125: 34827817 | HO125: 0 | HP125: 34827817 | HQ125: 0 | HR125: 34827817 | HS125: 0 | HT125: 34827817 | HU125: 0 | HV125: 34827817 | HW125: 0 | HX125: 34827817 | HY125: 0 | HZ125: 34827817 | IA125: 0 | IB125: 34827817 | IC125: 0 | ID125: 34827817 | IE125: 0 | IF125: 34827817 | IG125: 0 | IH125: 34827817 | II125: 0 | IJ125: 34827817 | IK125: 0 | IL125: 34827817 | IM125: 0 | IN125: 34827817 | IO125: 0 | IP125: 34827817
B126: 18231081 - PCA YR#11 - 2012 | CZ126: -12523878 | DA126: -14952747 | DB126: -31577688 | DC126: -50732277 | DD126: -60311813 | DE126: -57991329 | DF126: -55856381 | DG126: -53756503 | DH126: -39876445 | DI126: -34904149 | DJ126: -26317427 | DK126: -25644564 | DL126: -25644564 | DM126: -25644564 | DN126: -25644564 | DO126: -25644564 | DP126: -25644564 | DQ126: -25644564 | DR126: -25644564 | DS126: -25644564 | DT126: -25644564 | DU126: -25644564 | DV126: -25644564 | DW126: -25644564 | DX126: -25644564 | DY126: -25644564 | DZ126: -25644564 | EA126: -25644564 | EB126: -25644564 | ED126: -25644564 | EF126: -25644564 | EH126: -25644564 | EJ126: -25644564 | EL126: -25644564 | EN126: -25644564 | EP126: -25644564 | ER126: -25644564 | ET126: -25644564 | EV126: -25644564 | EX126: -25644564 | EZ126: -25644564 | FB126: -25644564 | FE126: -25644564 | FH126: -25644564 | FJ126: -25644564 | FL126: -25644564 | FN126: -25644564 | FP126: -25644564 | FQ126: 0 | FR126: -25644564 | FS126: 0 | FT126: -25644564 | FU126: 0 | FV126: -25644564 | FW126: 0 | FX126: -25644564 | FY126: 0 | FZ126: -25644564 | GA126: 0 | GB126: -25644564 | GC126: 0 | GD126: -25644564 | GE126: 0 | GF126: -25644564 | GG126: 0 | GH126: -25644564 | GI126: 0 | GJ126: -25644564 | GK126: 0 | GL126: -25644564 | GM126: 0 | GN126: -25644564 | GO126: 0 | GP126: -25644564 | GQ126: 0 | GR126: -25644564 | GS126: 0 | GT126: -25644564 | GU126: 0 | GV126: -25644564 | GW126: 0 | GX126: -25644564 | GY126: 0 | GZ126: -25644564 | HA126: 0 | HB126: -25644564 | HC126: 0 | HD126: -25644564 | HE126: 0 | HF126: -25644564 | HG126: 0 | HH126: -25644564 | HI126: 0 | HJ126: -25644564 | HK126: 0 | HL126: -25644564 | HM126: 0 | HN126: -25644564 | HO126: 0 | HP126: -25644564 | HQ126: 0 | HR126: -25644564 | HS126: 0 | HT126: -25644564 | HU126: 0 | HV126: -25644564 | HW126: 0 | HX126: -25644564 | HY126: 0 | HZ126: -25644564 | IA126: 0 | IB126: -25644564 | IC126: 0 | ID126: -25644564 | IE126: 0 | IF126: -25644564 | IG126: 0 | IH126: -25644564 | II126: 0 | IJ126: -25644564 | IK126: 0 | IL126: -25644564 | IM126: 0 | IN126: -25644564 | IO126: 0 | IP126: -25644564
B127: 18231091 - PCA YR#11 - 2012 | CZ127: 12523878 | DA127: 14952747 | DB127: 31577688 | DC127: 50732277 | DD127: 60311813 | DE127: 57991329 | DF127: 55856381 | DG127: 53756503 | DH127: 39876445 | DI127: 34904149 | DJ127: 26317427 | DK127: 25644564 | DL127: 25644564 | DM127: 25644564 | DN127: 25644564 | DO127: 25644564 | DP127: 25644564 | DQ127: 25644564 | DR127: 25644564 | DS127: 25644564 | DT127: 25644564 | DU127: 25644564 | DV127: 25644564 | DW127: 25644564 | DX127: 25644564 | DY127: 25644564 | DZ127: 25644564 | EA127: 25644564 | EB127: 25644564 | ED127: 25644564 | EF127: 25644564 | EH127: 25644564 | EJ127: 25644564 | EL127: 25644564 | EN127: 25644564 | EP127: 25644564 | ER127: 25644564 | ET127: 25644564 | EV127: 25644564 | EX127: 25644564 | EZ127: 25644564 | FB127: 25644564 | FE127: 25644564 | FH127: 25644564 | FJ127: 25644564 | FL127: 25644564 | FN127: 25644564 | FP127: 25644564 | FQ127: 0 | FR127: 25644564 | FS127: 0 | FT127: 25644564 | FU127: 0 | FV127: 25644564 | FW127: 0 | FX127: 25644564 | FY127: 0 | FZ127: 25644564 | GA127: 0 | GB127: 25644564 | GC127: 0 | GD127: 25644564 | GE127: 0 | GF127: 25644564 | GG127: 0 | GH127: 25644564 | GI127: 0 | GJ127: 25644564 | GK127: 0 | GL127: 25644564 | GM127: 0 | GN127: 25644564 | GO127: 0 | GP127: 25644564 | GQ127: 0 | GR127: 25644564 | GS127: 0 | GT127: 25644564 | GU127: 0 | GV127: 25644564 | GW127: 0 | GX127: 25644564 | GY127: 0 | GZ127: 25644564 | HA127: 0 | HB127: 25644564 | HC127: 0 | HD127: 25644564 | HE127: 0 | HF127: 25644564 | HG127: 0 | HH127: 25644564 | HI127: 0 | HJ127: 25644564 | HK127: 0 | HL127: 25644564 | HM127: 0 | HN127: 25644564 | HO127: 0 | HP127: 25644564 | HQ127: 0 | HR127: 25644564 | HS127: 0 | HT127: 25644564 | HU127: 0 | HV127: 25644564 | HW127: 0 | HX127: 25644564 | HY127: 0 | HZ127: 25644564 | IA127: 0 | IB127: 25644564 | IC127: 0 | ID127: 25644564 | IE127: 0 | IF127: 25644564 | IG127: 0 | IH127: 25644564 | II127: 0 | IJ127: 25644564 | IK127: 0 | IL127: 25644564 | IM127: 0 | IN127: 25644564 | IO127: 0 | IP127: 25644564
B128: 18231141 - PCA YR#12 - 2013 | DL128: -11528918 | DM128: -11947248 | DN128: -15298760 | DO128: -28495362 | DP128: -36883528 | DQ128: -39014554 | DR128: -45458867 | DS128: -48906777 | DT128: -51305732 | DU128: -53541981 | DV128: -41998202 | DW128: -37811937 | DX128: -37811937 | DY128: -37811937 | DZ128: -37811937 | EA128: -37811937 | EB128: -37811937 | ED128: -37811937 | EF128: -37811937 | EH128: -37811937 | EJ128: -37811937 | EL128: -37811937 | EN128: -37811937 | EP128: -37811937 | ER128: -37811937 | ET128: -37811937 | EV128: -37811937 | EX128: -37811937 | EZ128: -37811937 | FB128: -37811937 | FE128: -37811937 | FH128: -37811937 | FJ128: -37811937 | FL128: -37811937 | FN128: -37811937 | FP128: -37811937 | FQ128: 0 | FR128: -37811937 | FS128: 0 | FT128: -37811937 | FU128: 0 | FV128: -37811937 | FW128: 0 | FX128: -37811937 | FY128: 0 | FZ128: -37811937 | GA128: 0 | GB128: -37811937 | GC128: 0 | GD128: -37811937 | GE128: -69438 | GF128: -37881375 | GG128: 0 | GH128: -37881375 | GI128: 0 | GJ128: -37881375 | GK128: 0 | GL128: -37881375 | GM128: 0 | GN128: -37881375 | GO128: 0 | GP128: -37881375 | GQ128: 0 | GR128: -37881375 | GS128: 0 | GT128: -37881375 | GU128: -157508 | GV128: -38038883 | GW128: 0 | GX128: -38038883 | GY128: 0 | GZ128: -38038883 | HA128: 0 | HB128: -38038883 | HC128: 0 | HD128: -38038883 | HE128: 0 | HF128: -38038883 | HG128: 0 | HH128: -38038883 | HI128: 0 | HJ128: -38038883 | HK128: 0 | HL128: -38038883 | HM128: 0 | HN128: -38038883 | HO128: 0 | HP128: -38038883 | HQ128: 0 | HR128: -38038883 | HS128: 0 | HT128: -38038883 | HU128: 0 | HV128: -38038883 | HW128: 0 | HX128: -38038883 | HY128: 0 | HZ128: -38038883 | IA128: 0 | IB128: -38038883 | IC128: 0 | ID128: -38038883 | IE128: 0 | IF128: -38038883 | IG128: 0 | IH128: -38038883 | II128: 0 | IJ128: -38038883 | IK128: 0 | IL128: -38038883 | IM128: 0 | IN128: -38038883 | IO128: 0 | IP128: -38038883
B129: 18231151 - PCA YR#12 - 2013 | DL129: 11528918 | DM129: 11947248 | DN129: 15298760 | DO129: 28495362 | DP129: 36883528 | DQ129: 39014554 | DR129: 45458867 | DS129: 48906777 | DT129: 51305732 | DU129: 53541981 | DV129: 41998202 | DW129: 37811937 | DX129: 37811937 | DY129: 37811937 | DZ129: 37811937 | EA129: 37811937 | EB129: 37811937 | ED129: 37811937 | EF129: 37811937 | EH129: 37811937 | EJ129: 37811937 | EL129: 37811937 | EN129: 37811937 | EP129: 37811937 | ER129: 37811937 | ET129: 37811937 | EV129: 37811937 | EX129: 37811937 | EZ129: 37811937 | FB129: 37811937 | FE129: 37811937 | FH129: 37811937 | FJ129: 37811937 | FL129: 37811937 | FN129: 37811937 | FP129: 37811937 | FQ129: 0 | FR129: 37811937 | FS129: 0 | FT129: 37811937 | FU129: 0 | FV129: 37811937 | FW129: 0 | FX129: 37811937 | FY129: 0 | FZ129: 37811937 | GA129: 0 | GB129: 37811937 | GC129: 0 | GD129: 37811937 | GE129: 69438 | GF129: 37881375 | GG129: 0 | GH129: 37881375 | GI129: 0 | GJ129: 37881375 | GK129: 0 | GL129: 37881375 | GM129: 0 | GN129: 37881375 | GO129: 0 | GP129: 37881375 | GQ129: 0 | GR129: 37881375 | GS129: 0 | GT129: 37881375 | GU129: 157508 | GV129: 38038883 | GW129: 0 | GX129: 38038883 | GY129: 0 | GZ129: 38038883 | HA129: 0 | HB129: 38038883 | HC129: 0 | HD129: 38038883 | HE129: 0 | HF129: 38038883 | HG129: 0 | HH129: 38038883 | HI129: 0 | HJ129: 38038883 | HK129: 0 | HL129: 38038883 | HM129: 0 | HN129: 38038883 | HO129: 0 | HP129: 38038883 | HQ129: 0 | HR129: 38038883 | HS129: 0 | HT129: 38038883 | HU129: 0 | HV129: 38038883 | HW129: 0 | HX129: 38038883 | HY129: 0 | HZ129: 38038883 | IA129: 0 | IB129: 38038883 | IC129: 0 | ID129: 38038883 | IE129: 0 | IF129: 38038883 | IG129: 0 | IH129: 38038883 | II129: 0 | IJ129: 38038883 | IK129: 0 | IL129: 38038883 | IM129: 0 | IN129: 38038883 | IO129: 0 | IP129: 38038883
B130: 18231161 - PCA YR#13 - 2014 | DX130: 402881 | DY130: 20561946 | DZ130: 19019741 | EA130: 16607260 | EB130: 19740683 | EC130: -1283389 | ED130: 18457294 | EE130: -3082379 | EF130: 15374915 | EG130: 3326024 | EH130: 18700939 | EI130: 9522980 | EJ130: 28223919 | EK130: 5557197 | EL130: 33781116 | EM130: 4589083 | EN130: 38370199 | EO130: 1756912 | EP130: 40127111 | ER130: 40127111 | ET130: 40127111 | EV130: 40127111 | EX130: 40127111 | EZ130: 40127111 | FB130: 40127111 | FE130: 40127111 | FH130: 40127111 | FJ130: 40127111 | FL130: 40127111 | FN130: 40127111 | FP130: 40127111 | FQ130: 0 | FR130: 40127111 | FS130: 0 | FT130: 40127111 | FU130: 0 | FV130: 40127111 | FW130: 0 | FX130: 40127111 | FY130: 0 | FZ130: 40127111 | GA130: 0 | GB130: 40127111 | GC130: 0 | GD130: 40127111 | GE130: -479437 | GF130: 39647674 | GG130: 0 | GH130: 39647674 | GI130: 0 | GJ130: 39647674 | GK130: 0 | GL130: 39647674 | GM130: 0 | GN130: 39647674 | GO130: 0 | GP130: 39647674 | GQ130: 0 | GR130: 39647674 | GS130: 0 | GT130: 39647674 | GU130: 0 | GV130: 39647674 | GW130: 0 | GX130: 39647674 | GY130: 0 | GZ130: 39647674 | HA130: 0 | HB130: 39647674 | HC130: 0 | HD130: 39647674 | HE130: 0 | HF130: 39647674 | HG130: 0 | HH130: 39647674 | HI130: 0 | HJ130: 39647674 | HK130: 0 | HL130: 39647674 | HM130: 0 | HN130: 39647674 | HO130: 0 | HP130: 39647674 | HQ130: 0 | HR130: 39647674 | HS130: 0 | HT130: 39647674 | HU130: 0 | HV130: 39647674 | HW130: 0 | HX130: 39647674 | HY130: 0 | HZ130: 39647674 | IA130: 0 | IB130: 39647674 | IC130: 0 | ID130: 39647674 | IE130: 0 | IF130: 39647674 | IG130: 0 | IH130: 39647674 | II130: 0 | IJ130: 39647674 | IK130: 0 | IL130: 39647674 | IM130: 0 | IN130: 39647674 | IO130: 0 | IP130: 39647674
B131: 18231171 - PCA YR#13 - 2014 | DX131: -402881 | DY131: -20561946 | DZ131: -19019741 | EA131: -16607260 | EB131: -19740683 | EC131: 1283389 | ED131: -18457294 | EE131: 3082379 | EF131: -15374915 | EG131: -3326024 | EH131: -18700939 | EI131: -9522980 | EJ131: -28223919 | EK131: -5557197 | EL131: -33781116 | EM131: -4589083 | EN131: -38370199 | EO131: -1756912 | EP131: -40127111 | ER131: -40127111 | ET131: -40127111 | EV131: -40127111 | EX131: -40127111 | EZ131: -40127111 | FB131: -40127111 | FE131: -40127111 | FH131: -40127111 | FJ131: -40127111 | FL131: -40127111 | FN131: -40127111 | FP131: -40127111 | FQ131: 0 | FR131: -40127111 | FS131: 0 | FT131: -40127111 | FU131: 0 | FV131: -40127111 | FW131: 0 | FX131: -40127111 | FY131: 0 | FZ131: -40127111 | GA131: 0 | GB131: -40127111 | GC131: 0 | GD131: -40127111 | GE131: 479437 | GF131: -39647674 | GG131: 0 | GH131: -39647674 | GI131: 0 | GJ131: -39647674 | GK131: 0 | GL131: -39647674 | GM131: 0 | GN131: -39647674 | GO131: 0 | GP131: -39647674 | GQ131: 0 | GR131: -39647674 | GS131: 0 | GT131: -39647674 | GU131: 0 | GV131: -39647674 | GW131: 0 | GX131: -39647674 | GY131: 0 | GZ131: -39647674 | HA131: 0 | HB131: -39647674 | HC131: 0 | HD131: -39647674 | HE131: 0 | HF131: -39647674 | HG131: 0 | HH131: -39647674 | HI131: 0 | HJ131: -39647674 | HK131: 0 | HL131: -39647674 | HM131: 0 | HN131: -39647674 | HO131: 0 | HP131: -39647674 | HQ131: 0 | HR131: -39647674 | HS131: 0 | HT131: -39647674 | HU131: 0 | HV131: -39647674 | HW131: 0 | HX131: -39647674 | HY131: 0 | HZ131: -39647674 | IA131: 0 | IB131: -39647674 | IC131: 0 | ID131: -39647674 | IE131: 0 | IF131: -39647674 | IG131: 0 | IH131: -39647674 | II131: 0 | IJ131: -39647674 | IK131: 0 | IL131: -39647674 | IM131: 0 | IN131: -39647674 | IO131: 0 | IP131: -39647674
B132: 18231181 - PCA YR#14 - 2015 | EQ132: -2202230 | ER132: -2202230 | ES132: 4568957 | ET132: 2366727 | EU132: -387617 | EV132: 1979110 | EW132: -4384758 | EX132: -2405648 | EY132: 5833553 | EZ132: 3427905 | FA132: 1547692 | FB132: 4975597 | FD132: 3101202 | FE132: 8076799 | FG132: 2863766 | FH132: 10940565 | FI132: 3870087 | FJ132: 14810652 | FK132: 2772064 | FL132: 17582716 | FM132: -3470873 | FN132: 14111843 | FO132: -5377988 | FP132: 8733855 | FQ132: 0 | FR132: 8733855 | FS132: 0 | FT132: 8733855 | FU132: 0 | FV132: 8733855 | FW132: 0 | FX132: 8733855 | FY132: 0 | FZ132: 8733855 | GA132: 0 | GB132: 8733855 | GC132: 0 | GD132: 8733855 | GE132: -500887 | GF132: 8232968 | GG132: 0 | GH132: 8232968 | GI132: 0 | GJ132: 8232968 | GK132: 0 | GL132: 8232968 | GM132: 0 | GN132: 8232968 | GO132: 0 | GP132: 8232968 | GQ132: 0 | GR132: 8232968 | GS132: 0 | GT132: 8232968 | GU132: 0 | GV132: 8232968 | GW132: 0 | GX132: 8232968 | GY132: 0 | GZ132: 8232968 | HA132: 0 | HB132: 8232968 | HC132: 0 | HD132: 8232968 | HE132: 0 | HF132: 8232968 | HG132: 0 | HH132: 8232968 | HI132: 0 | HJ132: 8232968 | HK132: 0 | HL132: 8232968 | HM132: 0 | HN132: 8232968 | HO132: 0 | HP132: 8232968 | HQ132: 0 | HR132: 8232968 | HS132: 0 | HT132: 8232968 | HU132: 0 | HV132: 8232968 | HW132: 0 | HX132: 8232968 | HY132: 0 | HZ132: 8232968 | IA132: 0 | IB132: 8232968 | IC132: 0 | ID132: 8232968 | IE132: 0 | IF132: 8232968 | IG132: 0 | IH132: 8232968 | II132: 0 | IJ132: 8232968 | IK132: 0 | IL132: 8232968 | IM132: 0 | IN132: 8232968 | IO132: 0 | IP132: 8232968
B133: 18231191 - PCA YR#14 - 2015 | EQ133: 2202230 | ER133: 2202230 | ES133: -4568957 | ET133: -2366727 | EU133: 387617 | EV133: -1979110 | EW133: 4384758 | EX133: 2405648 | EY133: -5833553 | EZ133: -3427905 | FA133: -1547692 | FB133: -4975597 | FD133: -3101202 | FE133: -8076799 | FG133: -2863766 | FH133: -10940565 | FI133: -3870087 | FJ133: -14810652 | FK133: -2772064 | FL133: -17582716 | FM133: 3470873 | FN133: -14111843 | FO133: 5377988 | FP133: -8733855 | FQ133: 0 | FR133: -8733855 | FS133: 0 | FT133: -8733855 | FU133: 0 | FV133: -8733855 | FW133: 0 | FX133: -8733855 | FY133: 0 | FZ133: -8733855 | GA133: 0 | GB133: -8733855 | GC133: 0 | GD133: -8733855 | GE133: 500887 | GF133: -8232968 | GG133: 0 | GH133: -8232968 | GI133: 0 | GJ133: -8232968 | GK133: 0 | GL133: -8232968 | GM133: 0 | GN133: -8232968 | GO133: 0 | GP133: -8232968 | GQ133: 0 | GR133: -8232968 | GS133: 0 | GT133: -8232968 | GU133: 0 | GV133: -8232968 | GW133: 0 | GX133: -8232968 | GY133: 0 | GZ133: -8232968 | HA133: 0 | HB133: -8232968 | HC133: 0 | HD133: -8232968 | HE133: 0 | HF133: -8232968 | HG133: 0 | HH133: -8232968 | HI133: 0 | HJ133: -8232968 | HK133: 0 | HL133: -8232968 | HM133: 0 | HN133: -8232968 | HO133: 0 | HP133: -8232968 | HQ133: 0 | HR133: -8232968 | HS133: 0 | HT133: -8232968 | HU133: 0 | HV133: -8232968 | HW133: 0 | HX133: -8232968 | HY133: 0 | HZ133: -8232968 | IA133: 0 | IB133: -8232968 | IC133: 0 | ID133: -8232968 | IE133: 0 | IF133: -8232968 | IG133: 0 | IH133: -8232968 | II133: 0 | IJ133: -8232968 | IK133: 0 | IL133: -8232968 | IM133: 0 | IN133: -8232968 | IO133: 0 | IP133: -8232968
B134: 18239121 - PCA YR#15 - 2016 | FQ134: -8156454 | FR134: -8156454 | FS134: -3135441 | FT134: -11291895 | FU134: -496385 | FV134: -11788280 | FW134: 7251511 | FX134: -4536769 | FY134: 3571569 | FZ134: -965200 | GA134: 4021515 | GB134: 3056315 | GC134: -4723407 | GD134: -1667092 | GE134: -2052540 | GF134: -3719632 | GG134: 3354482 | GH134: -365150 | GI134: 1269562 | GJ134: 904412 | GK134: 7403719 | GL134: 8308131 | GM134: -6249749 | GN134: 2058382 | GO134: 0 | GP134: 2058382 | GQ134: 0 | GR134: 2058382 | GS134: 0 | GT134: 2058382 | GU134: 0 | GV134: 2058382 | GW134: 0 | GX134: 2058382 | GY134: 0 | GZ134: 2058382 | HA134: 0 | HB134: 2058382 | HC134: 0 | HD134: 2058382 | HE134: 0 | HF134: 2058382 | HG134: 0 | HH134: 2058382 | HI134: 0 | HJ134: 2058382 | HK134: 0 | HL134: 2058382 | HM134: 0 | HN134: 2058382 | HO134: 0 | HP134: 2058382 | HQ134: 0 | HR134: 2058382 | HS134: 0 | HT134: 2058382 | HU134: 0 | HV134: 2058382 | HW134: 0 | HX134: 2058382 | HY134: 0 | HZ134: 2058382 | IA134: 0 | IB134: 2058382 | IC134: 0 | ID134: 2058382 | IE134: 0 | IF134: 2058382 | IG134: 0 | IH134: 2058382 | II134: 0 | IJ134: 2058382 | IK134: 0 | IL134: 2058382 | IM134: 0 | IN134: 2058382 | IO134: 0 | IP134: 2058382
B135: 18239131 - PCA YR#15 - 2016 | FQ135: 8156454 | FR135: 8156454 | FS135: 3135441 | FT135: 11291895 | FU135: 496385 | FV135: 11788280 | FW135: -7251511 | FX135: 4536769 | FY135: -3571569 | FZ135: 965200 | GA135: -4021515 | GB135: -3056315 | GC135: 4723407 | GD135: 1667092 | GE135: 2052540 | GF135: 3719632 | GG135: -3354482 | GH135: 365150 | GI135: -1269562 | GJ135: -904412 | GK135: -7403719 | GL135: -8308131 | GM135: 6249749 | GN135: -2058382 | GO135: 0 | GP135: -2058382 | GQ135: 0 | GR135: -2058382 | GS135: 0 | GT135: -2058382 | GV135: -2058382 | GW135: 0 | GX135: -2058382 | GY135: 0 | GZ135: -2058382 | HA135: 0 | HB135: -2058382 | HC135: 0 | HD135: -2058382 | HE135: 0 | HF135: -2058382 | HG135: 0 | HH135: -2058382 | HI135: 0 | HJ135: -2058382 | HK135: 0 | HL135: -2058382 | HM135: 0 | HN135: -2058382 | HO135: 0 | HP135: -2058382 | HQ135: 0 | HR135: -2058382 | HS135: 0 | HT135: -2058382 | HU135: 0 | HV135: -2058382 | HW135: 0 | HX135: -2058382 | HY135: 0 | HZ135: -2058382 | IA135: 0 | IB135: -2058382 | IC135: 0 | ID135: -2058382 | IE135: 0 | IF135: -2058382 | IG135: 0 | IH135: -2058382 | II135: 0 | IJ135: -2058382 | IK135: 0 | IL135: -2058382 | IM135: 0 | IN135: -2058382 | IO135: 0 | IP135: -2058382
B136: 18239141 - PCA YR#16 - 2017 | GO136: 10111744 | GP136: 10111744 | GQ136: 596605 | GR136: 10708349 | GS136: -734383 | GT136: =GS136+GR136 -> 9973966 | GU136: -1911317 | GV136: =GU136+GT136 -> 8062649 | GW136: 1732655 | GX136: =GW136+GV136 -> 9795304 | GY136: -1125296 | GZ136: =GY136+GX136 -> 8670008 | HA136: -2986662 | HB136: =HA136+GZ136 -> 5683346 | HC136: 2216116 | HD136: =HC136+HB136 -> 7899462 | HE136: 1162832 | HF136: =HE136+HD136 -> 9062294 | HG136: -306619 | HH136: =HG136+HF136 -> 8755675 | HI136: 2401166 | HJ136: =HI136+HH136 -> 11156841 | HK136: 537438 | HL136: =HK136+HJ136 -> 11694279 | HM136: 0 | HN136: =HM136+HL136 -> 11694279 | HO136: 0 | HP136: =HO136+HN136 -> 11694279 | HQ136: 0 | HR136: =HQ136+HP136 -> 11694279 | HS136: 0 | HT136: =HS136+HR136 -> 11694279 | HU136: 0 | HV136: =HU136+HT136 -> 11694279 | HW136: 0 | HX136: =HW136+HV136 -> 11694279 | HY136: 0 | HZ136: =HY136+HX136 -> 11694279 | IA136: 0 | IB136: =IA136+HZ136 -> 11694279 | IC136: 0 | ID136: =IC136+IB136 -> 11694279 | IE136: 0 | IF136: =IE136+ID136 -> 11694279 | IG136: 0 | IH136: =IG136+IF136 -> 11694279 | II136: 0 | IJ136: 11694279 | IK136: 0 | IL136: 11694279 | IM136: 0 | IN136: 11694279 | IO136: 0 | IP136: 11694279
B137: 18239151 - PCA YR#16 - 2017 | GO137: -10111744 | GP137: -10111744 | GQ137: -596605 | GR137: -10708349 | GS137: 734383 | GT137: =GS137+GR137 -> -9973966 | GU137: 1911317 | GV137: =GU137+GT137 -> -8062649 | GW137: -1732655 | GX137: =GW137+GV137 -> -9795304 | GY137: 1125296 | GZ137: =GY137+GX137 -> -8670008 | HA137: 2986662 | HB137: =HA137+GZ137 -> -5683346 | HC137: -2216116 | HD137: =HC137+HB137 -> -7899462 | HE137: -1162832 | HF137: =HE137+HD137 -> -9062294 | HG137: 306619 | HH137: =HG137+HF137 -> -8755675 | HI137: -2401166 | HJ137: =HI137+HH137 -> -11156841 | HK137: -537438 | HL137: =HK137+HJ137 -> -11694279 | HM137: 0 | HN137: =HM137+HL137 -> -11694279 | HO137: 0 | HP137: =HO137+HN137 -> -11694279 | HQ137: 0 | HR137: =HQ137+HP137 -> -11694279 | HS137: 0 | HT137: =HS137+HR137 -> -11694279 | HU137: 0 | HV137: =HU137+HT137 -> -11694279 | HW137: 0 | HX137: =HW137+HV137 -> -11694279 | HY137: 0 | HZ137: =HY137+HX137 -> -11694279 | IA137: 0 | IB137: =IA137+HZ137 -> -11694279 | IC137: 0 | ID137: =IC137+IB137 -> -11694279 | IE137: 0 | IF137: -11694279 | IG137: 0 | IH137: -11694279 | II137: 0 | IJ137: -11694279 | IK137: 0 | IL137: -11694279 | IM137: 0 | IN137: -11694279 | IO137: 0 | IP137: -11694279
B138: 18231261 - PCA YR#17 - 2018 | HL138: 0 | HM138: -1159097 | HN138: =HM138+HL138 -> -1159097 | HO138: -4510201 | HP138: =HO138+HN138 -> -5669298 | HQ138: -1819951 | HR138: =HQ138+HP138 -> -7489249 | HS138: -3094283 | HT138: =HS138+HR138 -> -10583532 | HU138: -1714077 | HV138: =HU138+HT138 -> -12297609 | HW138: -3013106 | HX138: =HW138+HV138 -> -15310715 | HY138: 10634621 | HZ138: =HY138+HX138 -> -4676094 | IA138: 12963726 | IB138: =IA138+HZ138 -> 8287632 | IC138: -569470 | ID138: =IC138+IB138 -> 7718162 | IE138: 4869117 | IF138: 12587279 | IG138: -12938348 | IH138: -351069 | II138: 3842229.77 | IJ138: 3491160.77 | IK138: 0 | IL138: 3491160.77 | IM138: 0 | IN138: 3491160.77 | IO138: 0 | IP138: 3491160.77
B139: 18231271 - PCA YR#17 - 2018 | HL139: 0 | HM139: 1159097 | HN139: =HM139+HL139 -> 1159097 | HO139: 4510201 | HP139: =HO139+HN139 -> 5669298 | HQ139: 1819951 | HR139: =HQ139+HP139 -> 7489249 | HS139: 3094283 | HT139: =HS139+HR139 -> 10583532 | HU139: 1714077 | HV139: =HU139+HT139 -> 12297609 | HW139: 3013106 | HX139: =HW139+HV139 -> 15310715 | HY139: -10634621 | HZ139: =HY139+HX139 -> 4676094 | IA139: -12963726 | IB139: =IA139+HZ139 -> -8287632 | IC139: 569470 | ID139: =IC139+IB139 -> -7718162 | IE139: -4869117 | IF139: -12587279 | IG139: 12938348 | IH139: 351069 | II139: -3842229.77 | IJ139: -3491160.77 | IK139: 0 | IL139: -3491160.77 | IM139: 0 | IN139: -3491160.77 | IO139: 0 | IP139: -3491160.77
B140: 18231281 - PCA YR#18 - 2019 | IF140: 0 | IH140: 0 | IK140: -3508130 | IL140: -3508130 | IM140: 24423041 | IN140: 20914911 | IO140: 22233699 | IP140: 43148610
B141: 18231291 - PCA YR#18 - 2019 | IF141: 0 | IH141: 0 | IK141: 3508130 | IL141: 3508130 | IM141: -24423041 | IN141: -20914911 | IO141: -22233699 | IP141: -43148610
B142: 18239281 - PCA YR#19 - 2020 | IF142: =IE142+ID142 -> 0 | IH142: =IG142+IF142 -> 0
B143: 18239291 - PCA YR#19 - 2020 | IF143: 0 | IH143: 0
B144: 18239561 - PCA YR#20 - 2021 | IF144: 0 | IH144: 0
B145: 18239571 - PCA YR#20 - 2021 | IF145: 0 | IH145: 0
B146: 18239561 - PCA YR#21 - 2022 | IF146: 0 | IH146: 0
B147: 18239561 - PCA YR#21 - 2022 | IF147: 0 | IH147: 0
FL149: 0 | FN149: 0
FL150: 0 | FN150: 0
FL151: 0 | FN151: 0 | FP151: 0 | FR151: 0 | FT151: =FS151+FR151 -> 0 | FV151: =FU151+FT151 -> 0 | FX151: =FW151+FV151 -> 0 | FZ151: =FY151+FX151 -> 0 | GB151: =GA151+FZ151 -> 0 | GD151: =GC151+GB151 -> 0 | GE151: 0 | GF151: =GE151+GD151 -> 0 | GH151: =GG151+GF151 -> 0 | GJ151: =GI151+GH151 -> 0 | GL151: =GK151+GJ151 -> 0 | GN151: =GM151+GL151 -> 0 | GP151: =GO151+GN151 -> 0 | GR151: =GQ151+GP151 -> 0
B152: 18230771 - PCA Company Portion | D152: 40009301 | E152: 40142464 | F152: 40099138 | G152: 40149951.91 | H152: 40186031 | I152: 37563523.5 | J152: 24398243 | K152: 27397949 | L152: =K152-914142 -> 26483807 | M152: =L152+347469 -> 26831276 | N152: =M152+4561163 -> 31392439 | O152: =N152+1759559 -> 33151998 | P152: =O152-75348 -> 33076650 | Q152: =P152+1945879 -> 35022529 | R152: 34862539 | S152: 38078427 | T152: =S152+1955087 -> 40033514 | U152: =T152+30362 -> 40063876 | V152: =U152+21701 -> 40085577 | W152: =V152+4370 -> 40089947 | X152: =W152-2749354 -> 37340593 | Y152: =X152+971683 -> 38312276 | Z152: =Y152-5682358 -> 32629918 | AA152: =Z152-684785 -> 31945133 | AB152: 36693259 | AC152: 40023319 | AD152: 40021614 | AE152: 40127638 | AF152: 40103981 | AG152: 40128184 | AH152: 40188826 | AI152: 40108104 | AJ152: 32046192 | AK152: 27150213 | AL152: 14287972 | AM152: 11871261 | AN152: 13283129 | AO152: 20763473 | AP152: 19885308 | AQ152: 27092365 | AR152: 27468105 | AS152: 39590579 | AT152: 40636237 | AU152: 25437675 | AV152: 7783014 | AW152: 4096489 | AX152: -2947562 | AY152: -3269814 | AZ152: -3055009 | BA152: -1406722 | BB152: 625453 | BC152: 3795343 | BD152: 1736796 | BE152: 4520402 | BF152: 6259663 | BG152: 3820696 | BH152: -16619981 | BI152: -20633042 | BJ152: -25148667 | BK152: -23696424 | BL152: -17294646 | BM152: -10912210 | BN152: -7649776 | BO152: 4990118 | BP152: -4997537 | BQ152: 422232 | BR152: 753459 | BS152: -2532530 | BT152: -15076583 | BU152: -15438160 | BV152: -16710013 | BW152: -15980689 | BX152: -4582521 | BY152: 10059429 | BZ152: 18522908 | CA152: 27475135 | CB152: 36272030 | CC152: 50062795 | CD152: 54831705 | CE152: 52016203 | CF152: 43871054 | CG152: 49962568 | CH152: 45697498 | CI152: 41697926 | CJ152: 48346288 | CK152: 50935553 | CL152: 47055030 | CM152: 51573832 | CN152: 48059497 | CO152: 51321738 | CP152: 46161667 | CQ152: 34834106 | CR152: 24687313 | CS152: 26376846 | CT152: 21409808 | CU152: 19944886 | CV152: 19515425 | CW152: 20053950 | CX152: 21217377 | CY152: 22446646 | CZ152: 9922768 | DA152: 7493899 | DB152: -3342198 | DC152: -8626582 | DD152: -9584536 | DE152: -9352488 | DF152: -9138993 | DG152: -8929005 | DH152: -7491577 | DI152: -5005429 | DJ152: -712068 | DK152: -375637 | DL152: -11904555 | DM152: -12322885 | DN152: -15674397 | DO152: -24623318 | DP152: -28817401 | DQ152: -29882914 | DR152: -30921523 | DS152: -31266314 | DT152: -31506209 | DU152: -31729834 | DV152: -30575456 | DW152: -29281605 | DX152: -28878724 | DY152: -9000632 | DZ152: -10261864 | EA152: -12674345 | EB152: -9540922 | EC152: -1283389 | ED152: =EB152+EC152 -> -10824311 | EE152: -3082379 | EF152: =ED152+EE152 -> -13906690 | EG152: 3326024 | EH152: -10580666 | EI152: 5411021 | EJ152: -5169645 | EK152: 2778598 | EL152: -2391047 | EM152: 2294541 | EN152: =EL152+EM152 -> -96506 | EO152: 827612 | EP152: =EN152+EO152 -> 731106 | EQ152: -2202230 | ER152: =EP152+EQ152 -> -1471124 | ES152: 4568957 | ET152: =ER152+ES152 -> 3097833 | EU152: -387617 | EV152: =ET152+EU152 -> 2710216 | EW152: -4384758 | EX152: =EV152+EW152 -> -1674542 | EY152: 5833553 | EZ152: =EX152+EY152 -> 4159011 | FA152: 1547692 | FB152: =EZ152+FA152 -> 5706703 | FD152: 3101202 | FE152: =FB152+FD152 -> 8807905 | FG152: 2863766 | FH152: =FE152+FG152 -> 11671671 | FI152: 3870087 | FJ152: =FH152+FI152 -> 15541758 | FK152: 2772064 | FL152: 18313822 | FM152: -3470873 | FN152: 14842949 | FO152: -5377988 | FP152: 9464961 | FQ152: -8156454 | FR152: 1308507 | FS152: -3135441 | FT152: =FS152+FR152 -> -1826934 | FU152: -496385 | FV152: =FU152+FT152 -> -2323319 | FW152: 7251511 | FX152: =FW152+FV152 -> 4928192 | FY152: 3571569 | FZ152: =FY152+FX152 -> 8499761 | GA152: 4021515 | GB152: =GA152+FZ152 -> 12521276 | GC152: -4723407 | GD152: =GC152+GB152 -> 7797869 | GE152: -2777021 | GF152: =GE152+GD152 -> 5020848 | GG152: 3354482 | GH152: =GG152+GF152 -> 8375330 | GI152: 1269562 | GJ152: =GI152+GH152 -> 9644892 | GK152: 7403719 | GL152: =GK152+GJ152 -> 17048611 | GM152: -6249749 | GN152: =GM152+GL152 -> 10798862 | GO152: 10111744 | GP152: =GO152+GN152 -> 20910606 | GQ152: 596605 | GR152: =GQ152+GP152 -> 21507211 | GS152: -734383 | GT152: =GS152+GR152 -> 20772828 | GU152: -1990071 | GV152: =GU152+GT152 -> 18782757 | GW152: 1732655 | GX152: =GW152+GV152 -> 20515412 | GY152: -1125296 | GZ152: =GY152+GX152 -> 19390116 | HA152: -2986662 | HB152: =HA152+GZ152 -> 16403454 | HC152: 2216116 | HD152: =HC152+HB152 -> 18619570 | HE152: 1162832 | HF152: =HE152+HD152 -> 19782402 | HG152: -306619 | HH152: =HG152+HF152 -> 19475783 | HI152: 2401166 | HJ152: =HI152+HH152 -> 21876949 | HK152: 537438 | HL152: =HK152+HJ152 -> 22414387 | HM152: -1159097 | HN152: =HM152+HL152 -> 21255290 | HO152: -4510201 | HP152: =HO152+HN152 -> 16745089 | HQ152: -1819951 | HR152: =HQ152+HP152 -> 14925138 | HS152: -3094283 | HT152: =HS152+HR152 -> 11830855 | HU152: -1714077 | HV152: =HU152+HT152 -> 10116778 | HW152: -3013106 | HX152: =HW152+HV152 -> 7103672 | HY152: 10634621 | HZ152: =HY152+HX152 -> 17738293 | IA152: 12963726 | IB152: =IA152+HZ152 -> 30702019 | IC152: -569470 | ID152: =IC152+IB152 -> 30132549 | IE152: 4869117 | IF152: =IE152+ID152 -> 35001666 | IG152: -12938348 | IH152: 22063318 | II152: 3842229.77 | IJ152: =IH152+II152 -> 25905547.77 | IK152: 3508130 | IL152: =IJ152+IK152 -> 29413677.77 | IM152: 15449325 | IN152: =IL152+IM152 -> 44863002.77 | IO152: 9857405 | IP152: =IN152+IO152 -> 54720407.77
B153: 18230781 - PCA Company Portion Contra | D153: -40009301 | E153: -40142464 | F153: -40099138 | G153: -40149951.91 | H153: -40186031 | I153: -37563523.5 | J153: -24398243 | K153: -27397949 | L153: =K153+914142 -> -26483807 | M153: =L153-347469 -> -26831276 | N153: =M153-4561163 -> -31392439 | O153: =N153-1759559 -> -33151998 | P153: =O153+75348 -> -33076650 | Q153: =P153-1945879 -> -35022529 | R153: -34862539 | S153: -38078427 | T153: =S153-1955087 -> -40033514 | U153: =T153-30362 -> -40063876 | V153: =U153-21701 -> -40085577 | W153: =V153-4370 -> -40089947 | X153: =W153+2749354 -> -37340593 | Y153: =X153-971683 -> -38312276 | Z153: =Y153+5682358 -> -32629918 | AA153: =Z153+684785 -> -31945133 | AB153: -36693259 | AC153: -40023319 | AD153: -40021614 | AE153: -40127638 | AF153: -40103981 | AG153: -40128184 | AH153: -40188826 | AI153: -40108104 | AJ153: -32046192 | AK153: -27150213 | AL153: -14287972 | AM153: -11871261 | AN153: -13283129 | AO153: -20763473 | AP153: -19885308 | AQ153: -27092365 | AR153: -27468105 | AS153: -39590579 | AT153: -40636237 | AU153: -25437675 | AV153: -7783014 | AW153: -4096489 | AX153: 2947562 | AY153: 3269814 | AZ153: 3055009 | BA153: 1406722 | BB153: -625453 | BC153: -3795343 | BD153: -1736796 | BE153: -4520402 | BF153: -6259663 | BG153: -3820696 | BH153: 16619981 | BI153: 20633042 | BJ153: 25148667 | BK153: 23696424 | BL153: 17294646 | BM153: 10912210 | BN153: 7649776 | BO153: -4990118 | BP153: 4997537 | BQ153: -422232 | BR153: -753459 | BS153: 2532530 | BT153: 15076583 | BU153: 15438160 | BV153: 16710013 | BW153: 15980689 | BX153: 4582521 | BY153: -10059429 | BZ153: -18522908 | CA153: -27475135 | CB153: -36272030 | CC153: -50062795 | CD153: -54831705 | CE153: -52016203 | CF153: -43871054 | CG153: -49962568 | CH153: -45697498 | CI153: -41697926 | CJ153: -48346288 | CK153: -50935553 | CL153: -47055030 | CM153: -51573832 | CN153: -48059497 | CO153: -51321738 | CP153: -46161667 | CQ153: -34834106 | CR153: -24687313 | CS153: -26376846 | CT153: -21409808 | CU153: -19944886 | CV153: -19515425 | CW153: -20053950 | CX153: -21217377 | CY153: -22446646 | CZ153: -9922768 | DA153: -7493899 | DB153: 3342198 | DC153: 8626582 | DD153: 9584536 | DE153: 9352488 | DF153: 9138993 | DG153: 8929005 | DH153: 7491577 | DI153: 5005429 | DJ153: 712068 | DK153: 375637 | DL153: 11904555 | DM153: 12322885 | DN153: 15674397 | DO153: 24623318 | DP153: 28817401 | DQ153: 29882914 | DR153: 30921523 | DS153: 31266314 | DT153: 31506209 | DU153: 31729834 | DV153: 30575456 | DW153: 29281605 | DX153: 28878724 | DY153: 9000632 | DZ153: 10261864 | EA153: 12674345 | EB153: 9540922 | EC153: 1283389 | ED153: =EB153+EC153 -> 10824311 | EE153: 3082379 | EF153: 13906690 | EG153: -3326024 | EH153: 10580666 | EI153: -5411021 | EJ153: 5169645 | EK153: -2778598 | EL153: 2391047 | EM153: -2294541 | EN153: =EL153+EM153 -> 96506 | EO153: -827612 | EP153: =EN153+EO153 -> -731106 | EQ153: 2202230 | ER153: =EP153+EQ153 -> 1471124 | ES153: -4568957 | ET153: =ER153+ES153 -> -3097833 | EU153: 387617 | EV153: =ET153+EU153 -> -2710216 | EW153: 4384758 | EX153: =EV153+EW153 -> 1674542 | EY153: -5833553 | EZ153: =EX153+EY153 -> -4159011 | FA153: -1547692 | FB153: =EZ153+FA153 -> -5706703 | FD153: -3101202 | FE153: =FB153+FD153 -> -8807905 | FG153: -2863766 | FH153: =FE153+FG153 -> -11671671 | FI153: -3870087 | FJ153: =FH153+FI153 -> -15541758 | FK153: -2772064 | FL153: -18313822 | FM153: 3470873 | FN153: -14842949 | FO153: 5377988 | FP153: -9464961 | FQ153: 8156454 | FR153: -1308507 | FS153: 3135441 | FT153: =FS153+FR153 -> 1826934 | FU153: 496385 | FV153: =FU153+FT153 -> 2323319 | FW153: -7251511 | FX153: =FW153+FV153 -> -4928192 | FY153: -3571569 | FZ153: =FY153+FX153 -> -8499761 | GA153: -4021515 | GB153: =GA153+FZ153 -> -12521276 | GC153: 4723407 | GD153: =GC153+GB153 -> -7797869 | GE153: 2777021 | GF153: =GE153+GD153 -> -5020848 | GG153: -3354482 | GH153: =GG153+GF153 -> -8375330 | GI153: -1269562 | GJ153: =GI153+GH153 -> -9644892 | GK153: -7403719 | GL153: =GK153+GJ153 -> -17048611 | GM153: 6249749 | GN153: =GM153+GL153 -> -10798862 | GO153: -10111744 | GP153: =GO153+GN153 -> -20910606 | GQ153: -596605 | GR153: =GQ153+GP153 -> -21507211 | GS153: 734383 | GT153: =GS153+GR153 -> -20772828 | GU153: 1990071 | GV153: =GU153+GT153 -> -18782757 | GW153: -1732655 | GX153: =GW153+GV153 -> -20515412 | GY153: 1125296 | GZ153: =GY153+GX153 -> -19390116 | HA153: 2986662 | HB153: =HA153+GZ153 -> -16403454 | HC153: -2216116 | HD153: =HC153+HB153 -> -18619570 | HE153: -1162832 | HF153: =HE153+HD153 -> -19782402 | HG153: 306619 | HH153: =HG153+HF153 -> -19475783 | HI153: -2401166 | HJ153: =HI153+HH153 -> -21876949 | HK153: -537438 | HL153: =HK153+HJ153 -> -22414387 | HM153: 1159097 | HN153: =HM153+HL153 -> -21255290 | HO153: 4510201 | HP153: =HO153+HN153 -> -16745089 | HQ153: 1819951 | HR153: =HQ153+HP153 -> -14925138 | HS153: 3094283 | HT153: =HS153+HR153 -> -11830855 | HU153: 1714077 | HV153: =HU153+HT153 -> -10116778 | HW153: 3013106 | HX153: =HW153+HV153 -> -7103672 | HY153: -10634621 | HZ153: =HY153+HX153 -> -17738293 | IA153: -12963726 | IB153: =IA153+HZ153 -> -30702019 | IC153: 569470 | ID153: =IC153+IB153 -> -30132549 | IE153: -4869117 | IF153: -35001666 | IG153: 12938348 | IH153: -22063318 | II153: -3842229.77 | IJ153: =IH153+II153 -> -25905547.77 | IK153: -3508130 | IL153: =IJ153+IK153 -> -29413677.77 | IM153: -15449325 | IN153: =IL153+IM153 -> -44863002.77 | IO153: -9857405 | IP153: =IN153+IO153 -> -54720407.77
GE154: 0
B155: 18230791 - PCA Customer Portion | D155: 3549741 | E155: 5052034 | F155: 12443543 | G155: 17474177 | H155: 21045962 | I155: 0 | J155: 2129178 | K155: 2129178 | L155: 2129178 | M155: =L155 -> 2129178 | N155: =M155 -> 2129178 | O155: =N155 -> 2129178 | P155: =O155-75348 -> 2053830 | Q155: =P155 -> 2053830 | R155: 2065492 | S155: =R155 -> 2065492 | T155: =S155+3318122 -> 5383614 | U155: =T155+6042109 -> 11425723 | V155: =U155+3335611 -> 14761334 | W155: =V155+869563 -> 15630897 | X155: =W155-10529113 -> 5101784 | Y155: =X155 -> 5101784 | Z155: =Y155 -> 5101784 | AA155: =Z155+0 -> 5101784 | AB155: =AA155+0 -> 5101784 | AC155: 7465212 | AD155: 7296374 | AE155: 17792716 | AF155: 15395901 | AG155: 17792004 | AH155: 25005284 | AI155: 15804143 | AJ155: 5101728 | AK155: 5101728 | AL155: 2239487 | AM155: -2408840 | AN155: 1234643 | AO155: 5101727 | AP155: 5101727 | AQ155: 5101727 | AR155: 5101727 | AS155: 5101727 | AT155: 5101727 | AU155: 5101727 | AV155: 5101727 | AW155: 2105850 | AX155: -5257626 | AY155: -8157893 | AZ155: -6224650 | BA155: -3397362 | BB155: -1365187 | BC155: 1804703 | BD155: 1804703 | BE155: 1804703 | BF155: 1804703 | BG155: 1804703 | BH155: 1389378 | BI155: -2623683 | BJ155: -7139308 | BK155: -5687065 | BL155: 714713 | BM155: 1804703 | BN155: 1804703 | BO155: 1804703 | BP155: 1804703 | BQ155: 1804703 | BR155: 1804703 | BS155: 1804703 | BT155: 1738002 | BU155: 1376425 | BV155: 104572 | BW155: 833896 | BX155: 1804703 | BY155: 1170089 | BZ155: 1170089 | CA155: 7269253 | CB155: 7269253 | CC155: 9856912 | CD155: 14625822 | CE155: 11810320 | CF155: 6457047 | CG155: 9756684 | CH155: 6457047 | CI155: 6457047 | CJ155: 8140404 | CK155: 10729669 | CL155: 9960057 | CM155: 14478859 | CN155: 14478859 | CO155: 14478859 | CP155: 13449244 | CQ155: 13449244 | CR155: 7592340 | CS155: 9281873 | CT155: 4314835 | CU155: -1944731 | CV155: -220030 | CW155: 3079532 | CX155: 4242959 | CY155: 5472228 | CZ155: 5472228 | DA155: 5472228 | DB155: -316616 | DC155: -14186821 | DD155: -22808404 | DE155: -20719968 | DF155: -18798514 | DG155: -16908624 | DH155: -4465994 | DI155: -1979846 | DJ155: 2313515 | DK155: 2649946 | DL155: 2649946 | DM155: 2649946 | DN155: 2649946 | DO155: -1597735 | DP155: -5791818 | DQ155: -6857331 | DR155: -12263035 | DS155: -15366154 | DT155: -17525213 | DU155: -19537837 | DV155: -9148436 | DW155: -6256022 | DX155: -6256022 | DY155: -5975049 | DZ155: -6256022 | EA155: -6256022 | EB155: -6256022 | EC155: 0 | ED155: =EB155+EC155 -> -6256022 | EE155: 0 | EF155: =ED155+EE155 -> -6256022 | EG155: 0 | EH155: =EF155+EG155 -> -6256022 | EI155: 4111959 | EJ155: =EH155+EI155 -> -2144063 | EK155: 2778598 | EL155: =EJ155+EK155 -> 634535 | EM155: 2294541 | EN155: =EL155+EM155 -> 2929076 | EO155: 929300 | EP155: =EN155+EO155 -> 3858376 | EQ155: 0 | ER155: =EP155+EQ155 -> 3858376 | ES155: 0 | ET155: =ER155+ES155 -> 3858376 | EU155: 0 | EV155: =ET155+EU155 -> 3858376 | EW155: 0 | EX155: =EV155+EW155 -> 3858376 | EY155: 0 | EZ155: =EX155+EY155 -> 3858376 | FA155: 0 | FB155: =EZ155+FA155 -> 3858376 | FD155: 0 | FE155: =FB155+FD155 -> 3858376 | FG155: 0 | FH155: =FE155+FG155 -> 3858376 | FI155: 0 | FJ155: =FH155+FI155 -> 3858376 | FL155: 3858376 | FM155: 0 | FN155: 3858376 | FO155: 0 | FP155: 3858376 | FQ155: 0 | FR155: 3858376 | FS155: 0 | FT155: =FS155+FR155 -> 3858376 | FU155: 0 | FV155: =FU155+FT155 -> 3858376 | FW155: 0 | FX155: =FW155+FV155 -> 3858376 | FY155: 0 | FZ155: =FY155+FX155 -> 3858376 | GA155: 0 | GB155: =GA155+FZ155 -> 3858376 | GC155: 0 | GD155: =GC155+GB155 -> 3858376 | GE155: -325278 | GF155: =GE155+GD155 -> 3533098 | GH155: =GG155+GF155 -> 3533098 | GJ155: =GI155+GH155 -> 3533098 | GK155: 0 | GL155: =GK155+GJ155 -> 3533098 | GM155: 0 | GN155: =GM155+GL155 -> 3533098 | GO155: 0 | GP155: =GO155+GN155 -> 3533098 | GQ155: 0 | GR155: =GQ155+GP155 -> 3533098 | GS155: 0 | GT155: =GS155+GR155 -> 3533098 | GU155: -78754 | GV155: =GU155+GT155 -> 3454344 | GW155: 0 | GX155: =GW155+GV155 -> 3454344 | GY155: 0 | GZ155: =GY155+GX155 -> 3454344 | HA155: 0 | HB155: =HA155+GZ155 -> 3454344 | HC155: 0 | HD155: =HC155+HB155 -> 3454344 | HE155: 0 | HF155: =HE155+HD155 -> 3454344 | HG155: 0 | HH155: =HG155+HF155 -> 3454344 | HI155: 0 | HJ155: =HI155+HH155 -> 3454344 | HK155: 0 | HL155: =HK155+HJ155 -> 3454344 | HM155: 0 | HN155: =HM155+HL155 -> 3454344 | HO155: 0 | HP155: =HO155+HN155 -> 3454344 | HQ155: 0 | HR155: =HQ155+HP155 -> 3454344 | HS155: 0 | HT155: =HS155+HR155 -> 3454344 | HU155: 0 | HV155: =HU155+HT155 -> 3454344 | HW155: 0 | HX155: =HW155+HV155 -> 3454344 | HY155: 0 | HZ155: =HY155+HX155 -> 3454344 | IA155: 0 | IB155: =IA155+HZ155 -> 3454344 | IC155: 0 | ID155: =IC155+IB155 -> 3454344 | IE155: 0 | IF155: =IE155+ID155 -> 3454344 | IG155: 0 | IH155: =IG155+IF155 -> 3454344 | II155: 0 | IJ155: =IH155+II155 -> 3454344 | IL155: =IJ155+IK155 -> 3454344 | IM155: 1957456 | IN155: =IL155+IM155 -> 5411800 | IO155: 12376294 | IP155: =IN155+IO155 -> 17788094
B156: 18230801 - PCA Customer Contra | J156: -2145936 | K156: =-2145936-7685 -> -2153621 | L156: =K156-6781 -> -2160402 | M156: =L156-7000 -> -2167402 | N156: =M156-7631 -> -2175033 | O156: =N156-7385 -> -2182418 | P156: =O156+75348+9+1297 -> -2105764 | Q156: =P156-7361 -> -2113125 | R156: -2128672 | S156: -2137005 | T156: =S156+2137005 -> 0 | U156: 0 | FL156: 0 | FN156: 0 | FP156: 0 | FR156: 0 | FT156: =FS156+FR156 -> 0 | FV156: =FU156+FT156 -> 0 | FX156: =FW156+FV156 -> 0 | FZ156: =FY156+FX156 -> 0 | GB156: =GA156+FZ156 -> 0 | GC156: 0 | GD156: =GC156+GB156 -> 0 | GE156: 0 | GF156: =GE156+GD156 -> 0 | GH156: =GG156+GF156 -> 0 | GJ156: =GI156+GH156 -> 0 | GL156: =GK156+GJ156 -> 0 | GN156: =GM156+GL156 -> 0 | GP156: =GO156+GN156 -> 0 | GR156: =GQ156+GP156 -> 0 | GT156: =GS156+GR156 -> 0 | GV156: =GU156+GT156 -> 0 | GX156: =GW156+GV156 -> 0 | GZ156: =GY156+GX156 -> 0 | HB156: =HA156+GZ156 -> 0 | HD156: =HC156+HB156 -> 0 | HF156: =HE156+HD156 -> 0 | HH156: =HG156+HF156 -> 0 | HJ156: =HI156+HH156 -> 0 | HL156: =HK156+HJ156 -> 0 | HN156: =HM156+HL156 -> 0 | HP156: =HO156+HN156 -> 0 | HR156: =HQ156+HP156 -> 0 | HT156: =HS156+HR156 -> 0 | HV156: =HU156+HT156 -> 0 | HX156: =HW156+HV156 -> 0 | HZ156: =HY156+HX156 -> 0 | IB156: =IA156+HZ156 -> 0 | ID156: =IC156+IB156 -> 0 | IF156: =IE156+ID156 -> 0 | IH156: =IG156+IF156 -> 0 | IL156: =IJ156+IK156 -> 0
GE157: 0
B158: 25400011 - PCA Tenaska Disallowance - Contra | J158: 2145936 | K158: =2145936+7685 -> 2153621 | L158: =K158+6781 -> 2160402 | M158: =L158+7000 -> 2167402 | N158: =M158+7631 -> 2175033 | O158: =N158+7385 -> 2182418 | P158: =O158-75348-9-1297 -> 2105764 | Q158: =P158+7361 -> 2113125 | R158: 2128672 | S158: 2137005 | T158: =S158-2137005 -> 0 | U158: 0 | FL158: 0 | FN158: 0 | FP158: 0 | FR158: 0 | FT158: =FS158+FR158 -> 0 | FV158: =FU158+FT158 -> 0 | FX158: =FW158+FV158 -> 0 | FZ158: =FY158+FX158 -> 0 | GB158: =GA158+FZ158 -> 0 | GC158: 0 | GD158: =GC158+GB158 -> 0 | GE158: 0 | GF158: =GE158+GD158 -> 0 | GH158: =GG158+GF158 -> 0 | GJ158: =GI158+GH158 -> 0 | GL158: =GK158+GJ158 -> 0 | GN158: =GM158+GL158 -> 0 | GP158: =GO158+GN158 -> 0 | GR158: =GQ158+GP158 -> 0 | GT158: =GS158+GR158 -> 0 | GV158: =GU158+GT158 -> 0 | GX158: =GW158+GV158 -> 0 | GZ158: =GY158+GX158 -> 0 | HB158: =HA158+GZ158 -> 0 | HD158: =HC158+HB158 -> 0 | HF158: =HE158+HD158 -> 0 | HH158: =HG158+HF158 -> 0 | HJ158: =HI158+HH158 -> 0 | HL158: =HK158+HJ158 -> 0 | HN158: =HM158+HL158 -> 0 | HP158: =HO158+HN158 -> 0 | HR158: =HQ158+HP158 -> 0 | HT158: =HS158+HR158 -> 0 | HV158: =HU158+HT158 -> 0 | HX158: =HW158+HV158 -> 0 | HZ158: =HY158+HX158 -> 0 | IB158: =IA158+HZ158 -> 0 | ID158: =IC158+IB158 -> 0 | IF158: =IE158+ID158 -> 0 | IH158: =IG158+IF158 -> 0 | IL158: =IK158+II158 -> 0
B159: 25400001 - PCA Tenaska Disallowance | I159: -13828064.5 | J159: -15787607 | K159: -12817897 | L159: =-12817897-905000 -> -13722897 | M159: =L159+343993 -> -13378904 | N159: =M159+4515552 -> -8863352 | O159: =N159+1741964 -> -7121388 | P159: =O159-73841 -> -7195229 | Q159: =P159+1926420 -> -5268809 | R159: -5357212 | S159: -2173480 | T159: =S159+2173480 -> 0 | U159: 0 | FL159: 0 | FN159: 0 | FP159: 0 | FR159: 0 | FT159: =FS159+FR159 -> 0 | FV159: =FU159+FT159 -> 0 | FX159: =FW159+FV159 -> 0 | FZ159: =FY159+FX159 -> 0 | GB159: =GA159+FZ159 -> 0 | GC159: 0 | GD159: =GC159+GB159 -> 0 | GE159: 0 | GF159: =GE159+GD159 -> 0 | GH159: =GG159+GF159 -> 0 | GJ159: =GI159+GH159 -> 0 | GL159: =GK159+GJ159 -> 0 | GN159: =GM159+GL159 -> 0 | GP159: =GO159+GN159 -> 0 | GR159: =GQ159+GP159 -> 0 | GT159: =GS159+GR159 -> 0 | GV159: =GU159+GT159 -> 0 | GX159: =GW159+GV159 -> 0 | GZ159: =GY159+GX159 -> 0 | HB159: =HA159+GZ159 -> 0 | HD159: =HC159+HB159 -> 0 | HF159: =HE159+HD159 -> 0 | HH159: =HG159+HF159 -> 0 | HJ159: =HI159+HH159 -> 0 | HL159: =HK159+HJ159 -> 0 | HN159: =HM159+HL159 -> 0 | HP159: =HO159+HN159 -> 0 | HR159: =HQ159+HP159 -> 0 | HT159: =HS159+HR159 -> 0 | HV159: =HU159+HT159 -> 0 | HX159: =HW159+HV159 -> 0 | HZ159: =HY159+HX159 -> 0 | IB159: =IA159+HZ159 -> 0 | ID159: =IC159+IB159 -> 0 | IF159: =IE159+ID159 -> 0 | IH159: =IG159+IF159 -> 0 | IL159: =IK159+II159 -> 0
GE160: 0
B161: 18239061 - PCA Customer Portion - Interest | D161: 55721 | E161: 67765 | F161: 84314.41 | G161: 127139.5 | H161: 184980.13 | I161: 0 | J161: 16758 | K161: 24443 | L161: =K161+6781 -> 31224 | M161: =L161+7000 -> 38224 | N161: =M161+7631 -> 45855 | O161: =N161+7385 -> 53240 | P161: =O161-9-1297 -> 51934 | Q161: =P161+7361 -> 59295 | R161: 63180 | S161: =R161+8333 -> 71513 | T161: =S161+7958 -> 79471 | U161: =T161+132746 -> 212217 | V161: =U161+46528 -> 258745 | W161: =V161+66572 -> 325317 | X161: =W161+68831 -> 394148 | Y161: =X161+22224 -> 416372 | Z161: =Y161+25001 -> 441373 | AA161: =Z161+24549 -> 465922 | AB161: =AA161+15467 -> 481389 | AC161: 508787 | AD161: 546984 | AE161: 587382 | AF161: 689443 | AG161: 769913 | AH161: 873705 | AI161: 1026897 | AJ161: 1114744 | AK161: 1143882 | AL161: 1176812 | AM161: 1190547 | AN161: 1175995 | AO161: 1185428 | AP161: 1219686 | AQ161: 1255086 | AR161: 1290835 | AS161: 1323123 | AT161: 1358870 | AU161: 1393464 | AV161: 1429211 | AW161: 1463128 | AX161: 1476219 | AY161: 1438724 | AZ161: 1383844 | BA161: 1340868 | BB161: 1318290 | BC161: 1309441 | BD161: 1321335 | BE161: 1332462 | BF161: 1344356 | BG161: 1354398 | BH161: 1364698 | BI161: 1371685 | BJ161: 1359219 | BK161: 1327293 | BL161: 1303449 | BM161: 1306633 | BN161: 1314050 | BO161: 1321714 | BP161: 1328642 | BQ161: 1334900 | BR161: 1341828 | BS161: 1346827 | BT161: 1351986 | BU161: 1356767 | BV161: 1360453 | BW161: 1360807 | BX161: 1363121 | BY161: 1253217 | BZ161: 1256343 | CA161: 1260116 | CB161: 1280181 | CC161: 1298535 | CD161: 1198567 | CE161: 1237385 | CF161: 1269508 | CG161: 1287050 | CH161: 1313687 | CI161: 1331510 | CJ161: 1348908 | CK161: 1371608 | CL161: 1111091 | CM161: 1138986 | CN161: 1178952 | CO161: 1215050 | CP161: 1225737 | CQ161: 1261663 | CR161: 1298265 | CS161: 1318696 | CT161: 1343874 | CU161: 1355227 | CV161: 1325973 | CW161: 1325659 | CX161: 1333989 | CY161: 1345810 | CZ161: 1360915 | DA161: 1375045 | DB161: 1389634 | DC161: 1387553 | DD161: 1347626 | DE161: 1286885 | DF161: 1229863 | DG161: 1178142 | DH161: 1134083 | DI161: 1121977 | DJ161: 1117071 | DK161: 1123487 | DL161: 1130802 | DM161: 1137409 | DN161: 1144724 | DO161: 1151424 | DP161: 1146640 | DQ161: 1131074 | DR161: 1111665 | DS161: 1077539 | DT161: 1036300 | DU161: 987746 | DV161: 936481 | DW161: 911486 | DX161: 894218 | DY161: 878646 | DZ161: 862128 | EA161: 845417 | EB161: 828149 | EC161: -16711 | ED161: =EB161+EC161 -> 811438 | EE161: -17268 | EF161: =ED161+EE161 -> 794170 | EG161: -17268 | EH161: =EF161+EG161 -> 776902 | EI161: -16345 | EJ161: =EH161+EI161 -> 760557 | EK161: -5671 | EL161: =EJ161+EK161 -> 754886 | EM161: 1899 | EN161: =EL161+EM161 -> 756785 | EO161: 8168 | EP161: =EN161+EO161 -> 764953 | EQ161: 10650 | ER161: =EP161+EQ161 -> 775603 | ES161: 9620 | ET161: =ER161+ES161 -> 785223 | EU161: 10650 | EV161: =ET161+EU161 -> 795873 | EW161: 10307 | EX161: =EV161+EW161 -> 806180 | EY161: 10650 | EZ161: =EX161+EY161 -> 816830 | FA161: 10307 | FB161: =EZ161+FA161 -> 827137 | FD161: 10650 | FE161: =FB161+FD161 -> 837787 | FG161: 10650 | FH161: =FE161+FG161 -> 848437 | FI161: 10307 | FJ161: =FH161+FI161 -> 858744 | FK161: 10650 | FL161: 869394 | FM161: 10307 | FN161: 879701 | FO161: 10650 | FP161: 890351 | FQ161: 10650 | FR161: 901001 | FS161: 9963 | FT161: =FS161+FR161 -> 910964 | FU161: 10650 | FV161: =FU161+FT161 -> 921614 | FW161: 10973 | FX161: =FW161+FV161 -> 932587 | FY161: 11338 | FZ161: =FY161+FX161 -> 943925 | GA161: 10973 | GB161: =GA161+FZ161 -> 954898 | GC161: 11489 | GD161: =GC161+GB161 -> 966387 | GE161: -9562 | GF161: =GE161+GD161 -> 956825 | GG161: 10164 | GH161: =GG161+GF161 -> 966989 | GI161: 10503 | GJ161: =GI161+GH161 -> 977492 | GK161: 10164 | GL161: =GK161+GJ161 -> 987656 | GM161: 10522 | GN161: =GM161+GL161 -> 998178 | GO161: 10503 | GP161: =GO161+GN161 -> 1008681 | GQ161: 9486 | GR161: =GQ161+GP161 -> 1018167 | GS161: 10503 | GT161: =GS161+GR161 -> 1028670 | GU161: 715 | GV161: =GU161+GT161 -> 1029385 | GW161: 10884 | GX161: =GW161+GV161 -> 1040269 | GY161: 10533 | GZ161: =GY161+GX161 -> 1050802 | HA161: 11618 | HB161: =HA161+GZ161 -> 1062420 | HC161: 11618 | HD161: =HC161+HB161 -> 1074038 | HE161: 11243 | HF161: =HE161+HD161 -> 1085281 | HG161: 12351 | HH161: =HG161+HF161 -> 1097632 | HI161: 11953 | HJ161: =HI161+HH161 -> 1109585 | HK161: 12351 | HL161: =HK161+HJ161 -> 1121936 | HM161: 12469 | HN161: =HM161+HL161 -> 1134405 | HO161: 11262 | HP161: =HO161+HN161 -> 1145667 | HQ161: 12469 | HR161: =HQ161+HP161 -> 1158136 | HS161: 12691 | HT161: =HS161+HR161 -> 1170827 | HU161: 13114 | HV161: =HU161+HT161 -> 1183941 | HW161: 12691 | HX161: =HW161+HV161 -> 1196632 | HY161: 13760 | HZ161: =HY161+HX161 -> 1210392 | IA161: 13760 | IB161: =IA161+HZ161 -> 1224152 | IC161: 13316 | ID161: =IC161+IB161 -> 1237468 | IE161: 14552 | IF161: =IE161+ID161 -> 1252020 | IG161: 14082 | IH161: =IG161+IF161 -> 1266102 | II161: 14552 | IJ161: =IH161+II161 -> 1280654 | IK161: 15197 | IL161: =IJ161+IK161 -> 1295851 | IM161: 14004 | IN161: =IL161+IM161 -> 1309855 | IO161: 25565 | IP161: =IN161+IO161 -> 1335420
B163: Total (s/b = SAP) | AA163: =SUM(AA106:AA162) -> 5567706 | AB163: 5583173 | AC163: 7973999 | AD163: 7843358 | AE163: 18380098 | AF163: 16085344 | AG163: 18561917 | AH163: 25878989 | AI163: 16831040 | AJ163: 6216472 | AK163: 6245610 | AL163: 3416299 | AM163: -1218293 | AN163: 2410638 | AO163: 6287155 | AP163: 6321413 | AQ163: 6356813 | AR163: 6392562 | AS163: 6424850 | AT163: 6460597 | AU163: 6495191 | AV163: 6530938 | AW163: 3568978 | AX163: -3781407 | AY163: -6719169 | AZ163: -4840806 | BA163: -2056494 | BB163: -46897 | BC163: 3114144 | BD163: 3126038 | BE163: 3137165 | BF163: 3149059 | BG163: =SUM(BG106:BG162) -> 3159101 | BH163: 2754076 | BI163: -1251998 | BJ163: -5780089 | BK163: -4359772 | BL163: 2018162 | BM163: 3111336 | BN163: 3118753 | BO163: 3126417 | BP163: 3133345 | BQ163: 3139603 | BR163: 3146531 | BS163: 3151530 | BT163: 3089988 | BU163: 2733192 | BV163: 1465025 | BW163: 2194703 | BX163: 3167824 | BY163: 2423306 | BZ163: 2426432 | CA163: 8529369 | CB163: 8549434 | CC163: 11155447 | CD163: 15824389 | CE163: 13047705 | CF163: 7726555 | CG163: 11043734 | CH163: 7770734 | CI163: 7788557 | CJ163: 9489312 | CK163: 12101277 | CL163: 11071148 | CM163: =SUM(CM106:CM162) -> 15617845 | CN163: 15657811 | CO163: 15693909 | CP163: 14674981 | CQ163: 14710907 | CR163: 8890605 | CS163: 10600569 | CT163: 5658709 | CU163: -589504 | CV163: 1105943 | CW163: 4405191 | CX163: 5576948 | CY163: 6818038 | CZ163: 6833143 | DA163: 6847273 | DB163: 1073018 | DC163: -12799268 | DD163: -21460778 | DE163: -19433083 | DF163: -17568651 | DG163: -15730482 | DH163: -3331911 | DI163: -857869 | DJ163: 3430586 | DK163: 3773433 | DL163: 3780748 | DM163: 3787355 | DN163: 3794670 | DO163: -446311 | DP163: -4645178 | DQ163: -5726257 | DR163: -11151370 | DS163: =SUM(DS106:DS162) -> -14288615 | DT163: -16488913 | DU163: -18550091 | DV163: -8211955 | DW163: -5344536 | DX163: -5361804 | DY163: -5096403 | DZ163: -5393894 | EA163: -5410605 | EB163: -5427873 | EC163: -16711 | ED163: -5444584 | EE163: -17268 | EF163: -5461852 | EG163: -17268 | EH163: -5479120 | EI163: 4095614 | EJ163: -1383506 | EK163: 2772927 | EL163: 1389421 | EM163: 2296440 | EN163: 3685861 | EO163: 937468 | EP163: 4623329 | EQ163: 10650 | ER163: 4633979 | ES163: 9620 | ET163: 4643599 | EU163: 10650 | EV163: 4654249 | EW163: 10307 | EX163: 4664556 | EY163: =SUM(EY106:EY162) -> 10650 | EZ163: =SUM(EZ106:EZ162) -> 4675206 | FA163: =SUM(FA106:FA162) -> 12807 | FB163: =SUM(FB106:FB162) -> 4688013 | FD163: =SUM(FD106:FD162) -> 8150 | FE163: =SUM(FE106:FE162) -> 4696163 | FG163: =SUM(FG106:FG162) -> 10650 | FH163: 4706813 | FI163: 10307 | FJ163: 4717120 | FK163: 10650 | FL163: 4727770 | FM163: 10307 | FN163: 4738077 | FO163: 10650 | FP163: 4748727 | FQ163: 10650 | FR163: 4759377 | FS163: 9963 | FT163: 4769340 | FU163: 10650 | FV163: 4779990 | FW163: 10973 | FX163: 4790963 | FY163: 11338 | FZ163: 4802301 | GA163: 10973 | GB163: 4813274 | GC163: 11489 | GD163: 4824763 | GE163: -334840 | GF163: 4489923 | GG163: 10164 | GH163: 4500087 | GI163: 10503 | GJ163: 4510590 | GK163: 10164 | GL163: 4520754 | GM163: =SUM(GM106:GM162) -> 10522 | GN163: 4531276 | GO163: 10503 | GP163: 4541779 | GQ163: 9486 | GR163: 4551265 | GS163: 10503 | GT163: 4561768 | GU163: -78039 | GV163: 4483729 | GW163: 10884 | GX163: 4494613 | GY163: 10533 | GZ163: 4505146 | HA163: 11618 | HB163: 4516764 | HC163: 11618 | HD163: 4528382 | HE163: 11243 | HF163: 4539625 | HG163: 12351 | HH163: 4551976 | HI163: 11953 | HJ163: 4563929 | HK163: 12351 | HL163: 4576280 | HM163: =SUM(HM106:HM162) -> 12469 | HN163: 4588749 | HO163: 11262 | HP163: 4600011 | HQ163: 12469 | HR163: 4612480 | HS163: 12691 | HT163: 4625171 | HU163: 13114 | HV163: 4638285 | HW163: 12691 | HX163: 4650976 | HY163: 13760 | HZ163: 4664736 | IA163: 13760 | IB163: 4678496 | IC163: 13316 | ID163: 4691812 | IE163: 14552 | IF163: 4706364 | IG163: 14082 | IH163: 4720446 | II163: =SUM(II106:II162) -> 14552 | IJ163: 4734998 | IK163: 15197 | IL163: 4750195 | IM163: 1971460 | IN163: 6721655 | IO163: 12401859 | IP163: 19123514
A166: Note: PCA Period 12, the PCA Customer Portion and PCA Interest all had adjusting entries in April 2017 due to additional correction of underbilled KWH's originally done in August 2016.
AH172: `

Sheet Summary- Cumulative
B2: Puget Sound Energy
B3: Power Cost Adjustment Summary
B4: Cumulative Amounts
B5: 2022-06-30
B8: Description | D8: Power Costs | I8: Allocation of Power Costs
B9: Time Period | C9: PCA Period | D9: Actual | E9: Baseline | F9: Difference | G9: Wholesale Customers | H9: Total Cost Over (Under) Baseline | I9: Company | J9: Customers | K9: Customer Interest | L9: Total Customer Share With Interest
B10: 12 mo end 6.30.03 | C10: 1 | D10: 844964750 | E10: 843126410 | F10: =D10-E10 -> 1838340 | G10: -10041.85782 | H10: =F10+G10 -> 1828298.142 | I10: 1828298.142 | J10: 0 | K10: 0 | L10: =SUM(J10:K10) -> 0
B11: 12 mo end 6.30.04 | C11: 2 | D11: 902349264 | E11: 872785984.6 | F11: =D11-E11 -> 29563279.38 | G11: -11955.56487 | H11: =F11+G11 -> 29551323.81 | I11: 24775661.91 | J11: 4775661.906 | K11: 59850.54 | L11: =SUM(J11:K11) -> 4835512.446
B12: 12 mo end 6.30.05 | C12: 3 | D12: 959374104 | E12: 949412458.9 | F12: 9961645.118 | G12: -4084.504628 | H12: 9957560.613 | I12: 9957560.113 | J12: 0 | K12: 318471.18 | L12: 318471.18
B13: 12 mo end 6.30.06 | C13: 4 | D13: 1062847820 | E13: 1075227683 | F13: -12379863.13 | G13: 4375.265847 | H13: -12375487.86 | I13: -12375488 | J13: 0 | K13: 633012.99 | L13: 633012.99
B14: 6 mo end 12.31.06 | C14: 5 | D14: 596418335.2 | E14: 597089566.8 | F14: -671231.6546 | G14: 198.4832003 | H14: -671033.1714 | I14: -671033.1714 | J14: 0 | K14: 97548.88 | L14: 97548.88
B15: 12 mo end 12.31.07 | C15: 6 | D15: 1222865320 | E15: 1253089187 | F15: -30223867.6 | G15: 11197.10769 | H15: =F15+G15-0.01 -> -30212670.5 | I15: -25106334.75 | J15: -5106336.246 | K15: -57570.28 | L15: =SUM(J15:K15)+0.03 -> -5163906.496
B16: 12 mo end 12.31.08 | C16: 7 | D16: 1328115191 | E16: 1329880671 | F16: -1765480.306 | G16: 555.9242513 | H16: -1764924.382 | I16: -1764924.382 | J16: 0 | K16: -140876.33 | L16: -140876.33
B17: 12 mo end 12.31.09 | C17: 8 | D17: 1404869953 | E17: 1374588966 | F17: 30280986.8 | G17: -10889.34566 | H17: 30270097.46 | I17: 25135048.73 | J17: 5135048.729 | K17: -28888.25 | L17: 5106160.479
B18: 12 mo end 12.31.10 | C18: 9 | D18: 1373029096 | E18: 1336852576 | F18: 36176520.04 | G18: -12991.80904 | H18: 36163528.23 | I18: 28081764.12 | J18: 8081764.116 | K18: 228424.27 | L18: 8310188.386
B19: 12 mo end 12.31.11 | C19: 10 | D19: 1351667527 | E19: 1386507507 | F19: -34839980.16 | G19: 12162.63707 | H19: -34827817.52 | I19: -27413908.76 | J19: -7413908.761 | K19: 235834.49 | L19: -7178074.271
B20: 12 mo end 12.31.12 | C20: 11 | D20: 1291380391 | E20: 1317033978 | F20: -25653586.59 | G20: 9022.631647 | H20: -25644563.96 | I20: -22822281.98 | J20: -2822281.979 | K20: -222321.85 | L20: -3044603.829
B21: 12 mo end 12.31.13 | C21: 12 | D21: 1274102997 | E21: 1312154859 | F21: -38051861.28 | G21: 12978.624 | H21: -38038882.66 | I21: -29019441.33 | J21: -9019441.328 | K21: -213421.28 | L21: -9232862.608
B22: 12 mo end 12.31.14 | C22: 13 | D22: 1287974218 | E22: 1248312259 | F22: =D22-E22+1 -> 39661959.79 | G22: -14285.27918 | H22: 39647674.51 | I22: 29823837.13 | J22: 9823837.132 | K22: -152027.51 | L22: 9671809.622
B23: 12 mo end 12.31.15 | C23: 14 | D23: 1236017952 | E23: 1227782113 | F23: =D23-E23 -> 8235839.269 | G23: -2871.013569 | H23: 8232968.256 | I23: 8232968.256 | J23: 0 | K23: 112266.22 | L23: 112266.22
B24: 12 mo end 12.31.16 | C24: 15 | D24: 1220596543 | E24: 1218537443 | F24: 2059099.824 | G24: -717.8021986 | H24: 2058382.022 | I24: 2058382.022 | J24: 0 | K24: 118735.72 | L24: 118735.72
B25: 12 mo end 12.31.17 | C25: 16 | D25: 724504794.4 | E25: 712806440.7 | F25: 11698353.63 | G25: -4074.844624 | H25: 11694278.79 | I25: 11694278.79 | J25: 0 | K25: 132897.58 | L25: 132897.58
B26: 12 mo end 12.31.18 | C26: 17 | D26: 672820072.6 | E26: 681067291.8 | F26: -8247219.144 | G26: 2757.870082 | H26: -8244461.274 | I26: -8244461.274 | J26: 0 | K26: 144165.36 | L26: =SUM(J26:K26) -> 144165.36
B27: 12 mo end 12.31.19 | C27: 18 | D27: 756262068.7 | E27: 689007443.9 | F27: 67254624.73 | G27: -22489.94651 | H27: 67232134.78 | I27: 31223213.48 | J27: 36008921.3 | K27: 1001058.12 | L27: =SUM(J27:K27) -> 37009979.42
B28: PCA Period 18 Rec | C28: 18 | D28: =J28 -> -39463264.87 | F28: -39463264.87 | H28: -39463264.87 | J28: =-SUM(J10:J27) -> -39463264.87 | K28: =-SUM(K10:K27) -> -2267159.85 | L28: =-SUM(L10:L27) -> -41730424.75
B29: 12 mo end 12.31.20 | C29: 19 | D29: 747585116.8 | E29: =672193615.309545-752158.73 -> 671441456.6 | F29: 76143660.17 | G29: -25000.77511 | H29: 76118659.4 | I29: 32111865.94 | J29: 44006793.46 | K29: 2002495.31 | L29: =SUM(J29:K29) -> 46009288.77
B30: PCA Period 19 Rec | C30: 19 | D30: =J30 -> -44006793.46 | F30: -44006793.46 | H30: -44006793.46 | J30: =-J29 -> -44006793.46 | K30: =-K29 -> -2002495.31 | L30: =-L29 -> -46009288.77
B31: 12 mo end 12.31.21 | C31: 20 | D31: 825196883.2 | E31: 757171008.8 | F31: 68025874.33 | G31: -23634.52704 | H31: 68002239.8 | I31: 31300223.98 | J31: 36702015.82 | K31: 1656378.04 | L31: =SUM(J31:K31) -> 38358393.86
B32: =B5 -> 2022-06-30 | C32: 21 | D32: =Schedule_B!R20 -> 438476525 | E32: =Schedule_B!R29 -> 411903899.9 | F32: 26572625.1 | G32: =Schedule_B!R35-Schedule_B!R32 -> -9948.259384 | H32: 26562676.84 | I32: 21781338.42 | J32: 4781338.419 | K32: 608935.7 | L32: =SUM(J32:K32) -> 5390274.119
B33: Cumulative | D33: =SUM(D10:D32) -> 2.143794886e+10 | E33: 2.12657792e+10 | F33: 172169660 | G33: -99736.98585 | H33: 172069923 | I33: 130586567.4 | J33: 41483354.24 | K33: =SUM(K10:K32) -> 2265313.74 | L33: 43748667.98
B37: Note: Following ongoing discussion with UTC Staff around Green Direct, it was determined that the Green Direct load should be removed in the tracking of the PCA mechanism. Additionally, for the period between the program inception in November 2020 through the 2021 PCORC rate effective date, the load should be removed priced at the monthly prices used in the incremental cost analysis provided in the 2019 GRC. PCA Yr #19 was revised and the cumulative revision was recorded in May 2021. The cumulative revision to PCA Yr #20 was included in the May 2021 PCA. As of July 2021, the Green Direct load is removed at the baseline rate per the 2020 PCORC.
B39: Note: A revision to the Schedule 95 Tarriff under Docket UE-200893 was filed to collect the customer share of the cumulative 2019 imbalance in the PCA mechanism beginning in December 2020. The surcharge is structured as a supplemental rate under the schedule in order to be tracked separately. The customer cumulative 2019 imbalance was transferred to a separate regulatory asset account and removed from the imbalance totals in December 2020. The customer 2020 imbalance was transferred in December 2021 for collection per UE-210300.
B41: Note: PCA Year #17 was revised in June 2020 due to the settlement of the Colstrip Outage investigation in Docket UE-190882 which disallowed $11,739,548 of replacement power costs purchased when Colstrip was idled in June - September 2018. The settlement in the 2018 PCA Compliance Docket-190324 approved the methodology of flowing the disallowed costs through the PCA bands in 2018.
B43: Note: PCA Year #17 was revised to properly align with the 2019 PCA filing in UE-200398. To do so, the December 2018 period interest in the amount of $14,551.78 was written-off and removed from the 2018 interest total, which resulted in the reduction of 2018 interest from $158,717.14 to $144,165.36.
B47: Note: As of January 1, 2017, the PCA includes variable costs only. Calculation of the PCA fixed costs deferral was done separately in 2017 before moving the fixed costs to the decoupling mechanism when the new GRC went into effect on December 19, 2017.

Sheet Summary- Detailed
A2: Puget Sound Energy
A3: Power Cost Adjustment Summary
A6: Actual Costs and Disallowance as recorded through the PCA Mechanism
D7: Actuals | F7: Baseline | H7: Difference (A) | J7: Wholesale Customer | L7: Imbalance for Sharing | O7: Company per PCA | R7: Customer per PCA | T7: Total | V7: Interest on Customer | X7: Total Customer per PCA
A8: PCA Year (B) | D8: Monthly | E8: Cumulative | F8: Baseline | G8: Cumulative | H8: Monthly | I8: Cumulative | J8: Monthly | K8: Cumulative | L8: Monthly | M8: PCA Period | N8: Cumulative | O8: Monthly (A) | P8: Cumulative (A) | R8: Monthly (A) | S8: Cumulative (A) | T8: Monthly Monthly Difference (A) | U8: Cumulative Difference (A) | V8: Monthly (A) | W8: Cumulative (A) | X8: Monthly (A) | Y8: Cumulative (A)
A10: 1 | B10: 2002-07-01 | D10: 58042049 | E10: =D10 -> 58042049 | F10: 61616393 | G10: =F10 -> 61616393 | H10: =D10-F10 -> -3574344 | I10: =E10-G10 -> -3574344 | J10: 1445.449648 | K10: =J10 -> 1445.449648 | L10: =H10+J10 -> -3572898.55 | M10: =L10 -> -3572898.55 | N10: =M10 -> -3572898.55 | O10: -3572898.55 | P10: =O10 -> -3572898.55 | R10: 0 | S10: 0 | T10: =O10+R10 -> -3572898.55 | U10: =T10 -> -3572898.55 | V10: 0 | W10: 0 | X10: 0 | Y10: 0
A11: 1 | B11: 2002-08-01 | D11: 61026340 | E11: =D11+E10 -> 119068389 | F11: 62377208 | G11: =F11+G10 -> 123993601 | H11: -1350868 | I11: -4925212 | J11: 546.711532 | K11: =J11+K10 -> 1992.16118 | L11: -1350321.288 | M11: =M10+L11 -> -4923219.839 | N11: =N10+L11 -> -4923219.839 | O11: -1350321.288 | P11: =O11+P10 -> -4923219.839 | R11: 0 | S11: 0 | T11: -1350321.288 | U11: =T11+U10 -> -4923219.839 | V11: 0 | W11: 0 | X11: 0 | Y11: 0
A12: 1 | B12: 2002-09-01 | D12: 66901856 | E12: 185970245 | F12: 60040410 | G12: 184034011 | H12: 6861446 | I12: 1936234 | J12: -2775.130916 | K12: -782.969736 | L12: 6858670.869 | M12: 1935451.03 | N12: 1935451.03 | O12: 6858670.869 | P12: 1935451.03 | R12: 0 | S12: 0 | T12: 6858670.869 | U12: 1935451.03 | V12: 0 | W12: 0 | X12: 0 | Y12: 0
A13: 1 | B13: 2002-10-01 | D13: 72973687 | E13: 258943932 | F13: 69523163 | G13: 253557174 | H13: 3450524 | I13: 5386758 | J13: -1395.284596 | K13: -2178.254332 | L13: 3449128.715 | M13: 5384579.746 | N13: 5384579.746 | O13: 3449128.715 | P13: 5384579.746 | R13: 0 | S13: 0 | T13: 3449128.715 | U13: 5384579.746 | V13: 0 | W13: 0 | X13: 0 | Y13: 0
A14: 1 | B14: 2002-11-01 | D14: 71935749 | E14: 330879681 | F14: 74375539 | G14: 327932713 | H14: -2439790 | I14: 2946968 | J14: 986.173152 | K14: -1192.08118 | L14: -2438803.827 | M14: 2945775.919 | N14: 2945775.919 | O14: -2438803.827 | P14: 2945775.919 | R14: 0 | S14: 0 | T14: -2438803.827 | U14: 2945775.919 | V14: 0 | W14: 0 | X14: 0 | Y14: 0
A15: 1 | B15: 2002-12-01 | D15: 86777286 | E15: 417656967 | F15: 84599358 | G15: 412532071 | H15: 2177928 | I15: 5124896 | J15: -881.211564 | K15: -2073.292744 | L15: 2177046.788 | M15: 5122822.707 | N15: 5122822.707 | O15: 2177046.788 | P15: 5122822.707 | R15: 0 | S15: 0 | T15: 2177046.788 | U15: 5122822.707 | V15: 0 | W15: 0 | X15: 0 | Y15: 0
A16: 1 | B16: 2003-01-01 | D16: 80343724 | E16: 498000691 | F16: 81723969 | G16: 494256040 | H16: -1380245 | I16: 3744651 | J16: 557.977204 | K16: -1515.31554 | L16: -1379687.023 | M16: 3743135.684 | N16: 3743135.684 | O16: -1379687.023 | P16: 3743135.684 | R16: 0 | S16: 0 | T16: -1379687.023 | U16: 3743135.684 | V16: 0 | W16: 0 | X16: 0 | Y16: 0
A17: 1 | B17: 2003-02-01 | D17: 80828615 | E17: 578829306 | F17: 75416275 | G17: 569672315 | H17: 5412340 | I17: 9156991 | J17: -2189.131364 | K17: -3704.446904 | L17: 5410150.869 | M17: 9153286.553 | N17: 9153286.553 | O17: 5410150.869 | P17: 9153286.553 | R17: 0 | S17: 0 | T17: 5410150.869 | U17: 9153286.553 | V17: 0 | W17: 0 | X17: 0 | Y17: 0
A18: 1 | B18: 2003-03-01 | D18: 84928004 | E18: 663757310 | F18: 77553819 | G18: 647226134 | H18: 7374185 | I18: 16531176 | J18: -2982.805148 | K18: -6687.252052 | L18: 7371202.195 | M18: 16524488.75 | N18: 16524488.75 | O18: 7371202.195 | P18: 16524488.75 | R18: 0 | S18: 0 | T18: 7371202.195 | U18: 16524488.75 | V18: 0 | W18: 0 | X18: 0 | Y18: 0
A19: 1 | B19: 2003-04-01 | D19: 67843290 | E19: 731600600 | F19: 69473916 | G19: 716700050 | H19: -1630626 | I19: 14900550 | J19: 659.693692 | K19: -6027.55836 | L19: -1629966.306 | M19: 14894522.44 | N19: 14894522.44 | O19: -1629966.306 | P19: 14894522.44 | R19: 0 | S19: 0 | T19: -1629966.306 | U19: 14894522.44 | V19: 0 | W19: 0 | X19: 0 | Y19: 0
A20: 1 | B20: 2003-05-01 | D20: 63318113 | E20: 794918713 | F20: 65590803 | G20: 782290853 | H20: -2272690 | I20: 12627860 | J20: 919.350684 | K20: -5108.207676 | L20: -2271770.649 | M20: 12622751.79 | N20: 12622751.79 | O20: -2271770.649 | P20: 12622751.79 | R20: 283872 | S20: 0 | T20: -1987898.649 | U20: 12906623.79 | V20: 0 | W20: 0 | X20: 0 | Y20: 0
A21: 1 | B21: 2003-06-01 | C21: (B1) | D21: 50046037 | E21: 844964750 | F21: 60835557 | G21: 843126410 | H21: -10789520 | I21: 1838340 | J21: -4933.65014 | K21: -10041.85782 | L21: -10794453.65 | M21: 1828298.142 | N21: 1828298.142 | O21: -10794453.65 | P21: 1828298.142 | R21: 0 | S21: 0 | T21: -10794453.65 | U21: 2112170.142 | V21: 0 | W21: 0 | X21: 0 | Y21: 0
A25: 2 | B25: 2003-07-01 | C25: (F) | D25: 65184355.35 | E25: =D25+E21 -> 910149105.4 | F25: 64630576.33 | G25: =F25+G21 -> 907756986.3 | H25: =D25-F25 -> 553779.0234 | I25: =E25-G25 -> 2392119.023 | J25: =H25*-0.000404 -> -223.7267255 | K25: =J25+K21 -> -10265.58454 | L25: =H25+J25 -> 553555.2967 | M25: =L25 -> 553555.2967 | N25: =L25+N21 -> 2381853.439 | O25: 553555.2967 | P25: =O25+P21 -> 2381853.439 | S25: 0 | T25: =O25+R25 -> 553555.2967 | U25: =T25+U21 -> 2665725.439 | V25: 0 | W25: =V25+W21 -> 0 | X25: 0 | Y25: 0
A26: 2 | B26: 2003-08-01 | C26: (F) | D26: 64674166.47 | E26: =D26+E25 -> 974823271.8 | F26: 63110327.9 | G26: =F26+G25 -> 970867314.2 | H26: 1563838.573 | I26: 3955957.597 | J26: -631.7907836 | K26: =J26+K25 -> -10897.37533 | L26: 1563206.782 | M26: =M25+L26 -> 2116762.079 | N26: =N25+L26 -> 3945060.221 | O26: 1563206.782 | P26: =O26+P25 -> 3945060.221 | R26: 0 | S26: 0 | T26: 1563206.782 | U26: =T26+U25 -> 4228932.221 | V26: 0 | W26: =V26+W25 -> 0 | X26: 0 | Y26: 0
A27: 2 | B27: 2003-09-01 | C27: (F) | D27: 66766678.35 | E27: 1041589950 | F27: 62478495.44 | G27: 1033345810 | H27: 4288182.916 | I27: 8244140.512 | J27: -1732.425898 | K27: -12629.80122 | L27: 4286450.49 | M27: 6403212.569 | N27: 8231510.711 | O27: 4286450.49 | P27: 8231510.711 | R27: 0 | S27: 0 | T27: 4286450.49 | U27: 8515382.711 | V27: 0 | W27: 0 | X27: 0 | Y27: 0
A28: 2 | B28: 2003-10-01 | C28: (F) | D28: 74949819.35 | E28: 1116539770 | F28: 68971840.78 | G28: 1102317650 | H28: 5977978.578 | I28: 14222119.09 | J28: -2415.103345 | K28: -15044.90457 | L28: 5975563.475 | M28: 12378776.04 | N28: 14207074.19 | O28: 5975563.475 | P28: 14207074.19 | R28: 0 | S28: 0 | T28: 5975563.475 | U28: 14490946.19 | V28: 0 | W28: 0 | X28: 0 | Y28: 0
A29: 2 | B29: 2003-11-01 | C29: (F) | D29: 85103091.35 | E29: 1201642861 | F29: 82180750.52 | G29: 1184498401 | H29: 2922340.831 | I29: 17144459.92 | J29: -1180.625696 | K29: -16225.53026 | L29: 2921160.205 | M29: 15299936.25 | N29: 17128234.39 | O29: 2921160.205 | P29: 17128234.39 | R29: 0 | S29: 0 | T29: 2921160.205 | U29: 17412106.39 | V29: 0 | W29: 0 | X29: 0 | Y29: 0
A30: 2 | B30: 2003-12-01 | C30: (F) | D30: 92860817.35 | E30: 1294503678 | F30: 89484104.07 | G30: 1273982505 | H30: 3376713.282 | I30: 20521173.2 | J30: -1364.192166 | K30: -17589.72243 | L30: 3375349.09 | M30: 18675285.34 | N30: 20503583.48 | O30: 3375349.09 | P30: 20503583.48 | R30: 0 | S30: 0 | T30: 3375349.09 | U30: 20787455.48 | V30: 0 | W30: 0 | X30: 0 | Y30: 0
A31: 2 | B31: 2004-01-01 | C31: (C1) | D31: 91025416.83 | E31: 1385529095 | F31: 90476339.79 | G31: 1364458845 | H31: 549077.0328 | I31: 21070250.24 | J31: -221.8271213 | K31: -17811.54955 | L31: 548855.2057 | M31: 19224140.54 | N31: 21052438.69 | O31: 548855.2057 | P31: 21052438.69 | R31: 0 | S31: 0 | T31: 548855.2057 | U31: 21336310.69 | V31: 0 | W31: 0 | X31: 0 | Y31: 0
A32: 2 | B32: 2004-02-01 | C32: (C1) | D32: 85168466.37 | E32: 1470697561 | F32: 78597503.3 | G32: 1443056348 | H32: 6570963.073 | I32: 27641213.31 | J32: =(H32*-0.000404)-12 -> -2666.669081 | K32: -20478.21863 | L32: 6568296.404 | M32: 25792436.95 | N32: 27620735.09 | O32: 3672077.93 | P32: 24724516.62 | R32: 2896218.474 | S32: =R32 -> 2896218.474 | T32: 6568296.404 | U32: 27904607.09 | V32: 317.39 | W32: 317.39 | X32: =+R32+V32 -> 2896535.864 | Y32: =X32 -> 2896535.864
A33: 2 | B33: 2004-03-01 | C33: (C1) | D33: 81261266.52 | E33: 1551958828 | F33: 77150686 | G33: 1520207034 | H33: 4110580.52 | I33: 31751793.83 | J33: =H33*-0.000404 -> -1660.67453 | K33: -22138.89316 | L33: 4108919.846 | M33: 29901356.79 | N33: 31729654.94 | O33: 2054459.923 | P33: 26778976.54 | R33: 2054459.923 | S33: =R33+S32 -> 4950678.397 | T33: 4108919.846 | U33: 32013526.94 | V33: 10064.35 | W33: 10381.74 | X33: =V33+R33 -> 2064524.273 | Y33: =X33+Y32 -> 4961060.137
A34: 2 | B34: 2004-04-01 | C34: (C1) | D34: 68754789.72 | E34: 1620713618 | F34: 65985593.74 | G34: 1586192628 | H34: 2769195.979 | I34: 34520989.81 | J34: =H34*-0.000404 -> -1118.755175 | K34: -23257.64834 | L34: 2768077.224 | M34: 32669434.02 | N34: 34497732.16 | O34: 1384038.612 | P34: 28163015.15 | R34: 1384038.612 | S34: =R34+S33 -> 6334717.009 | T34: 2768077.224 | U34: 34781604.16 | V34: 16970.42 | W34: 27352.16 | X34: =V34+R34 -> 1401009.032 | Y34: =X34+Y33 -> 6362069.169
A35: 2 | B35: 2004-05-01 | C35: (C1) | D35: 59043755.68 | E35: 1679757373 | F35: 65152397.16 | G35: 1651345025 | H35: -6108641.483 | I35: 28412348.33 | J35: =H35*-0.000404 -> 2467.891159 | K35: -20789.75718 | L35: -6106173.592 | M35: 26563260.43 | N35: 28391558.57 | O35: -3053086.796 | P35: 25109928.36 | R35: -3053086.796 | S35: =R35+S34 -> 3281630.213 | T35: -6106173.592 | U35: 28675430.57 | V35: 21186.1 | W35: 48538.26 | X35: =V35+R35 -> -3031900.696 | Y35: =X35+Y34 -> 3330168.473 | Z35: (B)
A36: 2 | B36: 2004-06-01 | C36: (C1) | D36: 67556640.61 | E36: 1747314014 | F36: 64567369.56 | G36: 1715912395 | H36: 2989271.052 | I36: 31401619.38 | J36: =H36*-0.000404 -> -1207.665505 | K36: -21997.42268 | L36: 2988063.386 | M36: 29551323.81 | N36: 31379621.95 | O36: 1494031.693 | P36: 26603960.05 | R36: 1494031.693 | S36: =R36+S35 -> 4775661.906 | T36: 2988063.386 | U36: 31663493.95 | V36: 11312.28 | W36: 59850.54 | X36: =V36+R36 -> 1505343.973 | Y36: =X36+Y35 -> 4835512.446 | Z36: (B)
A39: 3 | B39: 2004-07-01 | C39: (B) | D39: 72426753.3 | E39: =D39+E36 -> 1819740767 | F39: 69717173.45 | G39: =F39+G36 -> 1785629568 | H39: =D39-F39 -> 2709579.854 | I39: 34111199.23 | J39: -1095.670261 | K39: =K36+J39 -> -23093.09295 | L39: =H39+J39 -> 2708484.183 | M39: =L39 -> 2708484.183 | N39: =L39+N36 -> 34088106.14 | O39: 2708484.183 | P39: =O39+P36 -> 29312444.23 | R39: 0 | S39: =+R39+S36 -> 4775661.906 | T39: =O39+R39 -> 2708484.183 | U39: =P39+S39 -> 34088106.14 | V39: 17238.18 | W39: =+W36+V39 -> 77088.72 | X39: =+R39+V39 -> 17238.18 | Y39: =+X39+Y36 -> 4852750.626
A40: 3 | B40: 2004-08-01 | C40: (B) | D40: 69270006.13 | E40: =+E39+D40 -> 1889010773 | F40: 70298182.16 | G40: =+G39+F40 -> 1855927750 | H40: -1028176.024 | I40: 33083023.21 | J40: 416.3831135 | K40: =+K39+J40 -> -22676.70983 | L40: -1027759.641 | M40: =M39+L40 -> 1680724.543 | N40: =N39+L40 -> 33060346.5 | O40: -1027759.641 | P40: =+P39+O40 -> 28284684.59 | R40: 0 | S40: =R40+S39 -> 4775661.906 | T40: -1027759.641 | U40: 33060346.5 | V40: 15772.04 | W40: =+W39+V40 -> 92860.76 | X40: 15772.04 | Y40: =+X40+Y39 -> 4868522.666
A41: 3 | B41: 2004-09-01 | C41: (B) | D41: 66899700.52 | E41: 1955910474 | F41: 66608144.81 | G41: 1922535895 | H41: 291555.7109 | I41: 33374578.92 | J41: -118.7885072 | K41: -22795.49834 | L41: 291436.9224 | M41: 1972161.465 | N41: 33351783.42 | O41: 291436.9224 | P41: 28576121.51 | R41: 0 | S41: 4775661.906 | T41: 291436.9224 | U41: 33351783.42 | V41: 15700.81 | W41: 108561.57 | X41: 15700.81 | Y41: 4884223.476
A42: 3 | B42: 2004-10-01 | C42: (B) | D42: 79322393.22 | E42: 2035232867 | F42: 74713966.51 | G42: 1997249862 | H42: 4608426.71 | I42: 37983005.63 | J42: -1863.804391 | K42: -24659.30273 | L42: 4606562.905 | M42: 6578724.37 | N42: 37958346.32 | O42: 4606562.905 | P42: 33182684.42 | R42: 0 | S42: 4775661.906 | T42: 4606562.905 | U42: 37958346.32 | V42: 17116.5 | W42: 125678.07 | X42: 17116.5 | Y42: 4901339.976
A43: 3 | B43: 2004-11-01 | C43: (B) | D43: 86147413.51 | E43: 2121380281 | F43: 84210823.54 | G43: 2081460685 | H43: 1936589.975 | I43: 39919595.6 | J43: -782.3823501 | K43: -25441.68508 | L43: 1935807.593 | M43: 8514531.963 | N43: 39894153.92 | O43: 1935807.593 | P43: 35118492.01 | R43: 0 | S43: 4775661.906 | T43: 1935807.593 | U43: 39894153.92 | V43: 16564.36 | W43: 142242.43 | X43: 16564.36 | Y43: 4917904.336
A44: 3 | B44: 2004-12-01 | C44: (B) | D44: 95992386.39 | E44: 2217372667 | F44: 93976935.94 | G44: 2175437621 | H44: 2015450.458 | I44: 41935046.06 | J44: -815.2419851 | K44: -26256.92706 | L44: 2014635.216 | M44: 10529167.18 | N44: 41908789.13 | O44: 2014635.216 | P44: 37133127.23 | R44: 0 | S44: 4775661.906 | T44: 2014635.216 | U44: 41908789.13 | V44: 17116.5 | W44: 159358.93 | X44: 17116.5 | Y44: 4935020.836
A45: 3 | B45: 2005-01-01 | C45: (B) (C) | D45: 98603104.39 | E45: 2315975771 | F45: 95513123.02 | G45: 2270950744 | H45: 3089981.375 | I45: 45025027.44 | J45: -1249.352475 | K45: -27506.27954 | L45: 3088732.022 | M45: 13617899.2 | N45: 44997521.16 | O45: 2869091.365 | P45: 40002218.59 | R45: 219640.6575 | S45: 4995302.563 | T45: 3088732.022 | U45: 44997521.16 | V45: 19294.78 | W45: 178653.71 | X45: 238935.4375 | Y45: 5173956.273
A46: 3 | B46: 2005-02-01 | C46: (B) | D46: 88725927.39 | E46: 2404701699 | F46: 83599520.5 | G46: 2354550264 | H46: =D46-F46 -> 5126406.9 | I46: =H46+I45 -> 50151434.34 | J46: -2073.068387 | K46: -29579.34793 | L46: 5124333.831 | M46: 18742233.03 | N46: =L46+N45 -> 50121854.99 | O46: 51243.33831 | P46: 40053461.93 | R46: 5073090.493 | S46: 10068393.06 | T46: 5124333.831 | U46: 50121854.99 | V46: 18862.26 | W46: 197515.97 | X46: 5091952.753 | Y46: 10265909.03
A47: 3 | B47: 2005-03-01 | C47: (B) (D) | D47: 89131538.73 | E47: 2493833238 | F47: 86090863.63 | G47: 2440641128 | H47: =D47-F47 -> 3040675.104 | I47: =H47+I46 -> 53192109.44 | J47: -1212.432742 | K47: -30791.78067 | L47: 3039462.671 | M47: 21781695.7 | N47: =L47+N46 -> 53161317.66 | O47: 21486.14819 | P47: 40074948.08 | R47: 3017976.523 | S47: 13086369.58 | T47: 3039462.671 | U47: 53161317.66 | V47: 41011.13 | W47: 238527.1 | X47: 3058987.653 | Y47: 13324896.68
A48: 3 | B48: 2005-04-01 | C48: (B) | D48: 79808213.5 | E48: 2573641451 | F48: 79275583.79 | G48: 2519916712 | H48: =D48-F48 -> 532629.7148 | I48: =H48+I47 -> 53724739.15 | J48: -211.1824048 | K48: -31002.96307 | L48: 532418.5323 | M48: 22314114.24 | N48: =L48+N47 -> 53693736.19 | O48: 2662.092662 | P48: 40077610.17 | R48: 529756.4397 | S48: 13616126.02 | T48: 532418.5323 | U48: 53693736.19 | V48: 58983.52 | W48: 297510.62 | X48: 588739.9597 | Y48: 13913636.64
A49: 3 | B49: 2005-05-01 | C49: (B) | D49: 61013758.5 | E49: 2634655210 | F49: 74193398.59 | G49: 2594110111 | H49: =D49-F49 -> -13179640.09 | I49: =H49+I48 -> 40545099.06 | J49: 5245.574598 | K49: -25757.38848 | L49: -13174394.52 | M49: 9139719.716 | N49: =L49+N48 -> 40519341.67 | O49: -4333930.407 | P49: 35743679.76 | R49: -8840464.113 | S49: 4775661.906 | T49: -13174394.52 | U49: 40519341.67 | V49: 60007.53 | W49: 357518.15 | X49: -8780456.583 | Y49: 5133180.056
A50: 3 | B50: 2005-06-01 | C50: (B) | D50: 72032908.44 | E50: 2706688118 | F50: 71214743 | G50: 2665324854 | H50: =D50-F50 -> 818165.4354 | I50: =H50+I49 -> 41363264.49 | J50: -324.5388359 | K50: -26081.92731 | L50: 817840.8965 | M50: 9957560.613 | N50: =L50+N49 -> 41337182.57 | O50: 817840.3965 | P50: 36561520.16 | R50: 0 | S50: 4775661.906 | T50: 817840.3965 | U50: 41337182.07 | V50: 20803.57 | W50: 378321.72 | X50: 20803.57 | Y50: 5153983.626
A52: 4 | B52: 2005-07-01 | D52: 68411941.76 | E52: =D52+E50 -> 2775100060 | F52: 74070384.35 | G52: =F52+G50 -> 2739395238 | H52: =D52-F52 -> -5658442.591 | I52: 35704821.9 | J52: 2252.060151 | K52: =J52+K50 -> -23829.86716 | L52: =H52+J52 -> -5656190.531 | M52: =L52 -> -5656190.531 | N52: =L52+N50 -> 35680992.04 | O52: -5656190.531 | P52: =O52+P50 -> 30905329.63 | R52: 0 | S52: =+R52+S50 -> 4775661.906 | T52: =O52+R52 -> -5656190.531 | U52: =P52+S52 -> 35680991.54 | V52: 23403.36 | W52: =+W50+V52 -> 401725.08 | X52: =+R52+V52 -> 23403.36 | Y52: =+X52+Y50 -> 5177386.986
A53: 4 | B53: 2005-08-01 | D53: 75099856.76 | E53: =+E52+D53 -> 2850199917 | F53: 75878971.79 | G53: =+G52+F53 -> 2815274210 | H53: -779115.0307 | I53: 34925706.87 | J53: 310.0877822 | K53: =+K52+J53 -> -23519.77938 | L53: -778804.9429 | M53: =M52+L53 -> -6434995.474 | N53: =N52+L53 -> 34902187.09 | O53: -778804.9429 | P53: =+P52+O53 -> 30126524.69 | R53: 0 | S53: =R53+S52 -> 4775661.906 | T53: -778804.9429 | U53: 34902186.59 | V53: 22951.23 | W53: =+W52+V53 -> 424676.31 | X53: 22951.23 | Y53: =+X53+Y52 -> 5200338.216
A54: 4 | B54: 2005-09-01 | D54: 77992438.76 | E54: 2928192355 | F54: 72653042.69 | G54: 2887927252 | H54: 5339396.068 | I54: 40265102.94 | J54: -2125.079635 | K54: -25644.85901 | L54: 5337270.988 | M54: -1097724.486 | N54: 40239458.08 | O54: 5337270.988 | P54: 35463795.68 | R54: 0 | S54: 4775661.906 | T54: 5337270.988 | U54: 40239457.58 | V54: 22648.42 | W54: 447324.73 | X54: 22648.42 | Y54: 5222986.636
A55: 4 | B55: 2005-10-01 | D55: 85827622.76 | E55: 3014019978 | F55: 80243629.76 | G55: 2968170882 | H55: 5583992.995 | I55: 45849095.94 | J55: -2222.429212 | K55: -27867.28823 | L55: 5581770.566 | M55: 4484046.08 | N55: 45821228.65 | O55: 4546659.492 | P55: 40010455.17 | R55: 1035111.074 | S55: 5810772.98 | T55: 5581770.566 | U55: 45821228.15 | V55: 25445.82 | W55: 472770.55 | X55: 1060556.894 | Y55: 6283543.53
A56: 4 | B56: 2005-11-01 | D56: 100834275.4 | E56: 3114854253 | F56: 101324973.1 | G56: 3069495855 | H56: -490697.73 | I56: 45358398.21 | J56: 195.2976965 | K56: -27671.99053 | L56: -490502.4323 | M56: 3993543.648 | N56: 45330726.21 | O56: -4905.024323 | P56: 40005550.14 | R56: -485597.408 | S56: 5325175.572 | T56: -490502.4323 | U56: 45330725.71 | V56: 29671.46 | W56: 502442.01 | X56: -455925.948 | Y56: 5827617.582
A57: 4 | B57: 2005-12-01 | D57: 124659147.1 | E57: 3239513401 | F57: 114228748.8 | G57: 3183724604 | H57: 10430398.31 | I57: 55788796.51 | J57: -4151.298525 | K57: -31823.28905 | L57: 10426247.01 | M57: 14419790.65 | N57: 55756973.22 | O57: 104262.4701 | P57: 40109812.61 | R57: 10321984.54 | S57: 15647160.11 | T57: 10426247.01 | U57: 55756972.72 | V57: 29938.55 | W57: 532380.56 | X57: 10351923.09 | Y57: 16179540.67
A58: 4 | B58: 2006-01-01 | D58: 104630999.2 | E58: 3344144400 | F58: 107291961.3 | G58: 3291016565 | H58: -2660962.093 | I58: 53127834.42 | J58: 1059.062913 | K58: -30764.22614 | L58: -2659903.03 | M58: 11759887.62 | N58: 53097070.19 | O58: -26599.0303 | P58: 40083213.58 | R58: -2633303.999 | S58: 13013856.11 | T58: -2659903.03 | U58: 53097069.69 | V58: 89612.78 | W58: 621993.34 | X58: -2543691.219 | Y58: 13635849.45
A59: 4 | B59: 2006-02-01 | D59: 102024029.6 | E59: 3446168429 | F59: 99805663.69 | G59: 3390822229 | H59: =D59-F59 -> 2218365.867 | I59: =H59+I58 -> 55346200.28 | J59: -633.9096151 | K59: -31398.13576 | L59: 2217731.957 | M59: 13977619.58 | N59: =L59+N58 -> 55314802.15 | O59: 22177.31957 | P59: 40105390.9 | R59: 2195554.638 | S59: 15209410.75 | T59: 2217731.957 | U59: 55314801.65 | V59: 68094.15 | W59: 690087.49 | X59: 2263648.788 | Y59: 15899498.24
A60: 4 | B60: 2006-03-01 | D60: 108508429.2 | E60: 3554676859 | F60: 101462777 | G60: 3492285006 | H60: =D60-F60 -> 7045652.218 | I60: =H60+I59 -> 62391852.5 | J60: -2804.169583 | K60: -34202.30534 | L60: 7042848.048 | M60: 21020467.63 | N60: =L60+N59 -> 62357650.2 | O60: 65326.14233 | P60: 40170717.04 | R60: 6977521.906 | S60: 22186932.65 | T60: 7042848.048 | U60: 62357649.7 | V60: 88877.3 | W60: 778964.79 | X60: 7066399.206 | Y60: 22965897.44
A61: 4 | B61: 2006-04-01 | D61: 77069135.08 | E61: 3631745994 | F61: 86590213.15 | G61: 3578875219 | H61: =D61-F61 -> -9521078.066 | I61: =H61+I60 -> 52870774.44 | J61: 3789.38907 | K61: -30412.91627 | L61: -9517288.677 | M61: 11503178.95 | N61: =L61+N60 -> 52840361.52 | O61: -90070.54862 | P61: 40080646.5 | R61: -9427218.129 | S61: 12759714.52 | T61: -9517288.677 | U61: 52840361.02 | V61: 135673.54 | W61: 914638.33 | X61: -9291544.589 | Y61: 13674352.85
A62: 4 | B62: 2006-05-01 | D62: 64132971.83 | E62: 3695878965 | F62: 82958419.82 | G62: 3661833639 | H62: =D62-F62 -> -18825447.99 | I62: =H62+I61 -> 34045326.45 | J62: 7492.528299 | K62: -22920.38797 | L62: -18817955.46 | M62: -7314776.507 | N62: =L62+N61 -> 34022406.06 | O62: -10833902.84 | P62: 29246743.65 | R62: -7984052.618 | S62: 4775661.906 | T62: -18817955.46 | U62: 34022405.56 | V62: 69514.41 | W62: 984152.74 | X62: -7914538.208 | Y62: 5759814.646
A63: 4 | B63: 2006-06-01 | D63: 73656972.34 | E63: 3769535938 | F63: 78718897.42 | G63: 3740552536 | H63: =D63-F63 -> -5061925.08 | I63: =H63+I62 -> 28983401.37 | J63: 1213.726504 | K63: -21706.66147 | L63: -5060711.354 | M63: -12375487.86 | N63: =L63+N62 -> 28961694.71 | O63: -5060711.354 | P63: 24186032.3 | R63: 0 | S63: 4775661.906 | T63: -5060711.354 | U63: 28961694.21 | V63: 27181.97 | W63: 1011334.71 | X63: 27181.97 | Y63: 5786996.616
A64: 1-4 - Cumulative Amounts | E64: =E63 -> 3769535938 | G64: =G63 -> 3740552536 | I64: =I63 -> 28983401.37 | K64: =K63 -> -21706.66147 | N64: =N63 -> 28961694.71 | P64: =P63 -> 24186032.3 | S64: =S63 -> 4775661.906 | U64: =U63 -> 28961694.21 | W64: =W63 -> 1011334.71 | Y64: =Y63 -> 5786996.616
D66: Actuals | F66: Baseline | H66: Difference (A) | J66: Wholesale Customer | L66: Imbalance for Sharing | O66: Company per PCA | R66: Customer per PCA | T66: Total | V66: Interest on Customer | X66: Total Customer per PCA
D67: Actuals | E67: PCA Period | F67: Baseline | G67: PCA Period | H67: Monthly Difference | I67: PCA Period | J67: Monthly | K67: PCA Period | L67: Monthly | M67: PCA Period | O67: Monthly | P67: PCA Period | R67: Monthly | S67: PCA Period | T67: Monthly Difference | U67: PCA Period | V67: Monthly | W67: PCA Period | X67: Monthly | Y67: PCA Period
A68: 5 | B68: 2006-07-01 | D68: 73767454.87 | E68: =D68 -> 73767454.87 | F68: 89533013.27 | G68: =F68 -> 89533013.27 | H68: =D68-F68 -> -15765558.4 | I68: -15765558.4 | J68: 4661.875619 | K68: =J68 -> 4661.875619 | L68: =H68+J68 -> -15760896.53 | M68: =L68 -> -15760896.53 | O68: -12880448.26 | P68: =O68 -> -12880448.26 | R68: -2880448.263 | S68: =+R68 -> -2880448.263 | T68: =O68+R68 -> -15760896.53 | U68: =+P68+S68 -> -15760896.53 | V68: 30782.95 | W68: =+V68 -> 30782.95 | X68: =+R68+V68 -> -2849665.313 | Y68: =+X68 -> -2849665.313
A69: 5 | B69: 2006-08-01 | D69: 82157751.87 | E69: =+E68+D69 -> 155925206.7 | F69: 89240945.17 | G69: =+G68+F69 -> 178773958.4 | H69: -7083193.295 | I69: -22848751.7 | J69: 2094.500257 | K69: =+K68+J69 -> 6756.375877 | L69: -7081098.795 | M69: =M68+L69 -> -22841995.32 | O69: -2403751.269 | P69: =+P68+O69 -> -15284199.53 | R69: -4677347.526 | S69: =R69+S68 -> -7557795.788 | T69: -7081098.795 | U69: =P69+S69 -> -22841995.32 | V69: 11466.71 | W69: =+W68+V69 -> 42249.66 | X69: -4665880.816 | Y69: =+X69+Y68 -> -7515546.128
A70: 5 | B70: 2006-09-01 | D70: 92776030.87 | E70: =+E69+D70 -> 248701237.6 | F70: 87713288.33 | G70: =+G69+F70 -> 266487246.8 | H70: 5062742.546 | I70: -17786009.15 | J70: -1497.052971 | K70: =+K69+J70 -> 5259.322906 | L70: 5061245.493 | M70: =M69+L70 -> -17780749.83 | O70: 1393824.618 | P70: =+P69+O70 -> -13890374.91 | R70: 3667420.875 | S70: =R70+S69 -> -3890374.914 | T70: 5061245.493 | U70: =P70+S70 -> -17780749.83 | V70: -16921.25 | W70: =+W69+V70 -> 25328.41 | X70: 3650499.625 | Y70: =+X70+Y69 -> -3865046.504
A71: 5 | B71: 2006-10-01 | D71: 109259892.9 | E71: =+E70+D71 -> 357961130.5 | F71: 97980392.84 | G71: =+G70+F71 -> 364467639.6 | H71: 11279500.03 | I71: -6506509.121 | J71: -3335.348159 | K71: =+K70+J71 -> 1923.974747 | L71: 11276164.68 | M71: =M70+L71 -> -6504585.146 | O71: 7385789.768 | P71: =+P70+O71 -> -6504585.146 | R71: 3890374.914 | S71: =R71+S70 -> 0 | T71: 11276164.68 | U71: =P71+S71 -> -6504585.146 | V71: 7013.72 | W71: =+W70+V71 -> 32342.13 | X71: 3897388.634 | Y71: =+X71+Y70 -> 32342.13
A72: 5 | B72: 2006-11-01 | D72: 111200870.8 | E72: =+E71+D72 -> 469162001.3 | F72: 112283251.7 | G72: =+G71+F72 -> 476750891.3 | H72: -1082380.927 | I72: -7588890.048 | J72: 320.0600402 | K72: =+K71+J72 -> 2244.034787 | L72: -1082060.867 | M72: =M71+L72 -> -7586646.014 | O72: -1082060.867 | P72: =+P71+O72 -> -7586646.014 | R72: 0 | S72: =R72+S71 -> 0 | T72: -1082060.867 | U72: =P72+S72 -> -7586646.014 | V72: 32068.89 | W72: =+W71+V72 -> 64411.02 | X72: 32068.89 | Y72: =+X72+Y71 -> 64411.02
A73: 5 | B73: 2006-12-01 | D73: 127256333.9 | E73: =+E72+D73 -> 596418335.2 | F73: 120338675.5 | G73: =+G72+F73 -> 597089566.8 | H73: 6917658.394 | I73: -671231.6546 | J73: -2045.551587 | K73: =+K72+J73 -> 198.4832003 | L73: 6915612.842 | M73: =M72+L73 -> -671033.1714 | O73: 6915612.842 | P73: =+P72+O73 -> -671033.1714 | R73: 0 | S73: =R73+S72 -> 0 | T73: 6915612.842 | U73: =P73+S73 -> -671033.1714 | V73: 33137.86 | W73: =+W72+V73 -> 97548.88 | X73: 33137.86 | Y73: =+X73+Y72 -> 97548.88
A74: 1-5 - Cumulative Amounts | E74: =ROUND(E64+E73,0) -> 4365954273 | G74: =ROUND(G64+G73,0) -> 4337642103 | I74: =ROUND(I64+I73,0) -> 28312170 | K74: =ROUND(K64+K73,0) -> -21508 | N74: =ROUND(N64+M73,0) -> 28290662 | P74: =ROUND(P64+P73,0) -> 23514999 | S74: =ROUND(S64+S73,0) -> 4775662 | U74: =ROUND(U64+U73,0) -> 28290661 | W74: =ROUND(W64+W73,0) -> 1108884 | Y74: =ROUND(Y64+Y73,0) -> 5884545
D77: Actuals | F77: Baseline | H77: Difference (A) | J77: Wholesale Customer | L77: Imbalance for Sharing | O77: Company per PCA | R77: Customer per PCA | T77: Total | V77: Interest on Customer | X77: Total Customer per PCA
D78: Actuals | E78: PCA Period | F78: Baseline | G78: PCA Period | H78: Monthly Difference | I78: PCA Period | J78: Monthly | K78: PCA Period | L78: Monthly | M78: PCA Period | O78: Monthly (A) | P78: PCA Period (A) | R78: Monthly (A) | S78: PCA Period (A) | T78: Monthly Difference (A) | U78: PCA Period (A) | V78: Monthly (A) | W78: PCA Period (A) | X78: Monthly (A) | Y78: PCA Period (A)
A79: 6 | B79: 2007-01-01 | D79: 130313494.4 | E79: =D79 -> 130313494.4 | F79: 130173815.4 | G79: =F79 -> 130173815.4 | H79: =D79-F79 -> 139679.0723 | I79: 139679.0723 | J79: -47.23585762 | K79: =J79 -> -47.23585762 | L79: =H79+J79 -> 139631.8364 | M79: =L79 -> 139631.8364 | O79: 139631.8364 | P79: =O79 -> 139631.8364 | R79: 0 | S79: =R79 -> 0 | T79: =O79+R79 -> 139631.8364 | U79: 139631.8364 | V79: 33462.34 | W79: =V79 -> 33462.34 | X79: =R79+V79 -> 33462.34 | Y79: =X79 -> 33462.34
A80: 6 | B80: 2007-02-01 | D80: 117609944.2 | E80: =E79+D80 -> 247923438.6 | F80: 105725085 | G80: =G79+F80 -> 235898900.3 | H80: 11884859.17 | I80: 12024538.24 | J80: -4337.973598 | K80: =K79+J80 -> -4385.209456 | L80: =H80+J80 -> 11880521.2 | M80: =M79+L80 -> 12020153.04 | O80: 11880521.2 | P80: =P79+O80 -> 12020153.04 | R80: 0 | S80: =R80+S79 -> 0 | T80: 11880521.2 | U80: 12020153.04 | V80: 30224.05 | W80: =W79+V80 -> 63686.39 | X80: =R80+V80 -> 30224.05 | Y80: =X80+Y79 -> 63686.39
A81: 6 | B81: 2007-03-01 | D81: 108842911.2 | E81: =E80+D81 -> 356766349.7 | F81: 108271541.6 | G81: 344170441.9 | H81: 571369.5781 | I81: 12595907.82 | J81: -208.549896 | K81: -4593.759352 | L81: =H81+J81 -> 571161.0282 | M81: =M80+L81 -> 12591314.06 | O81: 571161.0282 | P81: =P80+O81 -> 12591314.06 | R81: 0 | S81: 0 | T81: 571161.0282 | U81: 12591314.06 | V81: 33462.34 | W81: 97148.73 | X81: =R81+V81 -> 33462.34 | Y81: 97148.73
A82: 6 | B82: 2007-04-01 | D82: 80844751.45 | E82: =E81+D82 -> 437611101.2 | F82: 96523697 | G82: 440694138.9 | H82: -15678945.55 | I82: -3083037.728 | J82: 5722.815126 | K82: 1129.055775 | L82: =H82+J82 -> -15673222.74 | M82: =M81+L82 -> -3081908.672 | O82: -15673222.74 | P82: =P81+O82 -> -3081908.672 | R82: 0 | S82: 0 | T82: -15673222.74 | U82: -3081908.672 | V82: 32382.91 | W82: 129531.64 | X82: =R82+V82 -> 32382.91 | Y82: 129531.64
A83: 6 | B83: 2007-05-01 | D83: 73163799.16 | E83: =E82+D83 -> 510774900.4 | F83: 91051297.41 | G83: 531745436.3 | H83: =D83-F83-1 -> -17887499.25 | I83: =E83-G83 -> -20970535.98 | J83: 6528.937227 | K83: 7657.993001 | L83: =H83+J83+1 -> -17880969.31 | M83: =M82+L83-1 -> -20962878.99 | O83: -17399530.32 | P83: =P82+O83-0.5 -> -20481439.49 | R83: -481438.9931 | S83: -481438.9931 | T83: -17880969.31 | U83: -20962878.49 | V83: 33353.52 | W83: 162885.16 | X83: =R83+V83 -> -448085.4731 | Y83: -318553.8331
A84: 6 | B84: 2007-06-01 | D84: 79290450.16 | E84: =E83+D84-1 -> 590065349.5 | F84: 86418506.24 | G84: 618163942.6 | H84: =D84-F84 -> -7128056.077 | I84: =E84-G84 -> -28098593.06 | J84: 2601.740468 | K84: 10259.73347 | L84: =H84+J84 -> -7125454.336 | M84: =M83+L84+1 -> -28088332.32 | O84: -3562727.168 | P84: =P83+O84 -> -24044166.66 | R84: -3562728.168 | S84: -4044167.161 | T84: =O84+R84+1 -> -7125454.336 | U84: =P84+S84+1 -> -28088332.82 | V84: 28313.09 | W84: 191198.25 | X84: =R84+V84+1 -> -3534414.078 | Y84: -3852967.911
A85: 6 | B85: 2007-07-01 | D85: 76518472.86 | E85: =E84+D85+1 -> 666583823.4 | F85: 91349133.06 | G85: 709513075.6 | H85: -14830660.2 | I85: =E85-G85-1 -> -42929253.26 | J85: 5413.190975 | K85: 15672.92444 | L85: -14825247.01 | M85: =M84+L85-1 -> -42913580.34 | O85: -6247190.772 | P85: -30291357.43 | R85: -8578055.241 | S85: -12622222.4 | T85: =O85+R85-1 -> -14825247.01 | U85: =P85+S85 -> -42913579.84 | V85: 3186.6 | W85: 194384.85 | X85: =R85+V85 -> -8574868.641 | Y85: -12427836.55
A86: 6 | B86: 2007-08-01 | D86: 86187490.16 | E86: =E85+D86 -> 752771313.5 | F86: 89646970 | G86: 799160045.6 | H86: -3459479.846 | I86: =E86-G86 -> -46388732.11 | J86: 1262.710144 | K86: 16935.63459 | L86: -3458217.136 | M86: =M85+L86 -> -46371797.47 | O86: -345821.7136 | P86: -30637179.15 | R86: -3112395.422 | S86: -15734617.82 | T86: =O86+R86 -> -3458217.136 | U86: -46371796.97 | V86: -55683.15 | W86: 138701.7 | X86: -3168078.572 | Y86: -15595915.12
A87: 6 | B87: 2007-09-01 | D87: 95038223.27 | E87: =E86+D87 -> 847809536.8 | F87: 93144340.04 | G87: 892304385.7 | H87: 1893883.228 | I87: =E87-G87 -> -44494848.88 | J87: -672.3285459 | K87: 16263.30604 | L87: 1893210.899 | M87: =M86+L87 -> -44478586.57 | O87: 189321.0899 | P87: -30447858.06 | R87: 1703889.809 | S87: -14030728.01 | T87: =O87+R87 -> 1893210.899 | U87: -44478586.07 | V87: -73925.6 | W87: 64776.1 | X87: 1629964.209 | Y87: -13965950.91
A88: 6 | B88: 2007-10-01 | D88: 111900399.3 | E88: =E87+D88 -> 959709936.1 | F88: 107522297.8 | G88: 999826683.5 | H88: 4378101.428 | I88: =E88-G88 -> -40116747.45 | J88: -1554.226007 | K88: 14709.08003 | L88: 4376547.202 | M88: =M87+L88 -> -40102039.37 | O88: 437654.7202 | P88: -30010203.34 | R88: 3938892.482 | S88: -10091835.53 | T88: =O88+R88 -> 4376547.202 | U88: -40102038.87 | V88: -63958.56 | W88: 817.54 | X88: 3874933.922 | Y88: -10091016.99
A89: 6 | B89: 2007-11-01 | D89: 121527866.3 | E89: =E88+D89 -> 1081237802 | F89: 117673983.2 | G89: 1117500667 | H89: 3853883.085 | I89: =E89-G89 -> -36262864.36 | J89: -1368.128495 | K89: 13340.95154 | L89: 3852514.957 | M89: =M88+L89 -> -36249524.41 | O89: 1885442.13 | P89: -28124761.21 | R89: 1967072.826 | S89: -8124762.707 | T89: =O89+R89 -> 3852514.957 | U89: -36249523.91 | V89: -35603.42 | W89: -34785.88 | X89: 1931469.406 | Y89: -8159547.587
A90: 6 | B90: 2007-12-01 | D90: 141627517.3 | E90: =E89+D90 -> 1222865320 | F90: 135588520.5 | G90: 1253089187 | H90: 6038996.766 | I90: =E90-G90 -> -30223867.6 | J90: -2143.843852 | K90: 11197.10769 | L90: 6036852.922 | M90: =M89+L90 -> -30212671.49 | O90: 3018426.461 | P90: -25106334.75 | R90: 3018426.461 | S90: -5106336.246 | T90: =O90+R90 -> 6036852.922 | U90: -30212670.99 | V90: -22784.4 | W90: -57570.28 | X90: 2995642.061 | Y90: -5163905.526
P91: -25106334.75
A92: 1-6 - Cumulative Amounts | E92: =E64+E73+E90 -> 5588819593 | G92: =G64+G73+G90 -> 5590731290 | I92: =I64+I73+I90 -> -1911697.885 | K92: =K64+K73+K90 -> -10311.07058 | N92: =N64+M73+M90 -> -1922009.956 | P92: =P64+P73+P90 -> -1591335.616 | S92: =S64+S73+S90 -> -330674.3398 | U92: =U64+U73+U90 -> -1922009.956 | W92: =W64+W73+W90 -> 1051313.31 | Y92: =Y64+Y73+Y90 -> 720639.9702
A94: 7 | B94: 2008-01-01 | D94: 135571915.4 | E94: =D94 -> 135571915.4 | F94: 137848115.5 | G94: =F94 -> 137848115.5 | H94: =D94-F94 -> -2276200.066 | I94: =E94-G94 -> -2276200.066 | J94: 808.0510234 | K94: =J94 -> 808.0510234 | L94: =H94+J94 -> -2275392.015 | M94: =L94 -> -2275392.015 | O94: -2275392.015 | P94: =O94 -> -2275392.015 | R94: 0 | S94: =R94 -> 0 | T94: =O94+R94 -> -2275392.015 | U94: =P94+S94 -> -2275392.015 | V94: -2179.37 | W94: =V94 -> -2179.37 | X94: =R94+V94 -> -2179.37 | Y94: =X94 -> -2179.37
A95: 7 | B95: 2008-02-01 | D95: 120260949.4 | E95: =E94+D95 -> 255832864.9 | F95: 117800650.3 | G95: =G94+F95 -> 255648765.8 | H95: 2460299.125 | I95: 184099.0595 | J95: -873.4061895 | K95: =K94+J95 -> -65.35516611 | L95: 2459425.719 | M95: =M94+L95 -> 184033.7043 | O95: 2459425.719 | P95: =P94+O95 -> 184033.7043 | R95: 0 | S95: =R95+S94 -> 0 | T95: 2459425.719 | U95: 184033.7043 | V95: -2038.76 | W95: =W94+V95 -> -4218.13 | X95: -2038.76 | Y95: =X95+Y94 -> -4218.13
A96: 7 | B96: 2008-03-01 | D96: 122262804.4 | E96: 378095669.3 | F96: 120889465.7 | G96: 376538231.5 | H96: 1373338.731 | I96: 1557437.79 | J96: -487.5352494 | K96: -552.8904155 | L96: 1372851.196 | M96: 1556884.9 | O96: 1372851.196 | P96: 1556884.9 | R96: 0 | S96: 0 | T96: 1372851.196 | U96: 1556884.9 | V96: -2179.37 | W96: -6397.5 | X96: -2179.37 | Y96: -6397.5
A97: 7 | B97: 2008-04-01 | D97: 106748926.4 | E97: 484844595.8 | F97: 109488535.7 | G97: 486026767.3 | H97: -2739609.298 | I97: -1182171.508 | J97: 972.5613008 | K97: 419.6708853 | L97: -2738636.737 | M97: -1181751.837 | O97: -2738636.737 | P97: -1181751.837 | R97: 0 | S97: 0 | T97: -2738636.737 | U97: -1181751.837 | V97: -1840 | W97: -8237.5 | X97: -1840 | Y97: -8237.5
A98: 7 | B98: 2008-05-01 | D98: 78026834.44 | E98: 562871430.2 | F98: 99047042.83 | G98: 585073810.1 | H98: -21020208.39 | I98: -22202379.9 | J98: 7462.173979 | K98: 7881.844865 | L98: -21012746.22 | M98: -22194498.06 | O98: -19915497.19 | P98: -21097249.03 | R98: -1097249.028 | S98: -1097249.028 | T98: -21012746.22 | U98: -22194498.06 | V98: -2104.85 | W98: -10342.35 | X98: -1099353.878 | Y98: -1107591.378
A99: 7 | B99: 2008-06-01 | D99: 85268061.44 | E99: 648139491.6 | F99: 93626853.91 | G99: 678700664 | H99: -8358792.469 | I99: -30561172.37 | J99: 2967.371327 | K99: 10849.21619 | L99: -8355825.098 | M99: -30550323.15 | O99: -4177912.549 | P99: -25275161.58 | R99: -4177912.549 | S99: -5275161.577 | T99: -8355825.098 | U99: -30550323.15 | V99: -8720.43 | W99: -19062.78 | X99: -4186632.979 | Y99: -5294224.357
A100: 7 | B100: 2008-07-01 | D100: 84378310.44 | E100: 732517802.1 | F100: 93609618.49 | G100: 772310282.5 | H100: -9231308.054 | I100: -39792480.42 | J100: 3277.114359 | K100: 14126.33055 | L100: -9228030.94 | M100: -39778354.09 | O100: -4614015.47 | P100: -29889177.05 | R100: -4614015.47 | S100: -9889177.047 | T100: -9228030.94 | U100: -39778354.09 | V100: -25903.92 | W100: -44966.7 | X100: -4639919.39 | Y100: -9934143.747
A101: 7 | B101: 2008-08-01 | D101: 97932557.44 | E101: 830450359.5 | F101: 95078751.26 | G101: 867389033.8 | H101: 2853806.178 | I101: -36938674.25 | J101: -1013.101193 | K101: 13113.22936 | L101: 2852793.077 | M101: -36925561.02 | O101: 1426396.539 | P101: -28462780.51 | R101: 1426396.539 | S101: -8462780.508 | T101: 2852793.077 | U101: -36925561.02 | V101: -45796.21 | W101: -90762.91 | X101: 1380600.329 | Y101: -8553543.418
A102: 7 | B102: 2008-09-01 | D102: 104739444.4 | E102: 935189803.9 | F102: 91978344.34 | G102: 959367378.1 | H102: 12761100.09 | I102: -24177574.15 | J102: -4530.190533 | K102: 8583.038824 | L102: 12756569.9 | M102: -24168991.11 | O102: 6378284.951 | P102: -22084495.56 | R102: 6378284.951 | S102: -2084495.557 | T102: 12756569.9 | U102: -24168991.11 | V102: -37379.58 | W102: -128142.49 | X102: 6340905.371 | Y102: -2212638.047
A103: 7 | B103: 2008-10-01 | D103: 115174515.4 | E103: 1050364319 | F103: 108124950.3 | G103: 1067492328 | H103: 7049565.134 | I103: -17128009.02 | J103: -2502.595623 | K103: 6080.443201 | L103: 7047062.538 | M103: -17121928.58 | O103: 4962566.982 | P103: -17121928.58 | R103: 2084495.557 | S103: 0 | T103: 7047062.538 | U103: -17121928.58 | V103: -9970.66 | W103: -138113.15 | X103: 2074524.897 | Y103: -138113.15
A104: 7 | B104: 2008-11-01 | D104: 117564742.3 | E104: 1167929062 | F104: 114664738.6 | G104: 1182157067 | H104: 2900003.752 | I104: -14228005.27 | J104: -1042.870349 | K104: 5037.572852 | L104: 2898960.882 | M104: -14222967.69 | O104: 2898960.882 | P104: -14222967.69 | R104: 0 | S104: 0 | T104: 2898960.882 | U104: -14222967.69 | V104: -1358.94 | W104: -139472.09 | X104: -1358.94 | Y104: -139472.09
A105: 7 | B105: 2008-12-01 | D105: 160186129.3 | E105: 1328115191 | F105: 147723604.4 | G105: 1329880671 | H105: 12462524.96 | I105: -1765480.306 | J105: -4481.648601 | K105: 555.9242513 | L105: 12458043.31 | M105: -1764924.382 | O105: 12458043.31 | P105: -1764924.382 | R105: 0 | S105: 0 | T105: 12458043.31 | U105: -1764924.382 | V105: -1404.24 | W105: -140876.33 | X105: -1404.24 | Y105: -140876.33
A107: 1-7 - Cumulative Amounts | E107: =E74+E90+E105 -> 6916934784 | G107: =G74+G90+G105 -> 6920611962 | I107: =I74+I90+I105 -> -3677177.905 | K107: =K74+K90+K105 -> -9754.968061 | N107: =N64+M73+M90+M105 -> -3686934.338 | P107: =P74+P90+P105 -> -3356260.128 | S107: =S74+S90+S105 -> -330674.2458 | U107: =U74+U90+U105 -> -3686934.373 | W107: =W74+W90+W105 -> 910437.39 | Y107: =Y74+Y90+Y105+1 -> 579764.1442
A109: 8 | B109: 2009-01-01 | D109: 132102143.3 | E109: =D109 -> 132102143.3 | F109: 142357342.3 | G109: =F109 -> 142357342.3 | H109: =D109-F109 -> -10255198.97 | I109: =E109-G109 -> -10255198.97 | J109: 3687.8721 | K109: =J109 -> 3687.8721 | L109: =H109+J109 -> -10251511.09 | M109: =L109 -> -10251511.09 | O109: -10251511.09 | P109: =O109 -> -10251511.09 | R109: 0 | S109: =R109 -> 0 | T109: =O109+R109 -> -10251511.09 | U109: =P109+S109 -> -10251511.09 | V109: -1269.43 | W109: =V109 -> -1269.43 | X109: =R109+V109 -> -1269.43 | Y109: =X109 -> -1269.43
A110: 8 | B110: 2009-02-01 | D110: 126942999.3 | E110: =E109+D110 -> 259045142.6 | F110: 121748942.6 | G110: =G109+F110 -> 264106284.9 | H110: 5194056.698 | I110: -5061142.267 | J110: -1867.834729 | K110: =K109+J110 -> 1820.037371 | L110: 5192188.863 | M110: =M109+L110 -> -5059322.23 | O110: 5192188.863 | P110: =P109+O110 -> -5059322.23 | R110: 0 | S110: =R110+S109 -> 0 | T110: 5192188.863 | U110: -5059322.23 | V110: -1146.58 | W110: =W109+V110 -> -2416.01 | X110: -1146.58 | Y110: =X110+Y109 -> -2416.01
A111: 8 | B111: 2009-03-01 | D111: 129596033.3 | E111: 388641176 | F111: 129587005 | G111: 393693289.9 | H111: 9028.349023 | I111: -5052113.918 | J111: -3.246684592 | K111: 1816.790686 | L111: 9025.102339 | M111: -5050297.128 | O111: 9025.102339 | P111: -5050297.128 | R111: 0 | S111: 0 | T111: 9025.102339 | U111: -5050297.128 | V111: -1269.43 | W111: -3685.44 | X111: -1269.43 | Y111: -3685.44
A112: 8 | B112: 2009-04-01 | D112: 103945338.3 | E112: 492586514.3 | F112: 107439486.4 | G112: 501132776.3 | H112: -3494148.123 | I112: -8546262.041 | J112: 1256.530607 | K112: 3073.321293 | L112: -3492891.593 | M112: -8543188.72 | O112: -3492891.593 | P112: -8543188.72 | R112: 0 | S112: 0 | T112: -3492891.593 | U112: -8543188.72 | V112: -915.92 | W112: -4601.36 | X112: -915.92 | Y112: -4601.36
A113: 8 | B113: 2009-05-01 | D113: 87289510.32 | E113: 579876024.6 | F113: 100022768.8 | G113: 601155545.1 | H113: -12733258.47 | I113: -21279520.51 | J113: 4579.007078 | K113: 7652.328371 | L113: -12728679.46 | M113: -21271868.18 | O113: -12092745.37 | P113: -20635934.09 | R113: -635934.0911 | S113: -635934.0911 | T113: -12728679.46 | U113: -21271868.18 | V113: -1005.17 | W113: -5606.53 | X113: -636939.2611 | Y113: -641540.6211
A114: 8 | B114: 2009-06-01 | D114: 93572695.32 | E114: 673448719.9 | F114: 94670137.36 | G114: 695825682.5 | H114: -1097442.047 | I114: -22376962.56 | J114: 394.6511344 | K114: 8046.979505 | L114: -1097047.396 | M114: -22368915.58 | O114: -548523.6978 | P114: -21184457.79 | R114: -548523.6978 | S114: -1184457.789 | T114: -1097047.396 | U114: -22368915.58 | V114: -2728.02 | W114: -8334.55 | X114: -551251.7178 | Y114: -1192792.339
A115: 8 | B115: 2009-07-01 | D115: 101039840.3 | E115: 774488560.2 | F115: 103847341.9 | G115: 799673024.4 | H115: -2807501.608 | I115: -25184464.17 | J115: 1009.605653 | K115: 9056.585159 | L115: -2806492.003 | M115: -25175407.58 | O115: -1403246.001 | P115: -22587703.79 | R115: -1403246.001 | S115: -2587703.79 | T115: -2806492.003 | U115: -25175407.58 | V115: -4307.13 | W115: -12641.68 | X115: -1407553.131 | Y115: -2600345.47
A116: 8 | B116: 2009-08-01 | D116: 100784418.3 | E116: 875272978.5 | F116: 99566731.4 | G116: 899239755.8 | H116: 1217686.919 | I116: -23966777.25 | J116: -437.892393 | K116: 8618.692766 | L116: 1217249.027 | M116: -23958158.55 | O116: 608624.5134 | P116: -21979079.28 | R116: 608624.5134 | S116: -1979079.277 | T116: 1217249.027 | U116: -23958158.55 | V116: -8001.33 | W116: -20643.01 | X116: 600623.1834 | Y116: -1999722.287
A117: 8 | B117: 2009-09-01 | D117: 109406019.3 | E117: 984678997.9 | F117: 96914436.13 | G117: 996154191.9 | H117: 12491583.19 | I117: -11475194.05 | J117: -4492.098232 | K117: 4126.594534 | L117: 12487091.09 | M117: -11471067.46 | O117: 10508011.82 | P117: -11471067.46 | R117: 1979079.277 | S117: 0 | T117: 12487091.09 | U117: -11471067.46 | V117: -5993.67 | W117: -26636.68 | X117: 1973085.607 | Y117: -26636.68
A118: 8 | B118: 2009-10-01 | D118: 128413053.3 | E118: 1113092051 | F118: 109843919.7 | G118: 1105998112 | H118: 18569133.6 | I118: 7093939.547 | J118: -6677.646134 | K118: -2551.0516 | L118: 18562455.95 | M118: 7091388.495 | O118: 18562455.95 | P118: 7091388.495 | R118: 0 | S118: 0 | T118: 18562455.95 | U118: 7091388.495 | V118: -912.75 | W118: -27549.43 | X118: -912.75 | Y118: -27549.43
A119: 8 | B119: 2009-11-01 | D119: 127377633.3 | E119: 1240469684 | F119: 119041969.2 | G119: 1225040081 | H119: 8335664.114 | I119: 15429603.66 | J119: -2997.588172 | K119: -5548.639772 | L119: 8332666.525 | M119: 15424055.02 | O119: 8332666.525 | P119: 15424055.02 | R119: 0 | S119: 0 | T119: 8332666.525 | U119: 15424055.02 | V119: -883.3 | W119: -28432.73 | X119: -883.3 | Y119: -28432.73
A120: 8 | B120: 2009-12-01 | D120: 164400268.3 | E120: 1404869953 | F120: 149548885.2 | G120: 1374588966 | H120: 14851383.14 | I120: 30280986.8 | J120: -5340.705892 | K120: -10889.34566 | L120: 14846042.44 | M120: 30270097.46 | O120: 9710993.708 | P120: 25135048.73 | R120: 5135048.729 | S120: 5135048.729 | T120: 14846042.44 | U120: 30270097.46 | V120: -455.52 | W120: -28888.25 | X120: 5134593.209 | Y120: 5106160.479
A122: 1-8 - Cumulative Amounts | E122: =E107+E120 -> 8321804736 | G122: =G107+G120 -> 8295200928 | I122: =I107+I120 -> 26603808.9 | K122: =K107+K120 -> -20644.31373 | N122: =N107+M120 -> 26583163.12 | P122: =P107+P120 -> 21778788.6 | S122: =S107+S120 -> 4804374.483 | U122: =U107+U120 -> 26583163.08 | W122: =W107+W120 -> 881549.14 | Y122: =Y107+Y120 -> 5685924.623
D124: Actuals | F124: Baseline | H124: Difference (A) | J124: Wholesale Customer | L124: Imbalance for Sharing | O124: Company per PCA | R124: Customer per PCA | T124: Total | V124: Interest on Customer | X124: Total Customer per PCA
D125: Monthly | E125: PCA Period | F125: Baseline | G125: PCA Period | H125: Monthly Difference | I125: PCA Period | J125: Monthly | K125: PCA Period | L125: Monthly | M125: PCA Period | O125: Monthly | P125: PCA Period | R125: Monthly | S125: PCA Period | T125: Monthly Difference | U125: PCA Period | V125: Monthly | W125: PCA Period | X125: Monthly | Y125: PCA Period
A127: 9 | B127: 2010-01-01 | D127: 134953506.3 | E127: =D127 -> 134953506.3 | F127: 126298040.1 | G127: =F127 -> 126298040.1 | H127: =D127-F127 -> 8655466.192 | I127: =E127-G127 -> 8655466.192 | J127: -3112.592197 | K127: =J127 -> -3112.592197 | L127: =H127+J127 -> 8652353.6 | M127: =L127 -> 8652353.6 | O127: 8652353.6 | P127: =O127 -> 8652353.6 | R127: 0 | S127: =R127 -> 0 | T127: =O127+R127 -> 8652353.6 | U127: =P127+S127 -> 8652353.6 | V127: 13261.39 | W127: =V127 -> 13261.39 | X127: =R127+V127 -> 13261.39 | Y127: =X127 -> 13261.39
A128: 9 | B128: 2010-02-01 | D128: 127311731.3 | E128: =E127+D128 -> 262265237.6 | F128: 111110995.4 | G128: =G127+F128 -> 237409035.5 | H128: 16200735.95 | I128: 24856202.14 | J128: -5825.946655 | K128: =K127+J128 -> -8938.538852 | L128: 16194910 | M128: =M127+L128 -> 24847263.6 | O128: 13771278.2 | P128: =P127+O128 -> 22423631.8 | R128: 2423631.801 | S128: =R128+S127 -> 2423631.801 | T128: 16194910 | U128: 24847263.6 | V128: 12193.83 | W128: =W127+V128 -> 25455.22 | X128: 2435825.631 | Y128: =X128+Y127 -> 2449087.021
A129: 9 | B129: 2010-03-01 | D129: 129436684.3 | E129: 391701922 | F129: 118436669.3 | G129: 355845704.8 | H129: 11000015.02 | I129: 35856217.16 | J129: -3955.715402 | K129: -12894.25425 | L129: 10996059.31 | M129: 35843322.91 | O129: 5498029.653 | P129: 27921661.45 | R129: 5498029.653 | S129: 7921661.454 | T129: 10996059.31 | U129: 35843322.91 | V129: 20440.83 | W129: =W128+V129 -> 45896.05 | X129: 5518470.483 | Y129: 7967557.504
A130: 9 | B130: 2010-04-01 | D130: 104419583.3 | E130: 496121505.3 | F130: 110235654.2 | G130: 466081359 | H130: -5816070.893 | I130: 30040146.27 | J130: 2044.653293 | K130: -10849.60096 | L130: -5814026.239 | M130: 30029296.67 | O130: -2907013.12 | P130: 25014648.33 | R130: -2907013.12 | S130: 5014648.334 | T130: -5814026.239 | U130: 30029296.67 | V130: 33735.37 | W130: 79631.42 | X130: -2873277.75 | Y130: 5094279.754
A131: 9 | B131: 2010-05-01 | D131: 90656776.73 | E131: 586778282 | F131: 104215280.8 | G131: 570296639.8 | H131: -13558504.06 | I131: 16481642.21 | J131: 4733.273766 | K131: -6116.327194 | L131: -13553770.78 | M131: 16475525.89 | O131: -8539122.448 | P131: 16475525.89 | R131: -5014648.334 | S131: 0 | T131: -13553770.78 | U131: 16475525.89 | V131: 26656.69 | W131: 106288.11 | X131: -4987991.644 | Y131: 106288.11
A132: 9 | B132: 2010-06-01 | C132: (C) | D132: 99678045.73 | E132: 686456327.7 | F132: 90335556.64 | G132: 660632196.4 | H132: 9342489.091 | I132: 25824131.3 | J132: -3261.462942 | K132: -9377.790136 | L132: 9339227.628 | M132: 25814753.51 | O132: 6431850.871 | P132: 22907376.76 | R132: 2907376.757 | S132: 2907376.757 | T132: 9339227.628 | U132: 25814753.51 | V132: 13092.48 | W132: 119380.59 | X132: 2920469.237 | Y132: 3026757.347
A133: 9 | B133: 2010-07-01 | D133: 93519760.73 | E133: 779976088.5 | F133: 101296002.3 | G133: 761928198.7 | H133: -7776241.549 | I133: 18047889.75 | J133: 2714.685925 | K133: -6663.104211 | L133: -7773526.863 | M133: 18041226.65 | O133: -4866150.107 | P133: 18041226.65 | R133: -2907376.757 | S133: 0 | T133: -7773526.863 | U133: 18041226.65 | V133: 21027.67 | W133: 140408.26 | X133: -2886349.087 | Y133: 140408.26
A134: 9 | B134: 2010-08-01 | D134: 97662227.73 | E134: 877638316.2 | F134: 101910767.8 | G134: 863838966.5 | H134: -4248540.016 | I134: 13799349.74 | J134: 1483.165319 | K134: -5179.938892 | L134: -4247056.85 | M134: 13794169.8 | O134: -4247056.85 | P134: 13794169.8 | R134: 0 | S134: 0 | T134: -4247056.85 | U134: 13794169.8 | V134: 13261.39 | W134: 153669.65 | X134: 13261.39 | Y134: 153669.65
A135: 9 | B135: 2010-09-01 | D135: 105254060.7 | E135: 982892376.9 | F135: 97163878.74 | G135: 961002845.2 | H135: 8090182 | I135: 21889531.74 | J135: -2824.282536 | K135: -8004.221428 | L135: 8087357.717 | M135: 21881527.52 | O135: 7146593.958 | P135: 20940763.76 | R135: 940763.7585 | S135: 940763.7585 | T135: 8087357.717 | U135: 21881527.52 | V135: 12917.37 | W135: 166587.02 | X135: 953681.1285 | Y135: 1107350.779
A136: 9 | B136: 2010-10-01 | D136: 113891198.7 | E136: 1096783576 | F136: 108947212.1 | G136: 1069950057 | H136: 4943986.608 | I136: 26833518.35 | J136: -1725.945725 | K136: -9730.167153 | L136: 4942260.662 | M136: 26823788.18 | O136: 2471130.331 | P136: 23411894.09 | R136: 2471130.331 | S136: 3411894.09 | T136: 4942260.662 | U136: 26823788.18 | V136: 16078.19 | W136: 182665.21 | X136: 2487208.521 | Y136: 3594559.3
A137: 9 | B137: 2010-11-01 | D137: 127729035.4 | E137: 1224512611 | F137: 127209680.9 | G137: 1197159738 | H137: 519354.4981 | I137: 27352872.84 | J137: -181.3066553 | K137: -9911.473808 | L137: 519173.1914 | M137: 27342961.37 | O137: 259586.5957 | P137: 23671480.69 | R137: 259586.5957 | S137: 3671480.685 | T137: 519173.1914 | U137: 27342961.37 | V137: 21970.68 | W137: 204635.89 | X137: 281557.2757 | Y137: 3876116.575
A138: 9 | B138: 2010-12-01 | D138: 148516484.7 | E138: 1373029096 | F138: 139692837.5 | G138: 1336852576 | H138: 8823647.198 | I138: 36176520.04 | J138: -3080.335237 | K138: -12991.80904 | L138: 8820566.862 | M138: 36163528.23 | O138: 4410283.431 | P138: 28081764.12 | R138: 4410283.431 | S138: 8081764.116 | T138: 8820566.862 | U138: 36163528.23 | V138: 23788.38 | W138: 228424.27 | X138: 4434071.811 | Y138: 8310188.386
A140: 1-9 - Cumulative Amounts | E140: =E122+E138 -> 9694833832 | G140: =G122+G138 -> 9632053503 | I140: =I122+I138 -> 62780328.94 | K140: =K122+K138 -> -33636.12277 | N140: =N122+M138 -> 62746691.35 | P140: =P122+P138 -> 49860552.72 | S140: =S122+S138 -> 12886138.6 | U140: =U122+U138 -> 62746691.32 | W140: =W122+W138 -> 1109973.41 | Y140: =Y122+Y138 -> 13996113.01
A142: 10 | B142: 2011-01-01 | D142: 136860616.7 | E142: =D142 -> 136860616.7 | F142: 140508766 | G142: =F142 -> 140508766 | H142: =D142-F142 -> -3648149.221 | I142: =E142-G142 -> -3648149.221 | J142: 1273.568893 | K142: =J142 -> 1273.568893 | L142: =H142+J142 -> -3646875.652 | M142: =L142 -> -3646875.652 | O142: -3646875.652 | P142: =O142 -> -3646875.652 | R142: 0 | S142: =R142 -> 0 | T142: =O142+R142 -> -3646875.652 | U142: =P142+S142 -> -3646875.652 | V142: 35569.28 | W142: =V142 -> 35569.28 | X142: =R142+V142 -> 35569.28 | Y142: =X142 -> 35569.28
A143: 10 | B143: 2011-02-01 | D143: 130443863.7 | E143: =E142+D143 -> 267304480.5 | F143: 127314917.4 | G143: =G142+F143 -> 267823683.3 | H143: 3128946.363 | I143: -519202.8578 | J143: -1092.315175 | K143: =K142+J143 -> 181.2537177 | L143: 3127854.048 | M143: =M142+L143 -> -519021.6041 | O143: 3127854.048 | P143: =P142+O143 -> -519021.6041 | R143: 0 | S143: =R143+S142 -> 0 | T143: 3127854.048 | U143: -519021.6041 | V143: 32127.09 | W143: =W142+V143 -> 67696.37 | X143: 32127.09 | Y143: =X143+Y142 -> 67696.37
A144: 10 | B144: 2011-03-01 | D144: 122241271.7 | E144: 389545752.2 | F144: 126505123.4 | G144: 394328806.7 | H144: -4263851.626 | I144: -4783054.484 | J144: 1488.510603 | K144: 1669.76432 | L144: -4262363.115 | M144: -4781384.719 | O144: -4262363.115 | P144: -4781384.719 | R144: 0 | S144: 0 | T144: -4262363.115 | U144: -4781384.719 | V144: 35569.28 | W144: 103265.65 | X144: 35569.28 | Y144: 103265.65
A145: 10 | B145: 2011-04-01 | D145: 104683647.7 | E145: 494229399.9 | F145: 116015164.4 | G145: 510343971.1 | H145: -11331516.68 | I145: -16114571.16 | J145: 3955.832472 | K145: 5625.596792 | L145: -11327560.84 | M145: -16108945.56 | O145: -11327560.84 | P145: -16108945.56 | R145: 0 | S145: 0 | T145: -11327560.84 | U145: -16108945.56 | V145: 34421.88 | W145: 137687.53 | X145: 34421.88 | Y145: 137687.53
A146: 10 | B146: 2011-05-01 | D146: 89900086.73 | E146: 584129486.7 | F146: 105909373 | G146: 616253344.1 | H146: -16009286.28 | I146: -32123857.44 | J146: 5588.841841 | K146: 11214.43863 | L146: -16003697.44 | M146: -32112643 | O146: -9947375.939 | P146: -26056321.5 | R146: -6056321.502 | S146: -6056321.502 | T146: -16003697.44 | U146: -32112643 | V146: 35030.01 | W146: 172717.54 | X146: -6021291.492 | Y146: -5883603.962
A147: 10 | B147: 2011-06-01 | D147: 99731062.73 | E147: 683860549.4 | F147: 96350816.24 | G147: 712604160.4 | H147: 3380246.492 | I147: -28743610.95 | J147: -1180.04405 | K147: 10034.39458 | L147: 3379066.448 | M147: -28733576.56 | O147: 1689533.224 | P147: -24366788.28 | R147: 1689533.224 | S147: -4366788.278 | T147: 3379066.448 | U147: -28733576.56 | V147: 18394.47 | W147: 191112.01 | X147: 1707927.694 | Y147: -4175676.268
A148: 10 | B148: 2011-07-01 | D148: 88229727.73 | E148: 772090277.1 | F148: 98167272.01 | G148: 810771432.4 | H148: -9937544.276 | I148: -38681155.23 | J148: 3469.196707 | K148: 13503.59129 | L148: -9934075.08 | M148: -38667651.63 | O148: -4967037.54 | P148: -29333825.82 | R148: -4967037.54 | S148: -9333825.817 | T148: -9934075.08 | U148: -38667651.63 | V148: 23073.47 | W148: 214185.48 | X148: -4943964.07 | Y148: -9119640.337
A149: 10 | B149: 2011-08-01 | D149: 89101046.73 | E149: 861191323.9 | F149: 96828232.38 | G149: 907599664.7 | H149: -7727185.642 | I149: -46408340.87 | J149: 2697.560508 | K149: 16201.1518 | L149: -7724488.082 | M149: -46392139.72 | O149: -1305388.154 | P149: -30639213.97 | R149: -6419099.927 | S149: -15752925.74 | T149: -7724488.082 | U149: -46392139.72 | V149: 9233.79 | W149: 223419.27 | X149: -6409866.137 | Y149: -15529506.47
A150: 10 | B150: 2011-09-01 | D150: 101359869.7 | E150: 962551193.6 | F150: 98417999.46 | G150: 1006017664 | H150: 2941870.272 | I150: -43466470.6 | J150: -1027.006912 | K150: 15174.14489 | L150: 2940843.265 | M150: -43451296.45 | O150: 294084.3265 | P150: -30345129.65 | R150: 2646758.938 | S150: -13106166.81 | T150: 2940843.265 | U150: -43451296.45 | V150: -7422.18 | W150: 215997.09 | X150: 2639336.758 | Y150: -12890169.72
A151: 10 | B151: 2011-10-01 | D151: 112528515.7 | E151: 1075079709 | F151: 108689088.7 | G151: 1114706753 | H151: 3839427.024 | I151: -39627043.57 | J151: -1340.343974 | K151: 13833.80091 | L151: 3838086.68 | M151: -39613209.77 | O151: 538524.7595 | P151: -29806604.89 | R151: 3299561.921 | S151: -9806604.886 | T151: 3838086.68 | U151: -39613209.77 | V151: -313.54 | W151: 215683.55 | X151: 3299248.381 | Y151: -9590921.336
A152: 10 | B152: 2011-11-01 | D152: 130621832.7 | E152: 1205701542 | F152: 128294165.6 | G152: 1243000918 | H152: 2327667.175 | I152: -37299376.4 | J152: -812.5886107 | K152: 13021.2123 | L152: 2326854.586 | M152: -37286355.19 | O152: 1163427.293 | P152: -28643177.59 | R152: 1163427.293 | S152: -8643177.593 | T152: 2326854.586 | U152: -37286355.19 | V152: 8329.75 | W152: 224013.3 | X152: 1171757.043 | Y152: -8419164.293
A153: 10 | B153: 2011-12-01 | D153: 145965984.7 | E153: 1351667527 | F153: 143506588.5 | G153: 1386507507 | H153: 2459396.239 | I153: -34839980.16 | J153: -858.575227 | K153: 12162.63707 | L153: 2458537.664 | M153: -34827817.52 | O153: 1229268.832 | P153: -27413908.76 | R153: 1229268.832 | S153: -7413908.761 | T153: 2458537.664 | U153: -34827817.52 | V153: 11821.19 | W153: 235834.49 | X153: 1241090.022 | Y153: -7178074.271
A155: 1-10- Cumulative Amounts | E155: =E140+E153 -> 1.104650136e+10 | G155: =G140+G153 -> 1.101856101e+10 | I155: =I140+I153 -> 27940348.78 | K155: =K140+K153 -> -21473.4857 | N155: =N140+M153 -> 27918873.83 | P155: =P140+P153 -> 22446643.96 | S155: =S140+S153 -> 5472229.838 | U155: =U140+U153 -> 27918873.79 | W155: =W140+W153 -> 1345807.9 | Y155: =Y140+Y153 -> 6818038.738
A157: 11 | B157: 2012-01-01 | D157: 123262720.5 | E157: =D157 -> 123262720.5 | F157: 135790972.2 | G157: =F157 -> 135790972.2 | H157: =D157-F157 -> -12528251.64 | I157: =E157-G157 -> -12528251.64 | J157: 4373.612649 | K157: =J157 -> 4373.612649 | L157: =H157+J157 -> -12523878.03 | M157: =L157 -> -12523878.03 | O157: -12523878.03 | P157: =O157 -> -12523878.03 | R157: 0 | S157: =R157 -> 0 | T157: =O157+R157 -> -12523878.03 | U157: =P157+S157 -> -12523878.03 | V157: 15104.85 | W157: =V157 -> 15104.85 | X157: =R157+V157 -> 15104.85 | Y157: =X157 -> 15104.85
A158: 11 | B158: 2012-02-01 | D158: 118235954.7 | E158: =E157+D158 -> 241498675.3 | F158: 120665672.4 | G158: =G157+F158 -> 256456644.5 | H158: -2429717.62 | I158: -14957969.26 | J158: 848.2144212 | K158: =K157+J158 -> 5221.82707 | L158: -2428869.406 | M158: =M157+L158 -> -14952747.44 | O158: -2428869.406 | P158: =P157+O158 -> -14952747.44 | R158: 0 | S158: =R158+S157 -> 0 | T158: -2428869.406 | U158: -14952747.44 | V158: 14130.34 | W158: =W157+V158 -> 29235.19 | X158: 14130.34 | Y158: =X158+Y157 -> 29235.19
A159: 11 | B159: 2012-03-01 | D159: 111205982.7 | E159: 352704658 | F159: 127836729.5 | G159: 384293374 | H159: -16630746.77 | I159: -31588716.04 | J159: 5805.793699 | K159: 11027.62077 | L159: -16624940.98 | M159: -31577688.42 | O159: -10836096.77 | P159: -25788844.21 | R159: -5788844.209 | S159: -5788844.209 | T159: -16624940.98 | U159: -31577688.42 | V159: 14589.41 | W159: 43824.6 | X159: -5774254.799 | Y159: -5745019.609
A160: 11 | B160: 2012-04-01 | D160: 85619305.73 | E160: 438323963.7 | F160: 104780583.9 | G160: 489073957.9 | H160: -19161278.17 | I160: -50749994.2 | J160: 6689.202208 | K160: 17716.82298 | L160: -19154588.96 | M160: -50732277.38 | O160: -5284383.529 | P160: -31073227.74 | R160: -13870205.43 | S160: -19659049.64 | T160: -19154588.96 | U160: -50732277.38 | V160: -2080.77 | W160: 41743.83 | X160: -13872286.2 | Y160: -19617305.81
A161: 11 | B161: 2012-05-01 | D161: 88333769.57 | E161: 526657733.3 | F161: 97916638.55 | G161: 586990596.5 | H161: -9582868.984 | I161: -60332863.19 | J161: 3332.581795 | K161: 21049.40477 | L161: -9579536.403 | M161: -60311813.78 | O161: -957953.6403 | P161: -32031181.38 | R161: -8621582.762 | S161: -28280632.41 | T161: -9579536.403 | U161: -60311813.78 | V161: -39927.19 | W161: 1816.64 | X161: -8661509.952 | Y161: -28278815.77
A162: 11 | B162: 2012-06-01 | D162: 93099490.72 | E162: 619757224 | F162: 90778201.36 | G162: 677768797.9 | H162: 2321289.362 | I162: -58011573.83 | J162: -805.0231506 | K162: 20244.38162 | L162: 2320484.338 | M162: -57991329.45 | O162: 232048.4338 | P162: -31799132.94 | R162: 2088435.905 | S162: -26192196.5 | T162: 2320484.338 | U162: -57991329.45 | V162: -60740.6 | W162: -58923.96 | X162: 2027695.305 | Y162: -26251120.46
A163: 11 | B163: 2012-07-01 | D163: 98008706.72 | E163: 717765930.7 | F163: 95873017.64 | G163: 773641815.5 | H163: 2135689.082 | I163: -55875884.75 | J163: -740.6569736 | K163: 19503.72465 | L163: 2134948.425 | M163: -55856381.02 | O163: 213494.8425 | P163: -31585638.1 | R163: 1921453.582 | S163: -24270742.92 | T163: 2134948.425 | U163: -55856381.02 | V163: -57021.7 | W163: -115945.66 | X163: 1864431.882 | Y163: -24386688.58
A164: 11 | B164: 2012-08-01 | D164: 100026521.7 | E164: 817792452.5 | F164: 97925915.49 | G164: 871567731 | H164: 2100606.236 | I164: -53775278.51 | J164: -728.4902426 | K164: 18775.23441 | L164: 2099877.746 | M164: -53756503.28 | O164: 209987.7746 | P164: -31375650.33 | R164: 1889889.971 | S164: -22380852.95 | T164: 2099877.746 | U164: -53756503.28 | V164: -51720.77 | W164: -167666.43 | X164: 1838169.201 | Y164: =X164+Y163 -> -22548519.38
A165: 11 | B165: 2012-09-01 | D165: 103971056.7 | E165: 921763509.2 | F165: 90086183.28 | G165: 961653914.3 | H165: 13884873.45 | I165: -39890405.06 | J165: -4815.274111 | K165: 13959.96029 | L165: 13880058.17 | M165: -39876445.1 | O165: 1437427.776 | P165: -29938222.55 | R165: 12442630.4 | S165: -9938222.552 | T165: 13880058.17 | U165: -39876445.1 | V165: -44058.97 | W165: -211725.4 | X165: 12398571.43 | Y165: -10149947.95
A166: 11 | B166: 2012-10-01 | D166: 110736944.7 | E166: 1032500454 | F166: 105762923.3 | G166: 1067416838 | H166: 4974021.397 | I166: -34916383.67 | J166: -1724.99062 | K166: 12234.96967 | L166: 4972296.406 | M166: -34904148.7 | O166: 2486148.203 | P166: -27452074.35 | R166: 2486148.203 | S166: -7452074.349 | T166: 4972296.406 | U166: -34904148.7 | V166: -12106 | W166: -223831.4 | X166: 2474042.203 | Y166: -7675905.749
A167: 11 | B167: 2012-11-01 | D167: 125413021.7 | E167: 1157913476 | F167: 116823320.8 | G167: 1184240158 | H167: 8589700.955 | I167: -26326682.71 | J167: -2978.908291 | K167: 9256.061383 | L167: 8586722.046 | M167: -26317426.65 | O167: 4293361.023 | P167: -23158713.33 | R167: 4293361.023 | S167: -3158713.325 | T167: 8586722.046 | U167: -26317426.65 | V167: -4906.34 | W167: -228737.74 | X167: 4288454.683 | Y167: -3387451.065
A168: 11 | B168: 2012-12-01 | D168: 133466915.7 | E168: 1291380391 | F168: 132793819.6 | G168: 1317033978 | H168: 673096.1235 | I168: -25653586.59 | J168: -233.4297356 | K168: 9022.631647 | L168: 672862.6938 | M168: -25644563.96 | O168: 336431.3469 | P168: -22822281.98 | R168: 336431.3469 | S168: -2822281.979 | T168: 672862.6938 | U168: -25644563.96 | V168: 6415.89 | W168: -222321.85 | X168: 342847.2369 | Y168: -3044603.829
A170: 1-11- Cumulative Amounts | E170: =E155+E168 -> 1.233788175e+10 | G170: =G155+G168 -> 1.233559499e+10 | I170: =I155+I168 -> 2286762.192 | K170: =K155+K168 -> -12450.85405 | N170: =N155+M168 -> 2274309.873 | P170: =P155+P168 -> -375638.022 | S170: =S155+S168 -> 2649947.86 | U170: =U155+U168 -> 2274309.838 | W170: =W155+W168 -> 1123486.05 | Y170: =Y155+Y168 -> 3773434.91
A172: 12 | B172: 2013-01-01 | D172: 129564185.9 | E172: =D172 -> 129564185.9 | F172: 141097103.5 | G172: =F172 -> 141097103.5 | H172: =D172-F172 -> -11532917.69 | I172: =E172-G172 -> -11532917.69 | J172: 3999.615855 | K172: =J172 -> 3999.615855 | L172: =H172+J172 -> -11528918.08 | M172: =L172 -> -11528918.08 | O172: -11528918.08 | P172: =O172 -> -11528918.08 | R172: 0 | S172: =R172 -> 0 | T172: =O172+R172 -> -11528918.08 | U172: =P172+S172 -> -11528918.08 | V172: 7314.58 | W172: =V172 -> 7314.58 | X172: =R172+V172 -> 7314.58 | Y172: =X172 -> 7314.58
A173: 12 | B173: 2013-02-01 | D173: 115784534.7 | E173: =E172+D173 -> 245348720.6 | F173: 116203010.2 | G173: =G172+F173 -> 257300113.8 | H173: -418475.489 | I173: -11951393.18 | J173: 145.1272996 | K173: =K172+J173 -> 4144.743155 | L173: -418330.3617 | M173: =M172+L173 -> -11947248.44 | O173: -418330.3617 | P173: =P172+O173 -> -11947248.44 | R173: 0 | S173: =R173+S172 -> 0 | T173: -418330.3617 | U173: -11947248.44 | V173: 6606.71 | W173: =W172+V173 -> 13921.29 | X173: 6606.71 | Y173: =X173+Y172 -> 13921.29
A174: 12 | B174: 2013-03-01 | D174: 113095238.7 | E174: 358443959.3 | F174: 116447913.5 | G174: 373748027.3 | H174: -3352674.794 | I174: -15304067.97 | J174: 1162.707618 | K174: 5307.450773 | L174: -3351512.086 | M174: -15298760.52 | O174: -3351512.086 | P174: -15298760.52 | R174: 0 | S174: 0 | T174: -3351512.086 | U174: -15298760.52 | V174: 7314.58 | W174: 21235.87 | X174: 7314.58 | Y174: 21235.87
A175: 12 | B175: 2013-04-01 | D175: 90817625.72 | E175: 449261585 | F175: 104018806 | G175: =G174+F175 -> 477766833.3 | H175: -13201180.27 | I175: -28505248.25 | J175: 4578.169319 | K175: 9885.620092 | L175: -13196602.11 | M175: -28495362.63 | O175: -8948920.791 | P175: -24247681.31 | R175: -4247681.314 | S175: -4247681.314 | T175: -13196602.11 | U175: -28495362.63 | V175: 6700.41 | W175: 27936.28 | X175: -4240980.904 | Y175: -4219745.034
A176: 12 | B176: 2013-05-01 | D176: 89000892.72 | E176: 538262477.7 | F176: 97391969.16 | G176: 575158802.4 | H176: -8391076.441 | I176: -36896324.69 | J176: 2910.02531 | K176: 12795.6454 | L176: -8388166.416 | M176: -36883529.04 | O176: -4194083.208 | P176: -28441764.52 | R176: -4194083.208 | S176: -8441764.522 | T176: -8388166.416 | U176: -36883529.04 | V176: -4783.63 | W176: 23152.65 | X176: -4198866.838 | Y176: -8418611.872
A177: 12 | B177: 2013-06-01 | D177: 85948766.72 | E177: 624211244.5 | F177: 88080531.87 | G177: 663239334.3 | H177: -2131765.149 | I177: -39028089.84 | J177: 739.2961537 | K177: 13534.94156 | L177: -2131025.853 | M177: -39014554.9 | O177: -1065512.927 | P177: -29507277.45 | R177: -1065512.927 | S177: -9507277.448 | T177: -2131025.853 | U177: -39014554.9 | V177: -15566.16 | W177: 7586.49 | X177: -1081079.087 | Y177: -9499690.958
A178: 12 | B178: 2013-07-01 | D178: 90198447.72 | E178: 714409692.2 | F178: 96675912.71 | G178: 759915247 | H178: -6477464.991 | I178: -45505554.83 | J178: 2246.384859 | K178: 15781.32641 | L178: -6475218.606 | M178: -45489773.5 | O178: -1041699.902 | P178: -30548977.35 | R178: -5433518.704 | S178: -14940796.15 | T178: -6475218.606 | U178: -45489773.5 | V178: -19411.91 | W178: -11825.42 | X178: -5452930.614 | Y178: -14952621.57
A179: 12 | B179: 2013-08-01 | D179: 94750048.72 | E179: 809159740.9 | F179: 98240448.54 | G179: 858155695.6 | H179: -3490399.821 | I179: -48995954.65 | J179: 1210.470658 | K179: 16991.79707 | L179: -3489189.351 | M179: -48978962.85 | O179: -348918.9351 | P179: -30897896.29 | R179: -3140270.415 | S179: -18081066.57 | T179: -3489189.351 | U179: -48978962.85 | V179: -34205.72 | W179: -46031.14 | X179: -3174476.135 | Y179: =X179+Y178 -> -18127097.71
A180: 12 | B180: 2013-09-01 | D180: 93586916.72 | E180: 902746657.6 | F180: 96029405.97 | G180: 954185101.5 | H180: -2442489.245 | I180: -51438443.9 | J180: 847.0552703 | K180: 17838.85234 | L180: -2441642.19 | M180: -51420605.04 | O180: -244164.219 | P180: -31142060.5 | R180: -2197477.971 | S180: -20278544.54 | T180: -2441642.19 | U180: -51420605.04 | V180: -41415.78 | W180: -87446.92 | X180: -2238893.751 | Y180: =X180+Y179 -> -20365991.46
A181: 12 | B181: 2013-10-01 | D181: 106266574.7 | E181: 1009013232 | F181: 108546275.5 | G181: 1062731377 | H181: -2279700.767 | I181: -53718144.66 | J181: 790.600226 | K181: 18629.45257 | L181: -2278910.167 | M181: -53699515.21 | O181: -227891.0167 | P181: -31369951.52 | R181: -2051019.15 | S181: -22329563.69 | T181: -2278910.167 | U181: -53699515.21 | V181: -48842.38 | W181: -136289.3 | X181: -2099861.53 | Y181: =X181+Y180 -> -22465852.99
A182: 12 | B182: 2013-11-01 | D182: 123727676.5 | E182: 1132740909 | F182: 112221913 | G182: 1174953290 | H182: 11505763.53 | I182: -42212381.13 | J182: -4150.128906 | K182: 14479.32366 | L182: 11501613.4 | M182: -42197901.81 | O182: 1150161.34 | P182: -30219790.18 | R182: 10351452.06 | S182: -11978111.63 | T182: 11501613.4 | U182: -42197901.81 | V182: -51647.13 | W182: -187936.43 | X182: 10299804.93 | Y182: =X182+Y181 -> -12166048.06
A183: 12 | B183: 2013-12-01 | D183: 141362088.5 | E183: 1274102997 | F183: 137201568.7 | G183: 1312154859 | H183: 4160519.851 | I183: -38051861.28 | J183: -1500.69951 | K183: 12978.62415 | L183: 4159019.151 | M183: -38038882.66 | O183: 1200348.853 | P183: -29019441.33 | R183: 2958670.298 | S183: -9019441.328 | T183: 4159019.151 | U183: -38038882.66 | V183: -25484.85 | W183: -213421.28 | X183: 2933185.448 | Y183: =X183+Y182 -> -9232862.608
A185: 1-12- Cumulative Amounts | E185: =E170+E183 -> 1.361198475e+10 | G185: =G170+G183 -> 1.364774985e+10 | I185: =I170+I183 -> -35765099.09 | K185: =K170+K183 -> 527.7701038 | N185: =N170+M183 -> -35764572.78 | P185: =P170+P183 -> -29395079.35 | S185: =S170+S183 -> -6369493.468 | U185: =U170+U183 -> -35764572.82 | W185: =W170+W183 -> 910064.77 | Y185: =Y170+Y183 -> -5459427.698
A187: 13 | B187: 2014-01-01 | D187: 126181085.5 | E187: =D187 -> 126181085.5 | F187: 125820649.7 | G187: =F187 -> 125820649.7 | H187: =D187-F187 -> 360435.762 | I187: =E187-G187 -> 360435.762 | J187: -130.0091793 | K187: =J187 -> -130.0091793 | L187: =H187+J187 -> 360305.7528 | M187: =L187 -> 360305.7528 | O187: 360305.7528 | P187: =O187 -> 360305.7528 | R187: 0 | S187: =R187 -> 0 | T187: =O187+R187 -> 360305.7528 | U187: =P187+S187 -> 360305.7528 | V187: -17581.55 | W187: =V187 -> -17581.55 | X187: =R187+V187 -> -17581.55 | Y187: =X187 -> -17581.55
A188: 13 | B188: 2014-02-01 | D188: 136695674.5 | E188: =E187+D188 -> 262876760 | F188: 116568822.7 | G188: =G187+F188 -> 242389472.4 | H188: 20126851.82 | I188: 20487287.58 | J188: -7259.755451 | K188: =K187+J188 -> -7389.76463 | L188: 20119592.06 | M188: =M187+L188 -> 20479897.82 | O188: 19879643.15 | P188: =P187+O188 -> 20239948.91 | R188: 239948.9075 | S188: =R188+S187 -> 239948.9075 | T188: 20119592.06 | U188: 20479897.82 | V188: -15858.74 | W188: =W187+V188 -> -33440.29 | X188: 224090.1675 | Y188: =X188+Y187 -> 206508.6175
A189: 13 | B189: 2014-03-01 | D189: 111391763.5 | E189: 374268523.5 | F189: 112973984.8 | G189: 355363457.2 | H189: -1582221.309 | I189: 18905066.27 | J189: 570.7072261 | K189: -6819.057404 | L189: -1581650.602 | M189: 18898247.21 | O189: -1341701.694 | P189: 18898247.21 | R189: -239948.9075 | S189: 0 | T189: -1581650.602 | U189: 18898247.21 | V189: -16940.59 | W189: -50380.88 | X189: -256889.4975 | Y189: -50380.88
A190: 13 | B190: 2014-04-01 | D190: 96575171.5 | E190: 470843695 | F190: 99028887.09 | G190: 454392344.3 | H190: -2453715.59 | I190: 16451350.68 | J190: 885.0552133 | K190: -5934.002191 | L190: -2452830.535 | M190: 16445416.68 | O190: -2452830.535 | P190: 16445416.68 | R190: 0 | S190: 0 | T190: -2452830.535 | U190: 16445416.68 | V190: -17014.4 | W190: -67395.28 | X190: -17014.4 | Y190: -67395.28
A191: 13 | B191: 2014-05-01 | D191: 93358976.5 | E191: 564202671.5 | F191: 90267222.94 | G191: 544659567.3 | H191: 3091753.562 | I191: 19543104.24 | J191: -1115.19551 | K191: -7049.1977 | L191: 3090638.367 | M191: 19536055.05 | O191: 3090638.367 | P191: 19536055.05 | R191: 0 | S191: 0 | T191: 3090638.367 | U191: 19536055.05 | V191: -17581.55 | W191: -84976.83 | X191: -17581.55 | Y191: -84976.83
A192: 13 | B192: 2014-06-01 | D192: 87527239.5 | E192: 651729911 | F192: 88851629.49 | G192: 633511196.8 | H192: -1324389.989 | I192: 18218714.25 | J192: 477.7074692 | K192: -6571.490231 | L192: -1323912.282 | M192: 18212142.76 | O192: -1323912.282 | P192: 18212142.76 | R192: 0 | S192: 0 | T192: -1323912.282 | U192: 18212142.76 | V192: -17014.4 | W192: -101991.23 | X192: -17014.4 | Y192: -101991.23
A193: 13 | B193: 2014-07-01 | D193: 96295495.5 | E193: 748025406.5 | F193: 99420909.43 | G193: 732932106.2 | H193: -3125413.924 | I193: 15093300.33 | J193: 1127.336802 | K193: -5444.153429 | L193: -3124286.587 | M193: 15087856.18 | O193: -3124286.587 | P193: 15087856.18 | R193: 0 | S193: 0 | T193: -3124286.587 | U193: 15087856.18 | V193: -17581.55 | W193: -119572.78 | X193: -17581.55 | Y193: -119572.78
A194: 13 | B194: 2014-08-01 | D194: 99122120.5 | E194: 847147527 | F194: 95837690.96 | G194: 828769797.1 | H194: 3284429.545 | I194: 18377729.87 | J194: -1184.693737 | K194: -6628.847166 | L194: 3283244.851 | M194: 18371101.03 | O194: 3283244.851 | P194: 18371101.03 | R194: 0 | S194: 0 | T194: 3283244.851 | U194: 18371101.03 | V194: -17581.55 | W194: -137154.33 | X194: -17581.55 | Y194: =X194+Y193 -> -137154.33
A195: 13 | B195: 2014-09-01 | D195: 97295066.5 | E195: 944442593.5 | F195: 87806884.41 | G195: 916576681.6 | H195: 9488182.091 | I195: 27865911.97 | J195: -3422.38728 | K195: -10051.23445 | L195: 9484759.704 | M195: 27855860.73 | O195: 5556829.338 | P195: 23927930.37 | R195: 3927930.366 | S195: 3927930.366 | T195: 9484759.704 | U195: 27855860.73 | V195: -16664.65 | W195: -153818.98 | X195: 3911265.716 | Y195: =X195+Y194 -> 3774111.386
A196: 13 | B196: 2014-10-01 | D196: 102212120.5 | E196: 1046654714 | F196: 96697040.49 | G196: 1013273722 | H196: 5515080.011 | I196: 33380991.98 | J196: -1989.28936 | K196: -12040.52381 | L196: 5513090.722 | M196: 33368951.45 | O196: 2756545.361 | P196: 26684475.73 | R196: 2756545.361 | S196: 6684475.727 | T196: 5513090.722 | U196: 33368951.45 | V196: -6493.93 | W196: -160312.91 | X196: 2750051.431 | Y196: =X196+Y195 -> 6524162.817
A197: 13 | B197: 2014-11-01 | D197: 117974710.5 | E197: 1164629425 | F197: 113411893.8 | G197: 1126685616 | H197: 4562816.702 | I197: 37943808.68 | J197: -1645.807984 | K197: -13686.33179 | L197: 4561170.894 | M197: 37930122.35 | O197: 2280585.447 | P197: 28965061.17 | R197: 2280585.447 | S197: 8965061.174 | T197: 4561170.894 | U197: 37930122.35 | V197: 1044.45 | W197: -159268.46 | X197: 2281629.897 | Y197: =X197+Y196 -> 8805792.714
A198: 13 | B198: 2014-12-01 | D198: 123344793.8 | E198: 1287974218 | F198: 121626642.9 | G198: 1248312259 | H198: 1718150.865 | I198: 39661959.54 | J198: -598.9473915 | K198: -14285.27918 | L198: 1717551.917 | M198: 39647674.26 | O198: 858775.9587 | P198: 29823837.13 | R198: 858775.9587 | S198: 9823837.132 | T198: 1717551.917 | U198: 39647674.26 | V198: 7240.95 | W198: -152027.51 | X198: 866016.9087 | Y198: =X198+Y197 -> 9671809.622
A200: 1-13- Cumulative Amounts | E200: =E185+E198 -> 1.489995897e+10 | G200: =G185+G198 -> 1.489606211e+10 | I200: =I185+I198 -> 3896860.456 | K200: =K185+K198 -> -13757.50908 | N200: =N185+M198 -> 3883101.482 | P200: =P185+P198 -> 428757.7824 | S200: =S185+S198 -> 3454343.664 | U200: =U185+U198 -> 3883101.447 | W200: =W185+W198 -> 758037.26 | Y200: =Y185+Y198 -> 4212381.924
A202: 14 | B202: 2015-01-01 | D202: 119235519.2 | E202: =D202 -> 119235519.2 | F202: 121481127.4 | G202: =F202 -> 121481127.4 | H202: =D202-F202 -> -2245608.108 | I202: =E202-G202 -> -2245608.108 | J202: 782.8189864 | K202: =J202 -> 782.8189864 | L202: =H202+J202 -> -2244825.289 | M202: =L202 -> -2244825.289 | O202: -2244825.289 | P202: =O202 -> -2244825.289 | R202: 0 | S202: =R202 -> 0 | T202: =O202+R202 -> -2244825.289 | U202: =P202+S202 -> -2244825.289 | V202: 9534.94 | W202: =V202 -> 9534.94 | X202: =R202+V202 -> 9534.94 | Y202: =X202 -> 9534.94
A203: 14 | B203: 2015-02-01 | D203: 105377338.2 | E203: =E202+D203 -> 224612857.5 | F203: 100844823.7 | G203: =G202+F203 -> 222325951.1 | H203: 4532514.538 | I203: 2286906.431 | J203: -1580.034568 | K203: =K202+J203 -> -797.2155817 | L203: 4530934.504 | M203: =M202+L203 -> 2286109.215 | O203: 4530934.504 | P203: =P202+O203 -> 2286109.215 | R203: 0 | S203: =R203+S202 -> 0 | T203: 4530934.504 | U203: 2286109.215 | V203: 8612.2 | W203: =W202+V203 -> 18147.14 | X203: 8612.2 | Y203: =X203+Y202 -> 18147.14
A204: 14 | B204: 2015-03-01 | D204: 105640903.2 | E204: 330253760.7 | F204: 106071722.1 | G204: 328397673.2 | H204: -430818.9011 | I204: 1856087.529 | J204: 150.1834689 | K204: -647.0321128 | L204: -430668.7176 | M204: 1855440.497 | O204: -430668.7176 | P204: 1855440.497 | R204: 0 | S204: 0 | T204: -430668.7176 | U204: 1855440.497 | V204: 9534.94 | W204: 27682.08 | X204: 9534.94 | Y204: 27682.08
A205: 14 | B205: 2015-04-01 | D205: 95557329.25 | E205: 425811090 | F205: 99985490.99 | G205: 428383164.2 | H205: -4428161.746 | I205: -2572074.216 | J205: 1543.657185 | K205: 896.6250718 | L205: -4426618.089 | M205: -2571177.591 | O205: -4426618.089 | P205: -2571177.591 | R205: 0 | S205: 0 | T205: -4426618.089 | U205: -2571177.591 | V205: 9227.36 | W205: 36909.44 | X205: 9227.36 | Y205: 36909.44
A206: 14 | B206: 2015-05-01 | D206: 94657182.25 | E206: 520468272.2 | F206: 88865117.48 | G206: 517248281.7 | H206: 5792064.769 | I206: 3219990.553 | J206: -2019.113779 | K206: -1122.488707 | L206: 5790045.656 | M206: 3218868.064 | O206: 5790045.656 | P206: 3218868.064 | R206: 0 | S206: 0 | T206: 5790045.656 | U206: 3218868.064 | V206: 9534.94 | W206: 46444.38 | X206: 9534.94 | Y206: 46444.38
A207: 14 | B207: 2015-06-01 | D207: 94331422.25 | E207: 614799694.5 | F207: 92822917.97 | G207: 610071199.7 | H207: 1508504.28 | I207: 4728494.834 | J207: -525.8645921 | K207: -1648.353299 | L207: 1507978.416 | M207: 4726846.48 | O207: 1507978.416 | P207: 4726846.48 | R207: 0 | S207: 0 | T207: 1507978.416 | U207: 4726846.48 | V207: 9227.36 | W207: 55671.74 | X207: 9227.36 | Y207: 55671.74
A208: 14 | B208: 2015-07-01 | D208: 101097386.2 | E208: 715897080.7 | F208: 98037157.93 | G208: 708108357.6 | H208: 3060228.319 | I208: 7788723.152 | J208: -1066.795592 | K208: -2715.148891 | L208: 3059161.523 | M208: 7786008.003 | O208: 3059161.523 | P208: 7786008.003 | R208: 0 | S208: 0 | T208: 3059161.523 | U208: 7786008.003 | V208: 9534.94 | W208: 65206.68 | X208: 9534.94 | Y208: 65206.68
A209: 14 | B209: 2015-08-01 | D209: 97525273.25 | E209: 813422354 | F209: 94703196.51 | G209: 802811554.1 | H209: 2822076.737 | I209: 10610799.89 | J209: -983.7759504 | K209: -3698.924841 | L209: 2821092.961 | M209: 10607100.96 | O209: 2821092.961 | P209: 10607100.96 | R209: 0 | S209: 0 | T209: 2821092.961 | U209: 10607100.96 | V209: 9534.94 | W209: 74741.62 | X209: 9534.94 | Y209: =X209+Y208 -> 74741.62
A210: 14 | B210: 2015-09-01 | D210: 90491148.25 | E210: 903913502.2 | F210: 86658978.16 | G210: 889470532.3 | H210: 3832170.085 | I210: 14442969.97 | J210: -1335.894492 | K210: -5034.819333 | L210: 3830834.191 | M210: 14437935.16 | O210: 3830834.191 | P210: 14437935.16 | R210: 0 | S210: 0 | T210: 3830834.191 | U210: 14437935.16 | V210: 9227.36 | W210: 83968.98 | X210: 9227.36 | Y210: =X210+Y209 -> 83968.98
A211: 14 | B211: 2015-10-01 | D211: 97346832.15 | E211: 1001260334 | F211: 94615523.57 | G211: 984086055.8 | H211: 2731308.576 | I211: 17174278.55 | J211: -952.1341698 | K211: -5986.953503 | L211: 2730356.442 | M211: 17168291.6 | O211: 2730356.442 | P211: 17168291.6 | R211: 0 | S211: 0 | T211: 2730356.442 | U211: 17168291.6 | V211: 9534.94 | W211: 93503.92 | X211: 9534.94 | Y211: =X211+Y210 -> 93503.92
A212: 14 | B212: 2015-11-01 | D212: 113165980.2 | E212: 1114426315 | F212: 116681143.4 | G212: 1100767199 | H212: -3515163.173 | I212: 13659115.38 | J212: 1225.385882 | K212: -4761.567621 | L212: -3513937.787 | M212: 13654353.81 | O212: -3513937.787 | P212: 13654353.81 | R212: 0 | S212: 0 | T212: -3513937.787 | U212: 13654353.81 | V212: 9227.36 | W212: 102731.28 | X212: 9227.36 | Y212: =X212+Y211 -> 102731.28
A213: 14 | B213: 2015-12-01 | D213: 121591637.2 | E213: 1236017952 | F213: 127014913.4 | G213: 1227782113 | H213: -5423276.109 | I213: 8235839.269 | J213: 1890.554052 | K213: -2871.013569 | L213: -5421385.555 | M213: 8232968.256 | O213: -5421385.555 | P213: 8232968.256 | R213: 0 | S213: 0 | T213: -5421385.555 | U213: 8232968.256 | V213: 9534.94 | W213: 112266.22 | X213: 9534.94 | Y213: =X213+Y212 -> 112266.22
A215: 1-14 - Cumulative Amounts | E215: =E200+E213 -> 1.613597692e+10 | G215: =G200+G213 -> 1.612384422e+10 | I215: =I200+I213 -> 12132699.73 | K215: =K200+K213 -> -16628.52265 | N215: =N200+M213 -> 12116069.74 | P215: =P200+P213 -> 8661726.038 | S215: =S200+S213 -> 3454343.664 | U215: =U200+U213 -> 12116069.7 | W215: =W200+W213 -> 870303.48 | Y215: =Y200+Y213 -> 4324648.144
A217: 15 | B217: 2016-01-01 | D217: 118037710.2 | E217: =D217 -> 118037710.2 | F217: 126240913.1 | G217: =F217 -> 126240913.1 | H217: =D217-F217 -> -8203202.854 | I217: =E217-G217 -> -8203202.854 | J217: 2859.636515 | K217: =J217 -> 2859.636515 | L217: =H217+J217 -> -8200343.218 | M217: =L217 -> -8200343.218 | O217: -8200343.218 | P217: =O217 -> -8200343.218 | R217: 0 | S217: =R217 -> 0 | T217: =O217+R217 -> -8200343.218 | U217: =P217+S217 -> -8200343.218 | V217: 9534.94 | W217: =V217 -> 9534.94 | X217: =R217+V217 -> 9534.94 | Y217: =X217 -> 9534.94
A218: 15 | B218: 2016-02-01 | D218: 106321602.2 | E218: =E217+D218 -> 224359312.5 | F218: 109499535.3 | G218: =G217+F218 -> 235740448.4 | H218: -3177933.083 | I218: -11381135.94 | J218: 1107.827473 | K218: =K217+J218 -> 3967.463988 | L218: -3176825.255 | M218: =M217+L218 -> -11377168.47 | O218: -3176825.255 | P218: =P217+O218 -> -11377168.47 | R218: 0 | S218: =R218+S217 -> 0 | T218: -3176825.255 | U218: -11377168.47 | V218: 8919.78 | W218: =W217+V218 -> 18454.72 | X218: 8919.78 | Y218: =X218+Y217 -> 18454.72
A219: 15 | B219: 2016-03-01 | D219: 106720850.2 | E219: 331080162.7 | F219: 107261355.5 | G219: 343001803.9 | H219: -540505.2152 | I219: -11921641.15 | J219: 188.420118 | K219: 4155.884106 | L219: -540316.7951 | M219: -11917485.27 | O219: -540316.7951 | P219: -11917485.27 | R219: 0 | S219: 0 | T219: -540316.7951 | U219: -11917485.27 | V219: 9534.94 | W219: 27989.66 | X219: 9534.94 | Y219: 27989.66
A220: 15 | B220: 2016-04-01 | D220: 96267837.25 | E220: 427348000 | F220: 89055250.02 | G220: 432057053.9 | H220: 7212587.231 | I220: -4709053.921 | J220: -2514.307909 | K220: 1641.576197 | L220: 7210072.924 | M220: -4707412.345 | O220: 7210072.924 | P220: -4707412.345 | R220: 0 | S220: 0 | T220: 7210072.924 | U220: -4707412.345 | V220: 9823.58 | W220: 37813.24 | X220: 9823.58 | Y220: 37813.24
A221: 15 | B221: 2016-05-01 | D221: 92858077.25 | E221: 520206077.2 | F221: 89327891.5 | G221: 521384945.4 | H221: 3530185.749 | I221: -1178868.173 | J221: -1230.622752 | K221: 410.9534449 | L221: 3528955.126 | M221: -1178457.219 | O221: 3528955.126 | P221: -1178457.219 | R221: 0 | S221: 0 | T221: 3528955.126 | U221: -1178457.219 | V221: 10151.04 | W221: 47964.28 | X221: 10151.04 | Y221: 47964.28
A222: 15 | B222: 2016-06-01 | D222: 92032727.25 | E222: 612238804.5 | F222: 88009809.5 | G222: 609394754.9 | H222: 4022917.743 | I222: 2844049.571 | J222: -1402.389125 | K222: -991.4356804 | L222: 4021515.354 | M222: 2843058.135 | O222: 4021515.354 | P222: 2843058.135 | R222: 0 | S222: 0 | T222: 4021515.354 | U222: 2843058.135 | V222: 9823.58 | W222: 57787.86 | X222: 9823.58 | Y222: 57787.86
A223: 15 | B223: 2016-07-01 | D223: 88635581.25 | E223: 700874385.7 | F223: 93360634.91 | G223: 702755389.8 | H223: -4725053.659 | I223: -1881004.088 | J223: 1647.153705 | K223: 655.7180251 | L223: -4723406.505 | M223: -1880348.37 | O223: -4723406.505 | P223: -1880348.37 | R223: 0 | S223: 0 | T223: -4723406.505 | U223: -1880348.37 | V223: 10268.39 | W223: 68056.25 | X223: 10268.39 | Y223: 68056.25
A224: 15 | B224: 2016-08-01 | D224: 92024442.25 | E224: 792898828 | F224: 93864367.24 | G224: 796619757.1 | H224: -1839924.988 | I224: -3720929.076 | J224: 641.3978509 | K224: 1297.115876 | L224: -1839283.59 | M224: -3719631.96 | O224: -1839283.59 | P224: -3719631.96 | R224: 0 | S224: 0 | T224: -1839283.59 | U224: -3719631.96 | V224: 10268.39 | W224: 78324.64 | X224: 10268.39 | Y224: =X224+Y223 -> 78324.64
A225: 15 | B225: 2016-09-01 | D225: 91175073.25 | E225: 884073901.2 | F225: 87819421.12 | G225: 884439178.2 | H225: 3355652.127 | I225: -365276.949 | J225: -1169.780332 | K225: 127.3355444 | L225: 3354482.347 | M225: -365149.6134 | O225: 3354482.347 | P225: -365149.6134 | R225: 0 | S225: 0 | T225: 3354482.347 | U225: -365149.6134 | V225: 9937.15 | W225: 88261.79 | X225: 9937.15 | Y225: =X225+Y224 -> 88261.79
A226: 15 | B226: 2016-10-01 | D226: 99767106.25 | E226: 983841007.5 | F226: 98497101.19 | G226: 982936279.4 | H226: 1270005.053 | I226: 904728.1037 | J226: -442.7237613 | K226: -315.3882169 | L226: 1269562.329 | M226: 904412.7155 | O226: 1269562.329 | P226: 904412.7155 | R226: 0 | S226: 0 | T226: 1269562.329 | U226: 904412.7155 | V226: 10268.39 | W226: 98530.18 | X226: 10268.39 | Y226: =X226+Y225 -> 98530.18
A227: 15 | B227: 2016-11-01 | D227: 108304361.2 | E227: 1092145369 | F227: 100898060.8 | G227: 1083834340 | H227: 7406300.423 | I227: 8311028.527 | J227: -2581.836327 | K227: -2897.224544 | L227: 7403718.587 | M227: 8308131.302 | O227: 7403718.587 | P227: 8308131.302 | R227: 0 | S227: 0 | T227: 7403718.587 | U227: 8308131.302 | V227: 9937.15 | W227: 108467.33 | X227: 9937.15 | Y227: =X227+Y226 -> 108467.33
A228: 15 | B228: 2016-12-01 | D228: 128451174.2 | E228: 1220596543 | F228: 134703103 | G228: 1218537443 | H228: -6251928.703 | I228: 2059099.824 | J228: 2179.422346 | K228: -717.8021986 | L228: -6249749.28 | M228: 2058382.022 | O228: -6249749.28 | P228: 2058382.022 | R228: 0 | S228: 0 | T228: -6249749.28 | U228: 2058382.022 | V228: 10268.39 | W228: 118735.72 | X228: 10268.39 | Y228: =X228+Y227 -> 118735.72
A230: 1-15 - Cumulative Amounts | E230: =E215+E228 -> 1.735657346e+10 | G230: =G215+G228 -> 1.734238166e+10 | I230: =I215+I228 -> 14191799.55 | K230: =K215+K228 -> -17346.32485 | N230: =N215+M228 -> 14174451.76 | P230: =P215+P228 -> 10720108.06 | S230: =S215+S228 -> 3454343.664 | U230: =U215+U228 -> 14174451.72 | W230: =W215+W228 -> 989039.2 | Y230: =Y215+Y228 -> 4443383.864
A232: 16 | B232: 2017-01-01 | C232: (C) | D232: 87428880 | E232: =D232 -> 87428880 | F232: 77313609.73 | G232: =F232 -> 77313609.73 | H232: =D232-F232 -> 10115270.27 | I232: =E232-G232 -> 10115270.27 | J232: -3526.183216 | K232: =J232 -> -3526.183216 | L232: =H232+J232 -> 10111744.09 | M232: =L232 -> 10111744.09 | O232: 10111744.09 | P232: =O232 -> 10111744.09 | R232: 0 | S232: =R232 -> 0 | T232: =O232+R232 -> 10111744.09 | U232: =P232+S232 -> 10111744.09 | V232: 10268.39 | W232: =V232 -> 10268.39 | X232: =R232+V232 -> 10268.39 | Y232: =X232 -> 10268.39
A233: 16 | B233: 2017-02-01 | D233: 65492956 | E233: =E232+D233 -> 152921836 | F233: 64896142.46 | G233: =G232+F233 -> 142209752.2 | H233: 596813.5447 | I233: 10712083.81 | J233: -208.0492017 | K233: =K232+J233 -> -3734.232417 | L233: 596605.4955 | M233: =M232+L233 -> 10708349.58 | O233: 596605.4955 | P233: =P232+O233 -> 10708349.58 | R233: 0 | S233: =R233+S232 -> 0 | T233: 596605.4955 | U233: 10708349.58 | V233: 9274.68 | W233: =W232+V233 -> 19543.07 | X233: 9274.68 | Y233: =X233+Y232 -> 19543.07
... 81 more rows

Sheet Schedule_B
C1: Schedule B: Monthly Power Costs -- PCA PERIOD 21
C2: Revised PCA Exhibit B
C3: Subject to PCA Sharing
A4: Current | C4: UE-130617 | R4: Period
A5: Row | B5: Row1 | F5: 2022-01-01 | G5: 2022-02-01 | H5: 2022-03-01 | I5: 2022-04-01 | J5: 2022-05-01 | K5: 2022-06-01 | L5: 2022-07-01 | M5: 2022-08-01 | N5: 2022-09-01 | O5: 2022-10-01 | P5: 2022-11-01 | Q5: 2022-12-01 | R5: to Date
A6: 1
A7: 2 | C7: Total Variable Component Actual | D7: FERC Acct.
A8: 3 | B8: 2 | C8: Steam Operating Fuel | D8: 501 | F8: 5289941 | G8: 4571555 | H8: 5520663 | I8: 2731580.05 | J8: 3464888 | K8: 3928913.41 | L8: 0 | M8: 0 | N8: 0 | O8: 0 | P8: 0 | Q8: 0 | R8: =SUM(F8:Q8) -> 25507540.46
A9: 4 | B9: 3 | C9: Other Power Generation Fuel | D9: 547 | F9: 17896698 | G9: 14590442 | H9: 12774483 | I9: 17911098.84 | J9: 10542289 | K9: 7918986.39 | L9: 0 | M9: 0 | N9: 0 | O9: 0 | P9: 0 | Q9: 0 | R9: 81633997.23
A10: 5 | B10: 4 | C10: Purchased & Interchanged | D10: 555 | F10: 70076933 | G10: 61614301 | H10: 51733759 | I10: 57592541.26 | J10: 51448349 | K10: 52093091.21 | L10: 0 | M10: 0 | N10: 0 | O10: 0 | P10: 0 | Q10: 0 | R10: 344558974.5
A11: 6 | B11: 5 | C11: Purchases/Sales of Non-Core Gas | D11: 45600080, 81 | F11: -11276177 | G11: -5243222 | H11: -4952903 | I11: -3704161.45 | J11: -5660480 | K11: -13062725.67 | L11: 0 | M11: 0 | N11: 0 | O11: 0 | P11: 0 | Q11: 0 | R11: -43899669.12
A12: 7 | B12: 6 | C12: Brokerage Fees | D12: 55700003 | F12: 31519 | G12: 21301 | H12: 25176 | I12: 22644.75 | J12: 36215 | K12: 23322.48 | L12: 0 | M12: 0 | N12: 0 | O12: 0 | P12: 0 | Q12: 0 | R12: 160178.23
A13: 8 | B13: 7 | C13: Sales to Others | D13: 447 | F13: -5887253 | G13: -5860741 | H13: -4580940 | I13: -6789859 | J13: -6881643 | K13: -5850928.02 | L13: 0 | M13: 0 | N13: 0 | O13: 0 | P13: 0 | Q13: 0 | R13: -35851364.02
A14: 9 | B14: 8 | C14: Wheeling | D14: 565 | F14: 10688710 | G14: 10679832 | H14: 10321256 | I14: 10797860.5 | J14: 11056688 | K14: 10253890.86 | L14: 0 | M14: 0 | N14: 0 | O14: 0 | P14: 0 | Q14: 0 | R14: 63798237.36
A15: 10 | B15: 10 | C15: Montana Electric Energy Tax | D15: 40810005 | F15: 167027 | G15: 73544 | H15: 73543 | I15: 77664 | J15: 74573 | K15: 74574 | L15: 0 | M15: 0 | N15: 0 | O15: 0 | P15: 0 | Q15: 0 | R15: 540925
A16: 11 | C16: Subtotal Variable Components | F16: =SUM(F8:F15) -> 86987398 | G16: 80447012 | H16: 70915037 | I16: 78639368.95 | J16: 64080879 | K16: 55379124.66 | L16: 0 | M16: 0 | N16: 0 | O16: 0 | P16: 0 | Q16: =SUM(Q8:Q15) -> 0 | R16: =SUM(R8:R15) -> 436448819.6
A17: 12
A18: 13 | C18: Adjustments
A19: 14 | B19: 9 | C19: Centralia PPA ROR Equity Adjustment | F19: 347745.6 | G19: 311889.87 | H19: 347278.2 | I19: 336518.16 | J19: 347745.6 | K19: 336528 | R19: =SUM(F19:Q19) -> 2027705.43
A20: 16 | C20: Total allowable costs | F20: =F16+F19 -> 87335143.6 | G20: =G16+G19 -> 80758901.87 | H20: 71262315.2 | I20: 78975887.11 | J20: 64428624.6 | K20: 55715652.66 | L20: 0 | M20: 0 | N20: 0 | O20: 0 | P20: 0 | Q20: 0 | R20: =R16+R19 -> 438476525
A21: 17
A22: 18
A23: 19 | B23: 13 | C23: PCA period delivered load (Kwh) | F23: 2276913255 | G23: 1940874795 | H23: 1814204109 | I23: 1810649034 | J23: 1601984680 | K23: 1466930467 | R23: =SUM(F23:Q23) -> 10911556340
A24: 20 | B24: 13a | C24: Green Direct - load | F24: -59824971.53 | G24: -57882649.84 | H24: -47025842.99 | I24: -49323544.3 | J24: -70408187.82 | K24: -60846884.68 | R24: =SUM(F24:Q24) -> -345312081.2
A25: 21 | B25: 13b | C25: PCA period net delivered load (Kwh) | F25: =F23+F24 -> 2217088283 | G25: 1882992145 | H25: 1767178266 | I25: 1761325490 | J25: 1531576492 | K25: 1406083582 | L25: =L23+L24 -> 0 | M25: =M23+M24 -> 0 | N25: 0 | O25: 0 | P25: 0 | Q25: 0
A26: 22 | C26: Variable Baseline Rate
A27: 23 | B27: 14 | C27: July 1, 2021 - | D27: 0.038983 | F27: =F25*$D$27 -> 86428752.55 | G27: =G25*$D$27 -> 73404682.79 | H27: =H25*$D$27 -> 68889910.34 | I27: 68661751.57 | J27: 59705446.39 | K27: 54813356.29 | L27: 0 | M27: 0 | N27: 0 | O27: 0 | P27: 0 | Q27: 0 | R27: =SUM(F27:Q27) -> 411903899.9
A28: 24
A29: 25 | B29: 15 | C29: Baseline Power Costs | F29: =F27 -> 86428752.55 | G29: =G27 -> 73404682.79 | H29: 68889910.34 | I29: 68661751.57 | J29: 59705446.39 | K29: 54813356.29 | L29: 0 | M29: 0 | N29: 0 | O29: 0 | P29: 0 | Q29: 0 | R29: =SUM(R27:R28) -> 411903899.9
A30: 26
A31: 27 | B31: 17 | C31: Imbalance for Sharing | F31: =F20-F29 -> 906391.0454 | G31: =G20-G29 -> 7354219.075 | H31: =H20-H29 -> 2372404.856 | I31: 10314135.54 | J31: 4723178.205 | K31: 902296.3706 | L31: 0 | M31: 0 | N31: 0 | O31: 0 | P31: 0 | Q31: 0 | R31: 26572625.1
A32: 28 | C32: Surcharge or underrecovery/(refund or overrecovery) | F32: =+F31 -> 906391.0454 | G32: 7354219.075 | H32: =+H31 -> 2372404.856 | I32: 10314135.54 | J32: 4723178.205 | K32: 902296.3706 | L32: 0 | M32: 0 | N32: 0 | O32: 0 | P32: 0 | Q32: 0 | R32: 26572625.1
A33: 29
A34: 30 | C34: Less Firm Wholesale
A35: 31 | C35: July 1, 2021 - | D35: 0.00037438 | F35: =F32*(1-$D$35) -> 906051.7107 | G35: =G32*(1-$D$35) -> 7351465.803 | H35: 2371516.675 | I35: 10310274.14 | J35: 4721409.942 | K35: 901958.5689 | L35: 0 | M35: 0 | N35: 0 | O35: 0 | P35: 0 | Q35: 0 | R35: =SUM(F35:Q35) -> 26562676.84
A36: 32
A37: 33 | C37: Gross PCA | F37: =+F35 -> 906051.7107 | G37: =+G35 -> 7351465.803 | H37: 2371516.675 | I37: 10310274.14 | J37: 4721409.942 | K37: 901958.5689 | L37: 0 | M37: 0 | N37: 0 | O37: 0 | P37: 0 | Q37: 0 | R37: =+R35 -> 26562676.84
A38: 34 | C38: Gross PCA Contra | F38: =-F37 -> -906051.7107 | G38: -7351465.803 | H38: -2371516.675 | I38: -10310274.14 | J38: -4721409.942 | K38: -901958.5689 | L38: 0 | M38: 0 | N38: 0 | O38: 0 | P38: 0 | Q38: 0 | R38: -26562676.84
A39: 35
A40: 36 | C40: Cumulative Gross PCA | F40: =+F37 -> 906051.7107 | G40: =+F40+G37 -> 8257517.513 | H40: =+G40+H37 -> 10629034.19 | I40: 20939308.33 | J40: 25660718.27 | K40: =+J40+K37 -> 26562676.84 | L40: =+K40+L37 -> 26562676.84 | M40: 26562676.84 | N40: =+M40+N37 -> 26562676.84 | O40: 26562676.84 | P40: 26562676.84 | Q40: =+P40+Q37 -> 26562676.84 | R40: =+R37 -> 26562676.84
A41: 37 | C41: Cumulative Gross PCA Contra | F41: =+F38 -> -906051.7107 | G41: =+F41+G38 -> -8257517.513 | H41: -10629034.19 | I41: -20939308.33 | J41: -25660718.27 | K41: -26562676.84 | L41: -26562676.84 | M41: -26562676.84 | N41: -26562676.84 | O41: -26562676.84 | P41: -26562676.84 | Q41: =+P41+Q38 -> -26562676.84 | R41: =+R38 -> -26562676.84
C44: 1: This schedule was derived from the PCA collaborative Exhibit B which was approved in Exhibit B to Attachment A to the Settlement Stipulation approved in Order 11 of Docket UE-130617 which is also included as Exhibit A in this petition. The row numbers presented correspond to that approved exhibit.

Sheet Lists (hidden)
A1: 1 | C1: 2020
A2: 2 | C2: 2021
A3: 3 | C3: 2022
A4: 4 | C4: 2023
A5: 5 | C5: 2024
A6: 6 | C6: 2025
A7: 7
A8: 8
A9: 9
A10: 10
A11: 11
A12: 12

Sheet GRC GD rplcmt pc (C) (hidden)
A1: Puget Sound Energy
A2: Rate Year Power Costs
A3: 2019 GRC Rebuttal without Skookumchuck and Lund Hill
A6: Acct. | B6: ($ in thousands) | C6: 2020-05-01 | D6: 2020-06-01 | E6: 2020-07-01 | F6: 2020-08-01 | G6: 2020-09-01 | H6: 2020-10-01 | I6: 2020-11-01 | J6: 2020-12-01 | K6: 2021-01-01 | L6: 2021-02-01 | M6: 2021-03-01 | N6: 2021-04-01 | O6: 2019 GRC Rebuttal w/o GD resources | P6: 2019 GRC Rebuttal | Q6: Increase / (Decrease)
A7: 501 | B7: Coal fuel | C7: 922.6868868 | D7: 1475.627165 | E7: 3807.584647 | F7: 3962.007927 | G7: 3851.811087 | H7: 3940.844587 | I7: 3851.811087 | J7: 3962.007927 | K7: 3978.776348 | L7: 3633.995958 | M7: 3517.201768 | N7: 1904.736438 | O7: =SUM(C7:N7) -> 38809.09182 | P7: 38804.03473 | Q7: =O7-P7 -> 5.057089
A8: 547 | B8: Natural gas fuel | C8: 4975.965444 | D8: 6423.090519 | E8: 10746.55489 | F8: 14912.50613 | G8: 16358.95945 | H8: 13977.84928 | I8: 9383.735476 | J8: 14384.32335 | K8: 12149.23117 | L8: 12368.27286 | M8: 8797.862526 | N8: 8003.59719 | O8: =SUM(C8:N8) -> 132481.9483 | P8: 132793.7175 | Q8: =O8-P8 -> -311.7691969
A9: 555WS | B9: Wind and solar purchases | C9: 993.5014 | D9: 1138.44714 | E9: 1111.98047 | F9: 1029.21826 | G9: 671.1404 | H9: 475.5793 | I9: 500.071869 | J9: 473.503021 | K9: 446.721619 | L9: 501.144684 | M9: 699.290344 | N9: 982.550659 | O9: 9023.149166 | P9: 32384.219 | Q9: -23361.06984
A10: 555H | B10: Hydro purchases | C10: 11116.6729 | D10: 11122.20732 | E10: 10599.14983 | F10: 9420.466407 | G10: 8969.260569 | H10: 9567.796098 | I10: 10305.67567 | J10: 10121.24204 | K10: 8069.076425 | L10: 7738.904919 | M10: 8147.133303 | N10: 8381.933371 | O10: 113559.5189 | P10: 113558.832 | Q10: 0.6868185039
A11: 555MP | B11: Market purchases | C11: 3180.575844 | D11: 2457.934998 | E11: 4986.147899 | F11: 3716.256876 | G11: 3109.010103 | H11: 928.9240528 | I11: 7123.498362 | J11: 12905.7753 | K11: 19131.4221 | L11: 12275.46473 | M11: 12543.66377 | N11: 8867.915088 | O11: 91226.58911 | P11: 82149.39051 | Q11: 9077.198603
A12: 555 | B12: Other contract purchases | C12: 23211.42258 | D12: 21913.76316 | E12: 17401.30524 | F12: 17286.42688 | G12: 16609.77138 | H12: 26234.76918 | I12: 27338.40744 | J12: 30544.17014 | K12: 29227.91138 | L12: 26433.88087 | M12: 27282.6617 | N12: 18029.2515 | O12: 281513.7414 | P12: 281513.7414 | Q12: 0
A13: 447 | B13: Secondary sales | C13: -29.41172 | D13: -567.979553 | E13: -696.104858 | F13: -1312.95276 | G13: -1425.60168 | H13: -3307.96387 | I13: -243.196213 | J13: -68.25713 | K13: 0 | L13: -0.7193674 | M13: -8.447034 | N13: -197.1424 | O13: -7857.776585 | P13: -9461.726595 | Q13: 1603.950009
A14: 565 | B14: Transmission | C14: 9934.48555 | D14: 9867.304281 | E14: 9754.415156 | F14: 9757.002068 | G14: 9465.829984 | H14: 9521.163763 | I14: 9545.931794 | J14: 9902.734882 | K14: 9938.306751 | L14: 10012.37016 | M14: 10032.76572 | N14: 9954.368336 | O14: 117686.6784 | P14: 117686.6379 | Q14: 0.0405960558
A15: 456 | B15: Other revenues | C15: -41.46446845 | D15: -114.7238549 | E15: -2268.564485 | F15: -2707.247868 | G15: -2138.541056 | H15: -1547.519122 | I15: -3178.693196 | J15: -5564.204502 | K15: -5261.821471 | L15: -3546.959047 | M15: -2171.042637 | N15: -273.4391707 | O15: -28814.22088 | P15: -28825.9905 | Q15: 11.76962028
A16: 557 | B16: Other power supply expense | C16: 869.6718483 | D16: 869.6718483 | E16: 869.6718483 | F16: 869.6718483 | G16: 869.6718483 | H16: 869.6718483 | I16: 869.6718483 | J16: 869.6718483 | K16: 869.6718483 | L16: 869.6718483 | M16: 869.6718483 | N16: 869.6718483 | O16: 10436.06218 | P16: 10436.06218 | Q16: 0
B17: Total Rate Year Power Costs | C17: =SUM(C7:C16) -> 55134.10627 | D17: 54585.34303 | E17: 56312.14063 | F17: 56933.35578 | G17: 56341.31209 | H17: 60661.11512 | I17: 65496.91414 | J17: 77530.96687 | K17: 78549.29616 | L17: 70286.02761 | M17: 69710.76131 | N17: 56523.44286 | O17: 758064.7819 | P17: =SUM(P7:P16) -> 771038.9182 | Q17: =SUM(Q7:Q16) -> -12974.1363
B19: Total load (MWh) | C19: 1713634 | D19: 1641494 | E19: 1688368 | F19: 1691471 | G19: 1633727 | H19: 1835245 | I19: 2069949 | J19: 2453508 | K19: 2410070 | L19: 2068379 | M19: 2116149 | N19: 1830661 | O19: =SUM(C19:N19) -> 23152655 | P19: 23272547 | Q19: =O19-P19 -> -119892
A22: Rate year: May 2020 through April 2021
A23: Gas price date: 12/05/2019
C25: 2020-05-01 | D25: 2020-06-01 | E25: 2020-07-01 | F25: 2020-08-01 | G25: 2020-09-01 | H25: 2020-10-01 | I25: 2020-11-01 | J25: 2020-12-01 | K25: 2021-01-01 | L25: 2021-02-01 | M25: 2021-03-01 | N25: 2021-04-01 | O25: Rate year
B26: Skookumchuck energy in rebuttal (MWh) | C26: 17670.1211 | D26: 16895.082 | E26: 10391.1533 | F26: 11362.0146 | G26: 12851.5518 | H26: 38874.8672 | I26: 45602.2 | J26: 48978.8125 | K26: 51016.7148 | L26: 42996.57 | M26: 49242.625 | N26: 29464.3848 | O26: =SUM(C26:N26) -> 375346.0971
B27: Lund Hill energy in rebuttal (MWh) | C27: 0 | D27: 0 | E27: 0 | F27: 0 | G27: 0 | H27: 0 | I27: 0 | J27: 0 | K27: 9700.848 | L27: 17551.8711 | M27: 29683.04 | N27: 40583.72 | O27: =SUM(C27:N27) -> 97519.4791
B28: GD replacement energy total (MWh) | C28: =C26+C27 -> 17670.1211 | D28: =D26+D27 -> 16895.082 | E28: 10391.1533 | F28: 11362.0146 | G28: 12851.5518 | H28: 38874.8672 | I28: 45602.2 | J28: 48978.8125 | K28: 60717.5628 | L28: 60548.4411 | M28: 78925.665 | N28: 70048.1048 | O28: 472865.5762
B30: Skookumchuck energy cost in rebuttal | C30: 808408 | D30: 772950 | E30: 475395.264 | F30: 519812.134 | G30: 587958.5 | H30: 1778525.15 | I30: 2086300.54 | J30: 2240780.76 | K30: 2369216.31 | L30: 1996760.74 | M30: 2286827.39 | N30: 1368326 | O30: =SUM(C30:N30) -> 17291260.79
B31: Lund Hill energy cost in rebuttal | C31: 0 | D31: 0 | E31: 0 | F31: 0 | G31: 0 | H31: 0 | I31: 0 | J31: 0 | K31: 350685.638 | L31: 634500.1 | M31: 1073041.87 | N31: 1467101.44 | O31: =SUM(C31:N31) -> 3525329.048
B32: GD energy cost total | C32: =C30+C31 -> 808408 | D32: =D30+D31 -> 772950 | E32: 475395.264 | F32: 519812.134 | G32: 587958.5 | H32: 1778525.15 | I32: 2086300.54 | J32: 2240780.76 | K32: 2719901.948 | L32: 2631260.84 | M32: 3359869.26 | N32: 2835427.44 | O32: 20816589.84
B34: Total Aurora cost in rebuttal | C34: 31282787.15 | D34: 30874751.93 | E34: 33842707.29 | F34: 35075295.17 | G34: 35054365.27 | H34: 39073141.91 | I34: 45284586.76 | J34: 59139758.74 | K34: 62325814.64 | L34: 52573141.11 | M34: 50784467.79 | N34: 36175083.7 | O34: =SUM(C34:N34) -> 511485901.5
B35: Total Aurora cost without GD resources | C35: 30624263.7 | D35: 30329375 | E35: 33571484.4 | F35: 34859933.6 | G35: 34832054.7 | H35: 38271830 | I35: 44310790 | J35: 58506386.7 | K35: 61223980 | L35: 51442386.7 | M35: 48878790 | N35: 34373343.8 | O35: =SUM(C35:N35) -> 501224618.6
B36: Total Aurora cost decrease/(increase) from GD removal | C36: =C34-C35 -> 658523.4483 | D36: =D34-D35 -> 545376.9315 | E36: 271222.8948 | F36: 215361.5743 | G36: 222310.5683 | H36: 801311.9055 | I36: 973796.7556 | J36: 633372.0442 | K36: 1101834.639 | L36: 1130754.409 | M36: 1905677.787 | N36: 1801739.902 | O36: 10261282.86
B38: Not-in-Aurora cost decrease/(increase) from dispatch changes | C38: =-($Q$10+$Q$15)/12*1000 -> -1038.036566 | D38: =-($Q$10+$Q$15)/12*1000 -> -1038.036566 | E38: -1038.036566 | F38: -1038.036566 | G38: -1038.036566 | H38: -1038.036566 | I38: -1038.036566 | J38: -1038.036566 | K38: -1038.036566 | L38: -1038.036566 | M38: -1038.036566 | N38: -1038.036566 | O38: =SUM(C38:N38) -> -12456.43879
B39: Adjustment to match $13.053 million net reduction | C39: =(13053000-12974288)/12 -> 6559.333333 | D39: =(13053000-12974288)/12 -> 6559.333333 | E39: 6559.333333 | F39: 6559.333333 | G39: 6559.333333 | H39: 6559.333333 | I39: 6559.333333 | J39: 6559.333333 | K39: 6559.333333 | L39: 6559.333333 | M39: 6559.333333 | N39: 6559.333333 | O39: =SUM(C39:N39) -> 78712
B41: Total cost to replace GD resources in power cost model | C41: =C32-C36-C38-C39 -> 144363.2549 | D41: =D32-D36-D38-D39 -> 222051.7717 | E41: 198651.0724 | F41: 298929.263 | G41: 360126.6349 | H41: 971691.9477 | I41: 1106982.488 | J41: 1601887.419 | K41: 1612546.013 | L41: 1494985.134 | M41: 1448670.176 | N41: 1028166.241 | O41: =O32-O36-O38-O39 -> 10489051.42
B42: Average replacement cost per MWh | C42: =C41/C28 -> 8.169907501 | D42: =D41/D28 -> 13.14298278 | E42: 19.1173267 | F42: 26.30952991 | G42: 28.02203505 | H42: 24.99537665 | I42: 24.2747606 | J42: 32.70572187 | K42: 26.55814789 | L42: 24.69072873 | M42: 18.35486817 | N42: 14.67800227 | O42: 22.18188835
B44: Average replacement cost per kWh | C44: =C42/1000 -> 0.008169907501 | K44: =K42/1000 -> 0.02655814789 | L44: 0.02469072873 | M44: 0.01835486817 | N44: 0.01467800227
B49: GD energy cost removed from Aurora | C49: =O32 -> 20816589.84
B50: Skookumchuck balancing cost removed | C50: 2544480
B51: Skookumchuck DA wind int. cost removed | C51: 180981.1666
B52: Total GD costs removed | C52: =SUM(C49:C51) -> 23542051
B54: Replacement energy costs | C54: =O41 -> 10489051.42
B56: Net cost decrease from removing GD resources | C56: =C52-C54 -> 13052999.59
B60: Check against simple calculation based on average market prices
B62: Mid C flat market price per MWh | C62: 8.111581 | D62: 11.4264641 | E62: 20.3201885 | F62: 24.1288528 | G62: 24.5514755 | H62: 22.4322739 | I62: 22.7476387 | J62: 29.8678112 | K62: 26.2138577 | L62: 25.2485828 | M62: 19.3582764 | N62: 15.7943058
B63: Mid C on-peak market price per MWh | C63: 8.423005 | D63: 12.2385406 | E63: 20.9062233 | F63: 26.0840111 | G63: 26.47824 | H63: 24.1894226 | I63: 24.566124 | J63: 32.75237 | K63: 28.412859 | L63: 26.98509 | M63: 20.3175869 | N63: 16.1359863
B65: Cost to replace Skookumchuck wind energy | C65: =C62*C26 -> 143332.6186 | D65: 193051.0479 | E65: 211150.1938 | F65: 274152.3778 | G65: 315524.5592 | H65: 872051.6689 | I65: 1037342.37 | J65: 1462889.925 | K65: 1337344.902 | L65: 1085602.458 | M65: 953252.3454 | N65: 465369.5037 | O65: =SUM(C65:N65) -> 8351063.969
B66: Cost to replace Lund Hill solar energy | C66: =C63*C27 -> 0 | D66: 0 | E66: 0 | F66: 0 | G66: 0 | H66: 0 | I66: 0 | J66: 0 | K66: 275628.8264 | L66: 473638.8213 | M66: 603087.7447 | N66: 654858.3499 | O66: =SUM(C66:N66) -> 2007213.742
B67: Cost to replace GD resources based on market prices | C67: =C65+C66 -> 143332.6186 | D67: =D65+D66 -> 193051.0479 | E67: 211150.1938 | F67: 274152.3778 | G67: 315524.5592 | H67: 872051.6689 | I67: 1037342.37 | J67: 1462889.925 | K67: 1612973.728 | L67: 1559241.279 | M67: 1556340.09 | N67: 1120227.854 | O67: =SUM(C67:N67) -> 10358277.71
B68: Average replacement cost per MWh | C68: =C67/C28 -> 8.111581 | D68: 11.4264641 | E68: 20.3201885 | F68: 24.1288528 | G68: 24.5514755 | H68: 22.4322739 | I68: 22.7476387 | J68: 29.8678112 | K68: 26.56519225 | L68: 25.75196406 | M68: 19.71906211 | N68: 15.99226499 | O68: 21.90533258
B70: GD energy cost removed from Aurora | C70: =C49 -> 20816589.84
B71: Skookumchuck balancing cost removed | C71: =C50 -> 2544480
B72: Skookumchuck DA wind int. cost removed | C72: =C51 -> 180981.1666
B73: Total GD costs removed | C73: =SUM(C70:C72) -> 23542051
B75: Replacement energy costs | C75: =O67 -> 10358277.71
B77: Net cost decrease from removing GD resources | C77: =C73-C75 -> 13183773.29
